{"text_format":"3","workbook":"xlsx","n_sheets":4,"sheets":["7-8 дев","7-8 мал","9-11 дев","9-11 мал"],"not_rendered":{"defined_names":4},"read":"whole","date_system":"1900"}

{"sheet":"7-8 дев","index":0,"n_rows":105,"n_cols":25,"rows_kept":105}
["№ ","Район","Школа","Фамилия","Имя","Отчество","пол","д.р.","класс","класс участия","теория","Балл","легкая атлетика","пересчет","балл","гимнастика","балл","Общий балл","Апел.балл","Итог балл","Макс.балл","Статус","Учитель","Наименование ОУ","Район"]
[1,"Вахитовский район","МАОУ\"Средняя общеобразовательная школа №18 с углубленным изучением английского языка\"","Архипова","П.","Е.","Ж","16.06.2006",8,8,38,{"$f":"30*K2/45","v":25.333333333333332},"8.39,0",519,{"$f":"35*470.4/N2","v":31.722543352601157},19.4,{"$f":"35*P2/20","v":33.95},{"$f":"L2+O2+Q2","v":91.0058766859345},null,91.0058766859345,100,"Победитель","Галиуллин ШамильМазгутович","Муниципальное автономное общеобразовательное учреждение\"Средняя общеобразовательная школа №18 с углубленным изучением английского языка\"","Вахитовский район"]
[2,"Советский район","МБОУ «Гимназия № 183» Советского района г.Казани","Габдрахманова","И.","Л.","Ж","09.06.2007",7,7,36,24,"8.28,8",508.8,32.35849056603774,19.4,33.95,90.30849056603773,null,90.30849056603773,100,"Победитель","Валиахметов ИльшатГайсович","Муниципальное бюджетное общеобразовательное учреждение «Гимназия № 183» Советского района г.Казани","Советский район"]
[3,"Приволжский район","МБОУ \"Татарско-русская средняя общеобразовательная школа №68 с углубленным изучением отдельных предметов\"","Мифтахова","А.","Р.","Ж","03.01.2008",7,7,40,26.666666666666668,"8.55,7",535.7,30.73361956318835,18.7,32.725,90.12528622985502,null,90.12528622985502,100,"Победитель","Хуртов СергейГеннадьевич","Муниципальное бюджетное общеобразовательное учреждение \"Татарско-русская средняя общеобразовательная школа №68 с углубленным изучением отдельных предметов\"","Приволжский район"]
[4,"Приволжский район","МБОУ \"Лицей №83 - Центр образования\"","Мазняк","Д.","И.","Ж","14.07.2006",8,8,42,28,"9.19,4",559.4,29.431533786199502,18.6,32.55,89.98153378619949,null,89.98153378619949,100,"Победитель","Исакова ИннаЮрьевна","Муниципальное бюджетное общеобразовательное учреждение \"Лицей №83 - Центр образования\"","Приволжский район"]
[5,"Приволжский район","МАОУ \"Гимназия №19\"","Воронова","В.","А.","Ж","10.08.2007",7,7,40,26.666666666666668,"9.00,6",540.6,30.455049944506104,18.5,32.375,89.49671661117277,null,89.49671661117277,100,"Победитель","Зиятдинов ВадимРинатович",null,"Муниципальное автономное общеобразовательное учреждение \"Гимназия №19\""]
[6,"Приволжский район","МБОУ \"Лицей №83 - Центр образования\"","Шарипова","А.","Ф.","Ж","17.06.2007",7,7,40,26.666666666666668,"9.23,9",563.9,29.19666607554531,19,33.25,89.11333274221198,null,89.11333274221198,100,"Призер","Новикова ЭльвираГермановна","Муниципальное бюджетное общеобразовательное учреждение \"Лицей №83 - Центр образования\"","Приволжский район"]
[7,"Приволжский район","МАОУ \"Гимназия №19\"","Трушик","А.","А.","Ж","12.11.2006",8,8,42,28,"10.04,4",604.4,27.24023825281271,19.3,33.775,89.01523825281271,null,89.01523825281271,100,"Призер","Баранов Глеб Валерьевич"]
[8,"Советский район","МАОУ \"Лицей №121 имени Героя Советского Союза С.А.Ахтямова\" Советского района г.Казани","Кондратьева","В.","А.","Ж","21.09.2006",8,8,38,25.333333333333332,"9.27,7",567.7,29.001233045622687,19.8,34.65,88.98456637895602,null,88.98456637895602,100,"Призер","Слободчиков СергейЛьвович","Муниципальное автономное общеобразовательное учреждение \"Лицей №121 имени Героя Советского Союза С.А.Ахтямова\" Советского района г.Казани","Советский район"]
[9,"Кировский район","МБОУ \"Политехнический лицей № 182\"","Беглова","А.","Д.","Ж","06.08.2007",7,7,31,20.666666666666668,"8.38,6",518.6,31.747011183956804,18,31.5,83.91367785062347,4.67,88.58034451729014,100,"Призер","Каргин АлександрСергеевич","МБОУ \"Политехнический лицей № 182\"","Кировский район"]
[10,"Приволжский район","МАОУ \"Гимназия №19\"","Гатауллина","К.","И.","Ж","01.03.2008",7,7,41,27.333333333333332,"9.41,9",581.9,28.293521223577937,18.8,32.9,88.52685455691127,null,88.52685455691127,100,"Призер","Зиятдинов ВадимРинатович",null,"Муниципальное автономное общеобразовательное учреждение \"Гимназия №19\""]
[11,"Приволжский район","ОШИ\"IT- лицей федерального государственного автономного образовательного учреждения высшего образования \"Казанский (Приволжский) федеральный университет\"","Рафикова","А.","Р.","Ж","17.06.2006",8,8,41,27.333333333333332,"9.36,9",576.9,28.53874154966199,18.6,32.55,88.42207488299532,null,88.42207488299532,100,"Призер","Чапурин АртёмИгоревич","Общеобразовательная школа-интернат \"IT- лицей федерального государственного автономного образовательного учреждения высшего образования \"Казанский (Приволжский) федеральный университет\"","Приволжский район"]
[12,"Приволжский район","МБОУ \"Гимназия №6\"","Иванова","Р.","М.","Ж","19.04.2006",8,8,40,26.666666666666668,"9.48,7",588.7,27.9667063020214,19.3,33.775,88.40837296868807,null,88.40837296868807,100,"Призер","Халимов ИльнурФиргатович","Муниципальное бюджетное общеобразовательное учреждение \"Гимназия №6\"","Приволжский район"]
[13,"Ново-Савиновский район","МБОУ \"Средняя общеобразовательная татарско-русская школа №113 с углубленным изучением отдельных предметов имени Героя России М.Р.Ахметшина\" Ново-Савиновского района г. Казани\"","Павлова ","П.","Р.","Ж","2007-06-15",8,8,39.2,26.133333333333333,"9.38,8",578.8,28.445058742225296,19.3,33.775,88.35339207555862,null,88.35339207555862,100,"Призер","Рыжов АлександрВасильевич","Муниципальное бюджетное общеобразовательное учреждение \"Средняя общеобразовательная татарско-русская школа №113 с углубленным изучением отдельных предметов имени Героя России М.Р.Ахметшина\" Ново-Савиновского района г. Казани\"","Ново-Савиновский район"]
[14,"Ново-Савиновский район","ГАОУ \"Полилингвальный комплекс \"Адымнар - путь к знаниям и согласию\" г. Казани\"","Бадьярова","В.","С.","Ж","10.08.2007",7,7,35,23.333333333333332,"8.57,5",537.5,30.630697674418606,19.6,34.3,88.26403100775194,null,88.26403100775194,100,"Призер","Кривова ИринаВладимировна","Государственное автономное общеобразовательное учреждение \"Полилингвальный комплекс \"Адымнар - путь к знаниям и согласию\" г. Казани\"","Ново-Савиновский район"]
[15,"Ново-Савиновский район","МБОУ \"Средняя общеобразовательная татарско-русская школа №113 с углубленным изучением отдельных предметов имени Героя России М.Р.Ахметшина\" Ново-Савиновского района г. Казани\"","Самигуллина","А.","А.","Ж","08.09.2006",8,8,37,24.666666666666668,"9.24,1",564.1,29.18631448324765,19.5,34.125,87.97798114991431,null,87.97798114991431,100,"Призер","Рыжов АлександрВасильевич","Муниципальное бюджетное общеобразовательное учреждение \"Средняя общеобразовательная татарско-русская школа №113 с углубленным изучением отдельных предметов имени Героя России М.Р.Ахметшина\" Ново-Савиновского района г. Казани\"","Ново-Савиновский район"]
[16,"Советский район","МБОУ \"Гимназия №175\" Советского района г.Казани","Глебова","Ю.","Е.","Ж","10.03.2007",7,7,39,26,"8.27,9",507.9,32.415829887773185,16.7,29.225,87.64082988777318,null,87.64082988777318,100,"Призер","Лекомцев ДаниилФедорович","Муниципальное бюджетное общеобразовательное учреждение \"Гимназия №175\" Советского района г.Казани","Советский район"]
[17,"Ново-Савиновский район","Инженерный лицей-интернат КНИТУ-КАИ","Гибадуллина","К.","Н.","Ж","21.08.2006",8,8,36.4,24.266666666666666,"10.00,4",600.4,27.421718854097268,19.4,33.95,85.63838552076393,2,87.63838552076393,100,"Призер","Пестова АленаВалерьевна","Инженерный лицей-интернат КНИТУ-КАИ","Ново-Савиновский район"]
[18,"Приволжский район","МБОУ \"Средняя общеобразовательная школа № 82 с углубленным изучением отдельных предметов им.Р.Г.Хасановой\"","Халикова","Р.","Д.","Ж","09.09.2009",5,7,38.2,25.466666666666665,"10.18,5",618.5,26.61924009700889,19.9,34.825,86.91090676367556,null,86.91090676367556,100,"Призер","Хабиров РафикРафаэльевич","Муниципальное бюджетное общеобразовательное учреждение \"Средняя общеобразовательная школа № 82 с углубленным изучением отдельных предметов им.Р.Г.Хасановой\"","Приволжский район"]
[19,"Московский район","МБОУ \"Гимназия № 102 имени М.С.Устиновой\" Московского района города Казани\"","Зангирова","Л.","Д.","Ж","19.01.2006",8,8,35,23.333333333333332,"9.28,2",568.2,28.975712777191127,19.4,33.95,86.25904611052447,null,86.25904611052447,100,"Призер","Тулупов ИгорьВячеславович","Муниципальное бюджетное общеобразовательное учреждение \"Гимназия № 102 имени М.С.Устиновой\" Московского района города Казани\"","Московский район"]
[20,"Советский район","МБОУ \"Гимназия №175\" Советского района г.Казани","Романова","А.","И.","Ж","2006-07-19",8,8,41,27.333333333333332,"10.08,0",608.8,27.04336399474376,18,31.5,85.87669732807709,null,85.87669732807709,100,"Призер","Кириллова Ольга Владимировна","МБОУСредняя общеобразовательная школа №175» ","Советский район"]
[21,"Ново-Савиновский район","МБОУ \"Средняя общеобразовательная татарско-русская школа №113 с углубленным изучением отдельных предметов имени Героя России М.Р.Ахметшина\" Ново-Савиновского района г. Казани\"","Гаязова","К.","Р.","Ж","2008-03-12",6,7,33.2,22.133333333333336,"9.37,6",577.6,28.50415512465374,19.9,34.825,85.46248845798708,null,85.46248845798708,100,"Призер","Рыжов АлександрВасильевич","Муниципальное бюджетное общеобразовательное учреждение \"Средняя общеобразовательная татарско-русская школа №113 с углубленным изучением отдельных предметов имени Героя России М.Р.Ахметшина\" Ново-Савиновского района г. Казани\"","Ново-Савиновский район"]
[22,"Вахитовский район","МАОУ \"Средняя общеобразовательная школа №39 с углубленным изучением английского языка\"","Михеева","А.","С.","Ж","13.01.2006",8,8,38,25.333333333333332,"10.06,8",606.8,27.13249835201055,18.8,32.9,85.36583168534389,null,85.36583168534389,100,"Призер","Хусаинов ДаниярДинисламович","Муниципальное автономное общеобразовательное учреждение \"Средняя общеобразовательная школа №39 с углубленным изучением английского языка\"","Вахитовский район"]
[23,"Ново-Савиновский район","МБОУ \"Средняя общеобразовательная татарско-русская школа №113 с углубленным изучением отдельных предметов имени Героя России М.Р.Ахметшина\" Ново-Савиновского района г. Казани\"","Быкова","М.","О.","Ж","2009-09-23",5,7,29.2,19.466666666666665,"8.41,3",521.3,31.58258200652216,19.6,34.3,85.34924867318882,null,85.34924867318882,100,"Призер","Рыжов АлександрВасильевич","Муниципальное бюджетное общеобразовательное учреждение \"Средняя общеобразовательная татарско-русская школа №113 с углубленным изучением отдельных предметов имени Героя России М.Р.Ахметшина\" Ново-Савиновского района г. Казани\"","Ново-Савиновский район"]
[24,"Советский район","МБОУ \"Средняя общеобразовательная школа № 86 с углубленным изучением отдельных предметов\" Советского района г.Казани\"","Лызенцова","В.","В.","Ж","01.02.2008",7,7,38,25.333333333333332,"10.46,7",646.7,25.458481521571052,19.1,33.425,84.21681485490438,null,84.21681485490438,100,"Призер","Киямов АйнурАйратович","Муниципальное бюджетное общеобразовательное учреждение \"Средняя общеобразовательная школа № 86 с углубленным изучением отдельных предметов\" Советского района г.Казани\"","Советский район"]
[25,"Приволжский район","МБОУ \"Татаро-английская гимназия №16\"","Гайнуллина","М.","А.","Ж","17.03.2007",7,7,34,22.666666666666668,"9.56,9",596.9,27.582509633104372,19.3,33.775,84.02417629977103,null,84.02417629977103,100,"Призер","Сивков ВиталийАлександрович","Муниципальное бюджетное общеобразовательное учреждение \"Татаро-английская гимназия №16\"","Приволжский район"]
[26,"Приволжский район","МАОУ \"Гимназия №19\"","Шигапова","А.","И.","Ж","09.06.2006",8,8,41,27.333333333333332,"11.45,0",705,23.353191489361702,18.9,33.075,83.76152482269504,null,83.76152482269504,100,"Призер","Хамидуллин ДинарФаилович","Муниципальное автономное общеобразовательное учреждение \"Гимназия №19\"","Приволжский район"]
[27,"Московский район","МБОУ \"Гимназия № 75\" Московского района г. Казани\"","Мышева","У.","Е.","Ж","02.07.2007",7,7,30,20,"9.06,3",546.3,30.13728720483251,19.1,33.425,83.5622872048325,null,83.5622872048325,100,"Призер","Толометова ЭльвираФлитовна","Муниципальное бюджетное общеобразовательное учреждение \"Гимназия № 75\" Московского района г. Казани\"","Московский район"]
[28,"Кировский район","МБОУ \"Гимназия №152\" Кировского района г.Казани\"","Исхакова","А.","А.","Ж","30.08.2006",8,8,29,19.333333333333332,"9.23,5",563.5,29.217391304347824,19.8,34.65,83.20072463768116,null,83.20072463768116,100,"Призер","Галимова РозаИдрисовна","Муниципальное бюджетное общеобразовательное учреждение \"Гимназия №152\" Кировского района г.Казани\"","Кировский район"]
[29,"Авиастроительный район","МБОУ \"Гимназия №36\" Авиастроительного района г.Казани\"","Смирнова","А.","С.","Ж","16.11.2006",8,8,34,22.666666666666668,"10.23,6",623.6,26.401539448364336,19.5,34.125,83.193206115031,null,83.193206115031,100,"Призер","Мартынова ТатьянаГеоргиевна","Муниципальное бюджетное общеобразовательное учреждение \"Гимназия №36\" Авиастроительного района г.Казани\"","Авиастроительный район"]
[30,"Ново-Савиновский район","МБОУ \"Гимназия № 13 с татарским языком обучения\" Ново-Савиновского района г. Казани","Галявиева","Э.","Э.","Ж","22.09.2006",8,8,34,22.666666666666668,"10.25,5",625.5,26.321342925659472,19.4,33.95,82.93800959232614,null,82.93800959232614,100,"Призер","Баранова АльбинаАльбертовна","Муниципальное бюджетное общеобразовательное учреждение \"Гимназия № 13 с татарским языком обучения\" Ново-Савиновского района г. Казани","Ново-Савиновский район"]
[31,"Кировский район","МБОУ \"Гимназия №4 с татарским языком обучения\" Кировского района г. Казани\"","Кашапова","Р.","Р.","Ж","14.03.2006",8,8,36,24,"9.05,0",545,30.209174311926606,16.3,28.525,82.73417431192661,null,82.73417431192661,100,"Призер","Аюпов РамисРауфович","Муниципальное бюджетное общеобразовательное учреждение \"Гимназия №4 с татарским языком обучения\" Кировского района г. Казани\"","Кировский район"]
[32,"Ново-Савиновский район","МАОУ \"Лицей №146 \"Ресурс\" Ново-Савиновского района г. Казани\"","Воробьева","М.","С.","Ж","13.02.2007",7,7,28,18.666666666666668,"8.52,1",532.1,30.941552339785755,18.9,33.075,82.68321900645242,null,82.68321900645242,100,"Участник","Федорченко Роман Вячеславович","Муниципальное автономное общеобразовательное учреждение \"Лицей №146 \"Ресурс\" Ново-Савиновского района г. Казани\"","Ново-Савиновский район"]
[33,"Советский район","МБОУ \"Средняя общеобразовательная школа № 84 с углубленным изучением иностранных языков\" Советского района г. Казани\"","Корюгина","А.","А.","Ж","01.12.2006",7,7,31,{"$f":"30*K34/45","v":20.666666666666668},"8.56,6",536.6,30.682072307118897,17.9,{"$f":"35*P34/20","v":31.325},82.67373897378556,null,82.67373897378556,100,"Участник","Яшина ТамараНиколаевна","Муниципальное бюджетное общеобразовательное учреждение \"Средняя общеобразовательная школа № 84 с углубленным изучением иностранных языков\" Советского района г. Казани\"","Советский район"]
[34,"Авиастроительный район","МБОУ \"Лицей №145\" Авиастроительного района г.Казани\"","Кузьмина","А.","И.","Ж","01.02.2006",8,8,34,22.666666666666668,"9.49,3",589.3,27.938231800441205,18.3,32.025,82.62989846710786,null,82.62989846710786,100,"Участник","Андреянова НадеждаВячеславовна","Муниципальное бюджетное общеобразовательное учреждение \"Лицей №145\" Авиастроительного района г.Казани\"","Авиастроительный район"]
[35,"Московский район","МБОУ \"Гимназия № 102 имени М.С.Устиновой\" Московского района города Казани\"","Алексеева","А.","Д.","Ж","04.12.2005",8,8,34,22.666666666666668,"9.04,7",544.77,30.22192852029297,16.4,28.7,81.58859518695964,null,81.58859518695964,100,"Участник","Тулупов ИгорьВячеславович","Муниципальное бюджетное общеобразовательное учреждение \"Гимназия № 102 имени М.С.Устиновой\" Московского района города Казани\"","Московский район"]
[36,"Авиастроительный район","МБОУ \"Гимназия №10\" Авиастроительного района г.Казани\"","Фархуллина","Э.","С.","Ж","03.08.2006",8,8,34,22.666666666666668,"10.52,4",652.4,25.236051502145923,19.1,33.425,81.3277181688126,null,81.3277181688126,100,"Участник","Мубаракшина ФаридаМаликовна","Муниципальное бюджетное общеобразовательное учреждение \"Гимназия №10\" Авиастроительного района г.Казани\"","Авиастроительный район"]
[37,"Советский район","МБОУ \"Средняя общеобразовательная школа № 72 с углубленным изучением немецкого языка\" Советского района г.Казани","Моисеева","Е.","А.","Ж","15.05.2007",7,7,27,18,"9.04,1",544.1,30.25914353979048,18.8,32.9,81.15914353979048,null,81.15914353979048,100,"Участник","Яковлева МаринаАлександровна","Муниципальное бюджетное общеобразовательное учреждение \"Средняя общеобразовательная школа № 72 с углубленным изучением немецкого языка\" Советского района г.Казани","Советский район"]
[38,"Вахитовский район","МАОУ \"Лицей №131\"","Зиннатова","А.","Р.","Ж","18.01.2006",8,8,29.8,19.866666666666667,"9.04,9",544.9,30.214718296935217,17.7,30.975,81.05638496360189,null,81.05638496360189,100,"Участник","Асхадуллин РинатФазылович","Муниципальное автономное общеобразовательное учреждение \"Лицей №131\"","Вахитовский район"]
[39,"Советский район","Муниципальное бюджетное общеобразовательное учреждение \"Гимназия №93\" Советского района г. Казани","Зинкичева","Э.","М.","М","13.09.2007",7,7,29,19.333333333333332,"8.56,0",536,{"$f":"IF(N40>0,35*423.6/N40,0)","v":27.66044776119403},19.3,33.775,{"$f":"Q40+O40+L40","v":80.76878109452736},null,80.76878109452736,100,"Участник","Шкаева АлинаИльинична","Муниципальное бюджетное общеобразовательное учреждение \"Гимназия №93\" Советского района г. Казани","Советский район"]
[40,"Советский район","МБОУ \"Гимназия № 8 -Центр образования\" Советского района г. Казани\"","Ибрагимова","Р.","А.","Ж","28.06.2007",7,7,29,19.333333333333332,"9.54,3",594.3,{"$f":"35*470.4/N41","v":27.703180212014136},19.1,33.425,{"$f":"L41+O41+Q41","v":80.46151354534746},null,80.46151354534746,100,"Участник","Корнеева НатальяАлексеевна","Муниципальное бюджетное общеобразовательное учреждение \"Гимназия № 8 -Центр образования\" Советского района г. Казани\"","Советский район"]
[41,"Московский район","МБОУ \"Гимназия № 94\" Московского района г.Казани","Файзрахманова","Л.","М.","Ж","12.01.0006",8,8,32,21.333333333333332,"9.10,4",550.4,29.91279069767442,16.5,28.875,80.12112403100775,null,80.12112403100775,100,"Участник","Павлов АндрейИгоревич","Муниципальное бюджетное общеобразовательное учреждение \"Гимназия № 94\" Московского района г.Казани","Московский район"]
[42,"Кировский район","МБОУ \"Русско-татарская средняя общеобразовательная школа №81 с углубленным изучением отдельных предметов имени В.А.Григорьева\"","Бурмакина","А.","А.","Ж","16.09.2006",8,8,24.4,16.266666666666666,"8.36,1",516.1,31.900794419686108,18.2,31.85,80.01746108635277,null,80.01746108635277,100,"Участник","Черепанова ВалентинаВасильевна","Муниципальное бюджетное общеобразовательное учреждение \"Русско-татарская средняя общеобразовательная школа №81 с углубленным изучением отдельных предметов имени В.А.Григорьева\"","Кировский район"]
[43,"Авиастроительный район","МБОУ \"Средняя общеобразовательная школа № 77\" Авиастроительного района г.Казани\"","Крылова","В.","Н.","Ж","12.12.2006",8,8,31,20.666666666666668,"10.45,0",645,25.525581395348837,19.3,33.775,79.9672480620155,null,79.9672480620155,100,"Участник","Королев АндрейАнатольевич","Муниципальное бюджетное общеобразовательное учреждение \"Средняя общеобразовательная школа № 77\" Авиастроительного района г.Казани\"","Авиастроительный район"]
[44,"Московский район","МБОУ \"Татарская гимназия № 2 имени Шигабутдина Марджани при Казанском Федеральном университете\" Московского района города Казани","Арысланова","Д.","Л.","Ж","15.06.2006",8,8,28,18.666666666666668,"10.15,6",615.6,26.744639376218323,19.3,33.775,79.18630604288498,null,79.18630604288498,100,"Участник","Хабибуллин БакыйГабдулхаевич","Муниципальное бюджетное общеобразовательное учреждение \"Татарская гимназия № 2 имени Шигабутдина Марджани при Казанском Федеральном университете\" Московского района города Казани","Московский район"]
[45,"Советский район","МБОУ \"Лицей № 149 с татарским языком обучения\" Советского района г.Казани\"","Кульмамедова","Л.","Р.","Ж","18.06.2006",8,8,31,20.666666666666668,"10.42,9",642.9,25.608959402706486,18.8,32.9,79.17562606937315,null,79.17562606937315,100,"Участник","Закиров РанисРаисович","Муниципальное бюджетное общеобразовательное учреждение \"Лицей № 149 с татарским языком обучения\" Советского района г.Казани\"","Советский район"]
[46,"Кировский район","МБОУ \"Гимназия №50\" Кировского района г. Казани\"","Сергеева","Р.","Р.","Ж","04.04.2006",8,8,23.8,15.866666666666667,"9.15,9",555.9,29.61683756071236,19.2,33.6,79.08350422737902,null,79.08350422737902,100,"Участник","Мычилкина ЗояДмитриевна","Муниципальное бюджетное общеобразовательное учреждение \"Гимназия №50\" Кировского района г. Казани\"","Кировский район"]
[47,"Ново-Савиновский район","МБОУ \"Средняя общеобразовательная школа №132 с углубленным изучением иностранных языков\" Ново-Савиновского района г. Казани\"","Гиниятова","К.","Р.","Ж","02.08.2008",6,7,20,13.333333333333334,"8.42,8",522.8,31.491966335118594,19.4,33.95,78.77529966845194,null,78.77529966845194,100,"Участник","Хубатуллина АльбинаИльгизовна","Муниципальное бюджетное общеобразовательное учреждение \"Средняя общеобразовательная школа №132 с углубленным изучением иностранных языков\" Ново-Савиновского района г. Казани\"","Ново-Савиновский район"]
[48,"Приволжский район","МБОУ \"Лицей №35 - образовательный центр \"Галактика\" Приволжского района города Казани\"","Кривоносова","С.","Н.","Ж","22.01.2006",8,8,27.4,18.266666666666666,"10.08,9",608.9,27.038922647396948,19.1,33.425,78.73058931406361,null,78.73058931406361,100,"Участник","Хузиахметова ИринаИльинична","Муниципальное бюджетное общеобразовательное учреждение \"Лицей №35 - образовательный центр \"Галактика\" Приволжского района города Казани\"","Приволжский район"]
[49,"Советский район","МБОУ \"Лицей № 159\" Советского района г.Казани\"","Ермохина","Е.","Е.","Ж","02.04.2006",8,8,35,23.333333333333332,"12.52,2",772.2,21.32090132090132,19.3,33.775,78.42923465423465,null,78.42923465423465,100,"Участник","Барлев ВикторАлександрович","Муниципальное бюджетное общеобразовательное учреждение \"Лицей № 159\" Советского района г.Казани\"","Советский район"]
[50,"Московский район","МБОУ \"Гимназия № 9\" Московского района г. Казани\"","Яценко","Д.","Г.","Ж","17.08.2006",8,8,22,14.666666666666666,"8.41,1",521.1,31.594703511801956,18.2,31.85,78.11137017846863,null,78.11137017846863,100,"Участник","Матросова СветланаЛьвовна","Муниципальное бюджетное общеобразовательное учреждение \"Гимназия № 9\" Московского района г. Казани\"","Московский район"]
[51,"Авиастроительный район","МАОУ \"Гимназия №37\" Авиастроительного района г.Казани\"","Маценко","К.","Е.","Ж","28.03.2007",7,7,28,18.666666666666668,"10.25,1",625.1,26.33818589025756,18.8,32.9,77.90485255692423,null,77.90485255692423,100,"Участник","Сарбаев ИгорьЕвгеньевич","Муниципальное автономное общеобразовательное учреждение \"Гимназия №37\" Авиастроительного района г.Казани\"","Авиастроительный район"]
[52,"Приволжский район","МБОУ \"Гимназия№52\"","Иванова","А.","Е.","Ж","04.12.2006",8,8,19.6,13.066666666666666,"9.11,4",551.4,29.85854189336235,19.9,34.825,77.75020856002902,null,77.75020856002902,100,"Участник","Михеев ЭдуардРафаэльевич","Муниципальное бюджетное общеобразовательное учреждение \"Гимназия№52\"","Приволжский район"]
[53,"Советский район","МБОУ \"Средняя общеобразовательная школа № 22 с углубленным изучением отдельных предметов - Центр образования\" Советского района г.Казани\"","Топонцева","В.","М.","Ж","13.12.2006",8,8,24,16,"9.24,2",564.2,29.181141439205952,18.5,32.375,77.55614143920596,null,77.55614143920596,100,"Участник","Жиряева РахиляРашитовна","Муниципальное бюджетное общеобразовательное учреждение \"Средняя общеобразовательная школа № 22 с углубленным изучением отдельных предметов - Центр образования\" Советского района г.Казани\"","Советский район"]
[54,"Авиастроительный район","МБОУ \"Средняя общеобразовательная школа с углубленным изучением отдельных предметов №62\" Авиастроительного района г.Казани\"","Сидорова","В.","А.","Ж","01.06.2006",8,8,27,18,"10.39,2",639.2,25.75719649561952,19.1,33.425,77.18219649561952,null,77.18219649561952,100,"Участник","Косова ЛюбовьНиколаевна","Муниципальное бюджетное общеобразовательное учреждение \"Средняя общеобразовательная школа с углубленным изучением отдельных предметов №62\" Авиастроительного района г.Казани\"","Авиастроительный район"]
[55,"Приволжский район","МБОУ \"Гимназия №21\"","Латыпова","А.","Р.","Ж","07.01.2007",7,7,21.8,14.533333333333333,"8.59,7",539.7,30.505836575875485,18.3,32.025,77.06416990920881,null,77.06416990920881,100,"Участник","Хафизов ИльшатИсхакович","Муниципальное бюджетное общеобразовательное учреждение \"Гимназия №21\"","Приволжский район"]
[56,"Ново-Савиновский район","МБОУ \"Средняя общеобразовательная школа №170 с углубленным изучением отдельных предметов\" Ново-Савиновского района г. Казани\"","Авзалова","А.","И.","Ж","07.03.2006",8,8,26,17.333333333333332,"10.17,6",617.6,26.6580310880829,18.7,32.725,76.71636442141624,null,76.71636442141624,100,"Участник","Саппарова АлександраЮрьевна","Муниципальное бюджетное общеобразовательное учреждение \"Средняя общеобразовательная школа №170 с углубленным изучением отдельных предметов\" Ново-Савиновского района г. Казани\"","Ново-Савиновский район"]
[57,"Авиастроительный район","МБОУ \"Гимназия  №33\" Авиастроительного района г.Казани\"","Маланьева","Ю.","В.","Ж","21.02.2008",6,7,21.8,14.533333333333333,"9.33,2",573.2,28.722958827634333,19,33.25,76.50629216096766,null,76.50629216096766,100,"Участник","Аввакумова ЕкатеринаВикторовна","Муниципальное бюджетное общеобразовательное учреждение \"Гимназия  №33\" Авиастроительного района г.Казани\"","Авиастроительный район"]
[58,"Приволжский район","МБОУ \"Русско-татарская средняя общеобразовательная школа №136\"","Кузнецова","А.","С.","Ж","12.10.2006",8,8,30,20,"10.07,7",607.7,27.092315287148264,16.8,29.4,76.49231528714827,null,76.49231528714827,100,"Участник","Тростогон СергейАнатольевич","Муниципальное бюджетное общеобразовательное учреждение \"Русско-татарская средняя общеобразовательная школа №136\"","Приволжский район"]
[59,"Приволжский район","МБОУ \"Гимназия №40\"","Недвигина","У.","В.","Ж","01.12.2006",8,8,34,22.666666666666668,"11.48,9",708.9,23.224714346170124,17.2,30.1,75.9913810128368,null,75.9913810128368,100,"Участник","Утятникова ЛюдмилаГермановна","Муниципальное бюджетное общеобразовательное учреждение \"Гимназия №40\"","Приволжский район"]
[60,"Советский район","МБОУ \"Средняя общеобразовательная школа № 144 с углубленным изучением отдельных предметов\" Советского района г.Казани\"","Марданшина","С.","А.","Ж","13.07.2006",8,8,25,16.666666666666668,"10.04,1",604.1,27.253765932792582,17.8,31.15,75.07043259945925,null,75.07043259945925,100,"Участник","Худобко ТатьянаЕвгеньевна","Муниципальное бюджетное общеобразовательное учреждение \"Средняя общеобразовательная школа № 144 с углубленным изучением отдельных предметов\" Советского района г.Казани\"","Советский район"]
[61,"Кировский район","МБОУ \"Средняя общеобразовательная школа №137 с углубленным изучением отдельных предметов\"Кировского района г.Казани\"","Елистратова","Э.","Р.","Ж","03.10.2006",8,8,24,16,"10.27,2",627.2,26.249999999999996,18.7,32.725,74.975,null,74.975,100,"Участник","Баранов ВладимирГеннадьевич","Муниципальное бюджетное общеобразовательное учреждение \"Средняя общеобразовательная школа №137 с углубленным изучением отдельных предметов\"Кировского района г.Казани\"","Кировский район"]
[62,"Московский район","МБОУ \"Средняя общеобразовательная школа № 99\" Московского района г. Казани\"","Зиатдинова","С.","Р.","Ж","10.10.2007",7,7,29,19.333333333333332,"10.44,7",644.7,25.53745928338762,17,29.75,74.62079261672095,null,74.62079261672095,100,"Участник","Горулёва СветланаАлександровна","Муниципальное бюджетное общеобразовательное учреждение \"Средняя общеобразовательная школа № 99\" Московского района г. Казани\"","Московский район"]
[63,"Ново-Савиновский район","МБОУ \"Средняя общеобразовательная школа №89 с углубленным изучением отдельных предметов\" Ново-Савиновского района г. Казани\"","Баткова","А.","С.","Ж","21.07.2006",8,8,24,16,"10.11,7",611.7,26.91515448749387,18.1,31.675,74.59015448749386,null,74.59015448749386,100,"Участник","Гатина ОльгаЮрьевна","Муниципальное бюджетное общеобразовательное учреждение \"Средняя общеобразовательная школа №89 с углубленным изучением отдельных предметов\" Ново-Савиновского района г. Казани\"","Ново-Савиновский район"]
[64,"Авиастроительный район","МБОУ \"Средняя общеобразовательная школа № 54 с углубленным изучением отдельных предметов\" Авиастроительного района г.Казани\"","Данилова","С.","П.","Ж","28.07.2006",8,8,14.8,9.866666666666667,"8.51,4",531.4,30.982310876928867,19.2,33.6,74.44897754359553,null,74.44897754359553,100,"Участник","Шинкарева ЛидияВикторовна","Муниципальное бюджетное общеобразовательное учреждение \"Средняя общеобразовательная школа № 54 с углубленным изучением отдельных предметов\" Авиастроительного района г.Казани\"","Авиастроительный район"]
[65,"Советский район","МБОУ \"Средняя общеобразовательная русско-татарская школа № 111\" Советского района г.Казани\"","Зарипова","Д.","Р.","Ж","28.01.2007",7,7,28,{"$f":"30*K66/45","v":18.666666666666668},"10.39,3",639.3,25.75316752698264,16.6,{"$f":"35*P66/20","v":29.05},73.4698341936493,null,73.4698341936493,100,"Участник","Клюкин ИванАлександрович","Муниципальное бюджетное общеобразовательное учреждение \"Средняя общеобразовательная русско-татарская школа № 111\" Советского района г.Казани\"","Советский район"]
[66,"Советский район","МБОУ \"Средняя общеобразовательная школа № 174\" Советского района г.Казани\"","Алексеева","А.","Р.","Ж","18.01.2007",7,7,15.6,10.4,"8.37,4",517.4,31.8206416698879,16.8,29.4,71.6206416698879,null,71.6206416698879,100,"Участник","Гильфанетдинов ИрекТауфикович","Муниципальное бюджетное общеобразовательное учреждение \"Средняя общеобразовательная школа № 174\" Советского района г.Казани\"","Советский район"]
[67,"Московский район","МБОУ \"Гимназия № 122 имени Ж.А.Зайцевой\"Московского района г. Казани\"","Галиева","С.","И.","Ж","08.12.2006",7,7,16,10.666666666666666,"9.10,9",550.9,29.8856416772554,17.7,30.975,71.52730834392207,null,71.52730834392207,100,"Участник","Вальтонов ВикторНиколаевич","Муниципальное бюджетное общеобразовательное учреждение \"Гимназия № 122 имени Ж.А.Зайцевой\"Московского района г. Казани\"","Московский район"]
[68,"Ново-Савиновский район","МБОУ \"Гимназия №7 имени Героя России А.В.Козина\" Ново-Савиновского района г. Казани\"","Гумерова","С.","И.","Ж","31.10.2007",7,7,21,14,"11.31,2",691.2,23.819444444444443,19.1,33.425,71.24444444444444,null,71.24444444444444,100,"Участник","Калашникова КсенияДмитриевна","Муниципальное бюджетное общеобразовательное учреждение \"Гимназия №7 имени Героя России А.В.Козина\" Ново-Савиновского района г. Казани\"","Ново-Савиновский район"]
[69,"Ново-Савиновский район","МБОУ \"Средняя общеобразовательная татарско-русская школа №71 с углубленным изучением отдельных предметов\" Ново-Савиновского района г. Казани\"","Хабибуллина","К.","Д.","Ж","21.11.2006",8,8,15.8,10.533333333333333,"8.59,3",539.3,30.5284628221769,17.1,29.925,70.98679615551023,null,70.98679615551023,100,"Участник","Мухаметшин АзатГазизович","Муниципальное бюджетное общеобразовательное учреждение \"Средняя общеобразовательная татарско-русская школа №71 с углубленным изучением отдельных предметов\" Ново-Савиновского района г. Казани\"","Ново-Савиновский район"]
[70,"Московский район","МБОУ \"Средняя общеобразовательная татарско-русская школа № 34 \" Московского района г.Казани\"","Малышева","К.","А.","Ж","29.08.2007",7,7,13.2,8.8,"9.30,4",570.4,28.863955119214587,18.8,32.9,70.5639551192146,null,70.5639551192146,100,"Участник","Волков АндрейВячеславович","Муниципальное бюджетное общеобразовательное учреждение \"Средняя общеобразовательная татарско-русская школа № 34 \" Московского района г.Казани\"","Московский район"]
[71,"Ново-Савиновский район","МБОУ \"Средняя общеобразовательная школа №91\" Ново-Савиновского района г. Казани\"","Мухаметгалиева","В.","Э.","Ж","03.02.2006",8,8,19,12.666666666666666,"10.28,4",628.4,26.199872692552514,18,31.5,70.36653935921919,null,70.36653935921919,100,"Участник","Варин РадикНависович","Муниципальное бюджетное общеобразовательное учреждение \"Средняя общеобразовательная школа №91\" Ново-Савиновского района г. Казани\"","Ново-Савиновский район"]
[72,"Авиастроительный район","МБОУ \"Средняя общеобразовательная школа №119\" Авиастроительного района г.Казани\"","Евсеева","А.","А.","Ж","10.10.2007",7,7,21.8,14.533333333333333,"12.55,6",775.6,{"$f":"35*470.4/N73","v":21.227436823104693},19.7,34.475,{"$f":"L73+O73+Q73","v":70.23577015643804},null,70.23577015643804,100,"Участник","Павлова АльбинаНиколаевна","Муниципальное бюджетное общеобразовательное учреждение \"Средняя общеобразовательная школа №119\" Авиастроительного района г.Казани\"","Авиастроительный район"]
[73,"Советский район","МБОУ \"Средняя общеобразовательная школа № 15 с углубленным изучением отдельных предметов\" Советского района города Казани\"","Завьялова","В.","А.","Ж","30.01.2007",7,7,20.6,13.733333333333333,"9.58,4",598.4,27.51336898395722,16.2,28.35,69.59670231729055,null,69.59670231729055,100,"Участник","Каримов МаратРамилевич","Муниципальное бюджетное общеобразовательное учреждение \"Средняя общеобразовательная школа № 15 с углубленным изучением отдельных предметов\" Советского района города Казани\"","Советский район"]
[74,"Ново-Савиновский район","МБОУ \"Средняя общеобразовательная школа №49\" Ново-Савиновского района г.Казани\"","Габбазова","Р.","Т.","Ж","14.02.2007",7,7,20.8,13.866666666666667,"9.54,9",594.9,27.67523953605648,16,28,69.54190620272314,null,69.54190620272314,100,"Участник","Сухарев ИгорьАлександрович","Муниципальное бюджетное общеобразовательное учреждение \"Средняя общеобразовательная школа №49\" Ново-Савиновского района г.Казани\"","Ново-Савиновский район"]
[75,"Приволжский район","МБОУ \"Гимназия №18 с татарским языком обучения\" Приволжского района г.Казани\"","Ибатуллина","С.","И.","Ж","10.07.2006",7,7,19.2,12.8,"9.37,0",577,28.533795493934143,16.1,28.175,69.50879549393414,null,69.50879549393414,100,"Участник","Максимова ЕленаИвановна","Муниципальное бюджетное общеобразовательное учреждение \"Гимназия №18 с татарским языком обучения\" Приволжского района г.Казани\"","Приволжский район"]
[76,"Кировский район","МБОУ \"Средняя общеобразовательная школа №153\" Кировского района г. Казани","Клевина","А.","Р.","Ж","16.04.2007",7,7,13.8,9.2,"10.14,0",614,26.814332247557005,19,33.25,69.26433224755701,null,69.26433224755701,100,"Участник","Мандрыка ЛарисаАнатольевна","Муниципальное бюджетное общеобразовательное учреждение \"Средняя общеобразовательная школа №153\" Кировского района г. Казани","Кировский район"]
[77,"Советский район","МБОУ \"Многопрофильная полилингвальная гимназия №180\" Советского района г. Казани\"","Фалеева","Д.","Р.","Ж","09.01.2009",5,7,9.6,6.4,"8.08,8",488.8,33.682487725040914,16.6,29.05,69.13248772504092,null,69.13248772504092,100,"Участник","Хабибуллина РамиляФаритовна","Муниципальное бюджетное общеобразовательное учреждение \"Многопрофильная полилингвальная гимназия №180\" Советского района г. Казани\"","Советский район"]
[78,"Приволжский район","МБОУ \"Средняя общеобразовательная школа №42\"","Хамадиярова","А.","И.","Ж","26.04.2007",7,7,15.8,10.533333333333333,"9.12,9",552.9,29.777536625067825,16.4,28.7,69.01086995840116,null,69.01086995840116,100,"Участник","Хикматуллин МударисСултанович","Муниципальное бюджетное общеобразовательное учреждение \"Средняя общеобразовательная школа №42\"","Приволжский район"]
[79,"Авиастроительный район","МБОУ \"Гимназия №36\" Авиастроительного района г.Казани\"","Александрова","А.","А.","Ж","28.04.2007",7,7,16.2,10.8,"10.49,5",649.5,25.348729792147807,18.7,32.725,68.8737297921478,null,68.8737297921478,100,"Участник","Мартынова ТатьянаГеоргиевна","Муниципальное бюджетное общеобразовательное учреждение \"Гимназия №36\" Авиастроительного района г.Казани\"","Авиастроительный район"]
[80,"Приволжский район","МАОУ \"Гимназия № 139\"","Трошина","Е.","Д.","Ж","22.10.2007",7,7,14.6,9.733333333333333,"10.42,2",642.2,25.63687324820928,18.8,32.9,68.27020658154261,null,68.27020658154261,100,"Участник","Галкин ВикторЮрьевич","Муниципальное автономное общеобразовательное учреждение \"Гимназия № 139\"","Приволжский район"]
[81,"Ново-Савиновский район","МБОУ \"Средняя общеобразовательная школа №85 с углубленным изучением отдельных предметов\" Ново-Савиновского района г.Казани\"","Евграфова","А.","А.","Ж","03.11.2005",8,8,14.2,9.466666666666667,"10.28,2",628.2,26.208213944603628,18.6,32.55,68.2248806112703,null,68.2248806112703,100,"Участник","Хабибрахманов БулатГабдрахманович","Муниципальное бюджетное общеобразовательное учреждение \"Средняя общеобразовательная школа №85 с углубленным изучением отдельных предметов\" Ново-Савиновского района г.Казани\"","Ново-Савиновский район"]
[82,"Приволжский район","МБОУ «Многопрофильный лицей №186 - \"Перспектива\" Приволжского района г. Казани","Хайбуллина","С.","И.","Ж","12.12.2007",7,7,20.2,13.466666666666667,"10.57,8",657.8,25.028884159318945,16.7,29.225,67.72055082598561,null,67.72055082598561,100,"Участник","Сабирзянов РустемНагимуллович","Муниципальное бюджетное общеобразовательное учреждение «Многопрофильный лицей №186 - \"Перспектива\" Приволжского района г. Казани","Приволжский район"]
[83,"Авиастроительный район","МБОУ \"Гимназия №5\"","Зайнуллина","М.","И.","Ж","12.05.2007",7,7,20.8,13.866666666666667,"9.40,6",580.6,28.3568722011712,14.5,25.375,67.59853886783787,null,67.59853886783787,100,"Участник","Шакирова НазияАглулловна","Муниципальное бюджетное общеобразовательное учреждение \"Гимназия №5\"","Авиастроительный район"]
[84,"Ново-Савиновский район","МБОУ \"Средняя общеобразовательная школа №9 с углубленным изучением английского языка\" Ново-Савиновского района г. Казани\"","Мухаметзянова","Р.","А.","Ж","02.03.2007",7,7,16,10.666666666666666,"10.11,3",611.3,26.93276623589073,17,29.75,67.3494329025574,null,67.3494329025574,100,"Участник","Зарипов ЗуфарЗиннурович","Муниципальное бюджетное общеобразовательное учреждение \"Средняя общеобразовательная школа №9 с углубленным изучением английского языка\" Ново-Савиновского района г. Казани\"","Ново-Савиновский район"]
[85,"Советский район","МБОУ \"Многопрофильная школа №181\" Советского района г. Казани\"","Буторина","А.","С.","Ж","11.08.2007",7,7,12,8,"8.51,6",531.6,30.970654627539503,15.5,27.125,66.0956546275395,null,66.0956546275395,100,"Участник","Садыков ТимурАйдарович","Муниципальное бюджетное общеобразовательное учреждение \"Многопрофильная школа №181\" Советского района г. Казани\"","Советский район"]
[86,"Ново-Савиновский район","МБОУ \"Средняя общеобразовательная школа №143 с углубленным изучением отдельных предметов\" Ново-Савиновского района г.Казани\"","Фарзалеева","Я.","Р.","Ж","21.07.2008",6,8,11.8,7.866666666666666,"8.53,3",533.3,30.871929495593477,15.6,27.3,66.03859616226015,null,66.03859616226015,100,"Участник","Сабитов ИльнурНаилевич","Муниципальное бюджетное общеобразовательное учреждение \"Средняя общеобразовательная школа №143 с углубленным изучением отдельных предметов\" Ново-Савиновского района г.Казани\"","Ново-Савиновский район"]
[87,"Вахитовский район","МБОУ \"Гимназия №27 с татарским языком обучения\"","Шайхелисламова","А.","И.","Ж","17.04.2007",7,7,9.6,6.4,"8.56,3",536.3,30.69923550251725,16.3,28.525,65.62423550251725,null,65.62423550251725,100,"Участник","Галиуллин КамильМасхутович","Муниципальное бюджетное общеобразовательное учреждение \"Гимназия №27 с татарским языком обучения\"","Вахитовский район"]
[88,"Советский район","МАОУ \"Гимназия №141\" Советского района г.Казани","Бутусова","Е.","В.","Ж","20.12.2006",8,8,14,9.333333333333334,"12.03,1",723.1,22.76863504356244,18,31.5,63.601968376895776,null,63.601968376895776,100,"Участник","Митяшкин АнтонОлегович","Муниципальное автономное общеобразовательное учреждение \"Гимназия №141\" Советского района г.Казани","Советский район"]
[89,"Приволжский район","МБОУ \"Средняя общеобразовательная школа №69\"","Володина","А.","И.","Ж","12.01.2006",8,8,13,8.666666666666666,"12.16,9",736.9,22.34224453792916,17.5,30.625,61.633911204595826,null,61.633911204595826,100,"Участник","Еремина ЛюдмилаГеннадьевна","Муниципальное бюджетное общеобразовательное учреждение \"Средняя общеобразовательная школа №69\"","Приволжский район"]
[90,"Вахитовский район","МБОУ \"Средняя общеобразовательная школа №98 (татарско-русская)\"","Дебердиева","А.","Р.","Ж","29.11.2006",7,7,38,25.333333333333332,0,null,null,19,33.25,58.58333333333333,null,58.58333333333333,100,"Участник","Сагдатуллин ГаббасГабдельбариевич","Муниципальное бюджетное общеобразовательное учреждение \"Средняя общеобразовательная школа №98 (татарско-русская)\"","Вахитовский район"]
[91,"Советский район","МБОУ \"Средняя общеобразовательная русско-татарская школа № 161\" Советского района г.Казани\"","Омельченко","А.","В.","Ж","21.06.2007",7,7,29,19.333333333333332,"8.43,4",523.4,{"$f":"35*470.4/N92","v":31.455865494841422},0,0,50.789198828174754,null,50.789198828174754,100,"Участник","Горохов МаксимВитальевич","Муниципальное бюджетное общеобразовательное учреждение \"Средняя общеобразовательная русско-татарская школа № 161\" Советского района г.Казани\"","Советский район"]
[92,"Советский район","МБОУ \"Средняя общеобразовательная школа № 101 имени П.А.Полушкина - Центр образования\" Советского района г.Казани","Логанина","Э.","Н.","Ж","23.12.2007",7,7,19.2,12.8,"7.50,4",470.4,35,0,0,47.8,null,47.8,100,"Участник","Ермакова НадеждаЕгоровна","Муниципальное бюджетное общеобразовательное учреждение \"Средняя общеобразовательная школа № 101 имени П.А.Полушкина - Центр образования\" Советского района г.Казани","Советский район"]
[93,"Авиастроительный район","МБОУ \"Гимназия №14\" Авиастроительного района г.Казани\"","Ивашкевич","Е.","С.","Ж","30.10.2007",7,7,29,19.333333333333332,"9.54,3",594.3,27.703180212014136,0,0,47.03651354534747,null,47.03651354534747,100,"Участник","Платонов ВячеславПетрович","Муниципальное бюджетное общеобразовательное учреждение \"Гимназия №14\" Авиастроительного района г.Казани\"","Авиастроительный район"]
[94,"Кировский район","МБОУ \"Гимназия №3 с татарским языком обучения\" Кировского района г.Казани\"","Мусина","А.","И.","Ж","25.07.2007",7,7,27,18,"9.47,6",587.6,28.019060585432264,0,0,46.019060585432264,null,46.019060585432264,100,"Участник","Гумеров РусланРинатович","Муниципальное бюджетное общеобразовательное учреждение \"Гимназия №3 с татарским языком обучения\" Кировского района г.Казани\"","Кировский район"]
[95,"Ново-Савиновский район","МБОУ \"Лицей №177\" Ново-Савиновского района г. Казани\"","Бикьянова","А.","Р.","Ж","23.10.2006",8,8,26,17.333333333333332,"9.37,5",577.5,28.509090909090908,null,null,45.842424242424244,null,45.842424242424244,100,"Участник","Валиев МарсельМидхатович","Муниципальное бюджетное общеобразовательное учреждение \"Лицей №177\" Ново-Савиновского района г. Казани\"","Ново-Савиновский район"]
[96,"Московский район","МБОУ \"Гимназия №20\"Гармония\" Московского района г.Казани\"","Шувалова","Д.","В.","Ж","04.10.2006",7,7,31,20.666666666666668,"12.28,5",748.5,21.995991983967937,null,null,42.662658650634604,null,42.662658650634604,100,"Участник","Патрин АлексейАндреевич","Муниципальное бюджетное общеобразовательное учреждение \"Гимназия №20\"Гармония\" Московского района г.Казани\"","Московский район"]
[97,"Советский район","МБОУ \"Средняя общеобразовательная школа №167 с углубленным изучением отдельных предметов\" Советского района г. Казани","Юсупова","А.","А.","Ж","04.11.2005",8,8,22,{"$f":"30*K98/45","v":14.666666666666666},"9.51,1",591.1,27.853155134495008,0,{"$f":"35*P98/20","v":0},42.519821801161676,null,42.519821801161676,100,"Участник","Чугунова ГалинаВладимировна","Муниципальное бюджетное общеобразовательное учреждение \"Средняя общеобразовательная школа №167 с углубленным изучением отдельных предметов\" Советского района г. Казани","Советский район"]
[98,"Приволжский район","МБОУ \"Русско-татарская средняя общеобразовательная школа №129\"","Замалеева","Л.","И.","Ж","24.02.2006",8,8,19.6,13.066666666666666,"10.54,9",654.9,25.139715987173616,0,{"$f":"35*P99/20","v":0},38.20638265384028,null,38.20638265384028,100,"Участник","Хабибуллин РавкатЯкубович","Муниципальное бюджетное общеобразовательное учреждение \"Русско-татарская средняя общеобразовательная школа №129\"","Приволжский район"]
[99,"Приволжский район","МБОУ \"Татарско-русская средняя общеобразовательная школа №10 с углубленным изучением отдельных предметов\"","Зарипова","С.","А.","Ж","28.02.2006",8,8,21,14,"11.45,4",705.4,23.33994896512617,0,{"$f":"35*P100/20","v":0},37.33994896512617,null,37.33994896512617,100,"Участник","Габдрахманов РафисРашитович","Муниципальное бюджетное общеобразовательное учреждение \"Татарско-русская средняя общеобразовательная школа №10 с углубленным изучением отдельных предметов\"","Приволжский район"]
[100,"Кировский район","МБОУ \"Средняя общеобразовательная школа №32\" Кировского района г. Казани\"","Кадаш","К.","А.","Ж","20.08.2006",8,8,10,6.666666666666667,"10.32,8",632.8,26.01769911504425,0,{"$f":"35*P101/20","v":0},32.684365781710916,null,32.684365781710916,100,"Участник","Хасанов РавильГалимзянович","Муниципальное бюджетное общеобразовательное учреждение \"Средняя общеобразовательная школа №32\" Кировского района г. Казани\"","Кировский район"]
[101,"Приволжский район","МБОУ \"Средняя общеобразовательная школа №73\"","Мошнина","М.","А.","Ж","09.04.2007",8,8,13,8.666666666666666,"11.55,3",715.3,23.01691597930938,null,null,31.683582645976045,null,31.683582645976045,100,"Участник","Кривоногов АртёмДмитриевич","Муниципальное бюджетное общеобразовательное учреждение \"Средняя общеобразовательная школа №73\"","Приволжский район"]
[102,"Советский район","МБОУ \"Средняя общеобразовательная школа № 169\" Советского района г.Казани\"","Сайфутдинова","Г.","Р.","Ж","25.05.2006",8,8,32,21.333333333333332,{"$nulls":4},{"$f":"35*P103/20","v":0},21.333333333333332,null,21.333333333333332,100,"Участник","Харитонова ЛюбовьНиколаевна","Муниципальное бюджетное общеобразовательное учреждение \"Средняя общеобразовательная школа № 169\" Советского района г.Казани\"","Советский район"]
[103,"Ново-Савиновский район","МБОУ \"Лицей №23\" Ново-Савиновского района г.Казани\"","Низаметдинова","А.","Р.","Ж","15.11.2006",8,8,21.8,14.533333333333333,0,{"$nulls":3},{"$f":"35*P104/20","v":0},14.533333333333333,null,14.533333333333333,100,"Участник","Хабриева ГелюзаРишатовна","Муниципальное бюджетное общеобразовательное учреждение \"Лицей №23\" Ново-Савиновского района г.Казани\"","Ново-Савиновский район"]
[104,"Кировский район","МБОУ \"Военно-патриотический образовательный центр - школа № 67\" Кировского района города Казани","Курбангалиева","А.","Б.","Ж","04.08.2006",8,8,13.2,8.8,{"$nulls":4},{"$f":"35*P105/20","v":0},{"$f":"L105+O105+Q105","v":8.8},null,8.8,100,"Участник","Муртазин ИльгизарИсмагилович","Муниципальное бюджетное общеобразовательное учреждение \"Военно-патриотический образовательный центр - школа № 67\" Кировского района города Казани","Кировский район"]

{"sheet":"7-8 мал","index":1,"n_rows":85,"n_cols":25,"rows_kept":85}
["№","Район","Школа","Фамилия","Имя","Отчество","пол","д.р.","класс","класс участия","теория","Балл","легкая атлетика","пересчет","балл","гимнастика","балл","Общий балл","Апел.балл","Итог балл","Макс.балл","Статус","Учитель","Наименование ОУ","Район"]
[1,"Ново-Савиновский район","Муниципальное бюджетное общеобразовательное учреждение \"Средняя общеобразовательная татарско-русская школа №113 с углубленным изучением отдельных предметов имени Героя России М.Р.Ахметшина\" Ново-Савиновского района г. Казани\"","Валиуллин","А.","Р.","М","2007-10-03",7,7,42.6,{"$f":"30*K2/45","v":28.4},"7.39,0",459,{"$f":"IF(N2>0,35*423.6/N2,0)","v":32.30065359477124},18.8,{"$f":"35*P2/20","v":32.9},{"$f":"Q2+O2+L2","v":93.60065359477125},null,93.60065359477125,100,"Победитель","Рыжов АлександрВасильевич","Муниципальное бюджетное общеобразовательное учреждение \"Средняя общеобразовательная татарско-русская школа №113 с углубленным изучением отдельных предметов имени Героя России М.Р.Ахметшина\" Ново-Савиновского района г. Казани\"","Ново-Савиновский район"]
[2,"Ново-Савиновский район","Государственное автономное общеобразовательное учреждение \"Полилингвальный комплекс \"Адымнар - путь к знаниям и согласию\" г. Казани\"","Солодовников","С.","А.","М","04.12.2005",8,8,37,24.666666666666668,"7.17,5",437.5,33.888,17.8,31.15,89.70466666666667,null,89.70466666666667,100,"Победитель","Штыкова ОльгаВладимировна","Государственное автономное общеобразовательное учреждение \"Полилингвальный комплекс \"Адымнар - путь к знаниям и согласию\" г. Казани\"","Ново-Савиновский район"]
[3,"Ново-Савиновский район","Инженерный лицей-интернат КНИТУ-КАИ","Смоленков","Е.","В.","М","05.10.2005",8,8,38,25.333333333333332,"7.47,5",467.5,31.71336898395722,18.1,31.675,88.72170231729055,null,88.72170231729055,100,"Победитель","Пестова АленаВалерьевна","Инженерный лицей-интернат КНИТУ-КАИ","Ново-Савиновский район"]
[4,"Вахитовский район","Государственное бюджетное общеобразовательное учреждение \"Казанская кадетская школа-интернат имени Героя Советского Союза Б.К.Кузнецова\"","Бирюлев","Д.","Д.","М","26.05.2006",8,8,41,27.333333333333332,"8.12,4",502.4,29.51035031847134,18.2,31.85,88.69368365180468,null,88.69368365180468,100,"Победитель","Козлов ЮрийИванович","Государственное бюджетное общеобразовательное учреждение \"Казанская кадетская школа-интернат имени Героя Советского Союза Б.К.Кузнецова\"","Вахитовский район"]
[5,"Приволжский район","Муниципальное бюджетное общеобразовательное учреждение \"Лицей №35 - образовательный центр \"Галактика\" Приволжского района города Казани\"","Буров","М.","Н.","М","10.11.2005",8,8,34.8,23.2,"7.40,9",460.9,32.16749837274897,18.6,32.55,87.91749837274897,null,87.91749837274897,100,"Призер","Хузиахметова ИринаИльинична","Муниципальное бюджетное общеобразовательное учреждение \"Лицей №35 - образовательный центр \"Галактика\" Приволжского района города Казани\"","Приволжский район"]
[6,"Приволжский район","Муниципальное бюджетное общеобразовательное учреждение \"Лицей №83 - Центр образования\"","Ключников","Е.","С.","М","17.05.2006",8,8,38,25.333333333333332,"8.40,0",520,28.51153846153846,19.4,33.95,87.7948717948718,null,87.7948717948718,100,"Призер","Терентьев ВалерийКонстантинович","Муниципальное бюджетное общеобразовательное учреждение \"Лицей №83 - Центр образования\"","Приволжский район"]
[7,"Вахитовский район","Муниципальное бюджетное общеобразовательное учреждение \"Средняя общеобразовательная школа №98 (татарско-русская)\"","Кротов","Г.","А.","М","27.02.2006",8,8,36,24,"7.46,1",466.1,31.808624758635485,18.1,31.675,87.48362475863549,null,87.48362475863549,100,"Призер","Сагдатуллин ГаббасГабдельбариевич","Муниципальное бюджетное общеобразовательное учреждение \"Средняя общеобразовательная школа №98 (татарско-русская)\"","Вахитовский район"]
[8,"Приволжский район","Муниципальное автономное общеобразовательное учреждение \"Гимназия №19\"","Зайдуллин","А.","А.","М","14.11.2006",7,7,41,27.333333333333332,"9.16,9",556.9,26.622373855270247,19.1,33.425,87.38070718860358,null,87.38070718860358,100,"Призер","Зиятдинов ВадимРинатович","Муниципальное автономное общеобразовательное учреждение \"Гимназия №19\"","Приволжский район"]
[9,"Советский район","Муниципальное бюджетное общеобразовательное учреждение \"Лицей № 159\" Советского района г.Казани\"","Салахов","К.","И.","М","24.07.2006",8,8,35,23.333333333333332,"8.09,9",489.9,30.263319044703003,18.5,32.375,85.97165237803634,null,85.97165237803634,100,"Призер","Барлев ВикторАлександрович","Муниципальное бюджетное общеобразовательное учреждение \"Лицей № 159\" Советского района г.Казани\"","Советский район"]
[10,"Ново-Савиновский район","Муниципальное бюджетное общеобразовательное учреждение \"Гимназия № 13 с татарским языком обучения\" Ново-Савиновского района г. Казани","Волков","А.","О.","М","05.01.2006",8,8,36,24,"8.11,8",491.8,30.146400976006507,17.5,30.625,84.7714009760065,null,84.7714009760065,100,"Призер","Баранова АльбинаАльбертовна","Муниципальное бюджетное общеобразовательное учреждение \"Гимназия № 13 с татарским языком обучения\" Ново-Савиновского района г. Казани","Ново-Савиновский район"]
[11,"Советский район","Муниципальное бюджетное общеобразовательное учреждение \"Средняя общеобразовательная школа № 84 с углубленным изучением иностранных языков\" Советского района г. Казани\"","Ярмиев","Э.","Ф.","М","29.07.2006",8,8,34,22.666666666666668,"7.21,0",441,33.61904761904762,15.9,27.825,84.1107142857143,null,84.1107142857143,100,"Призер","Яшина ТамараНиколаевна","Муниципальное бюджетное общеобразовательное учреждение \"Средняя общеобразовательная школа № 84 с углубленным изучением иностранных языков\" Советского района г. Казани\"","Советский район"]
[12,"Московский район","Муниципальное бюджетное общеобразовательное учреждение \"Средняя общеобразовательная школа № 99\" Московского района г. Казани\"","Лаухин","Д.","Д.","М","23.05.2007",7,7,33,22,"7.38,7",458.7,32.32177894048398,16.7,29.225,83.54677894048399,null,83.54677894048399,100,"Призер","Горулёва СветланаАлександровна","Муниципальное бюджетное общеобразовательное учреждение \"Средняя общеобразовательная школа № 99\" Московского района г. Казани\"","Московский район"]
[13,"Ново-Савиновский район","Муниципальное бюджетное общеобразовательное учреждение \"Средняя общеобразовательная татарско-русская школа №113 с углубленным изучением отдельных предметов имени Героя России М.Р.Ахметшина\" Ново-Савиновского района г. Казани\"","Кузиков","М.","Д.","М","30.12.2006",7,7,33.6,22.4,"8.26,0",506,29.300395256916996,18,31.5,83.200395256917,null,83.200395256917,100,"Призер","Рыжов АлександрВасильевич","Муниципальное бюджетное общеобразовательное учреждение \"Средняя общеобразовательная татарско-русская школа №113 с углубленным изучением отдельных предметов имени Героя России М.Р.Ахметшина\" Ново-Савиновского района г. Казани\"","Ново-Савиновский район"]
[14,"Приволжский район","Муниципальное автономное общеобразовательное учреждение \"Гимназия №19\"","Генч","М.","Л.","М","02.03.2007",7,7,41,27.333333333333332,"9.49,9",589.9,25.133073402271574,17.5,30.625,83.0914067356049,null,83.0914067356049,100,"Призер","Зиятдинов ВадимРинатович","Муниципальное автономное общеобразовательное учреждение \"Гимназия №19\"","Приволжский район"]
[15,"Вахитовский район","Муниципальное автономное общеобразовательное учреждение \"Средняя общеобразовательная школа №39 с углубленным изучением английского языка\"","Хисматуллин","Э.","Р.","М","01.04.2007",7,7,38,25.333333333333332,"8.55,0",535,27.71214953271028,16.8,29.4,82.4454828660436,null,82.4454828660436,100,"Призер","Хусаинов ДаниярДинисламович","Муниципальное автономное общеобразовательное учреждение \"Средняя общеобразовательная школа №39 с углубленным изучением английского языка\"","Вахитовский район"]
[16,"Советский район","Муниципальное бюджетное общеобразовательное учреждение «Гимназия № 183» Советского района г.Казани","Идиятуллин","Р.","Э.","М","15.09.2006",8,8,24.8,16.533333333333335,"7.26,4",446.4,33.21236559139785,18.5,32.375,82.12069892473119,null,82.12069892473119,100,"Призер","Шамгунова ВикторияАлексеевна","Муниципальное бюджетное общеобразовательное учреждение «Гимназия № 183» Советского района г.Казани","Советский район"]
[17,"Кировский район","Муниципальное бюджетное общеобразовательное учреждение \"Русско-татарская средняя общеобразовательная школа №81 с углубленным изучением отдельных предметов имени В.А.Григорьева\"","Греков","И.","А.","М","20.04.2007",7,7,33.4,22.266666666666666,"8.07,8",487.8,30.39360393603936,16.6,29.05,81.71027060270603,null,81.71027060270603,100,"Призер","Черепанова ВалентинаВасильевна","Муниципальное бюджетное общеобразовательное учреждение \"Русско-татарская средняя общеобразовательная школа №81 с углубленным изучением отдельных предметов имени В.А.Григорьева\"","Кировский район"]
[18,"Вахитовский район","Государственное бюджетное общеобразовательное учреждение \"Казанская кадетская школа-интернат имени Героя Советского Союза Б.К.Кузнецова\"","Никулин","Ф.","С.","М","29.05.2007",7,7,28.6,19.066666666666666,"7.46,1",466.1,31.808624758635485,17.6,30.8,81.67529142530215,null,81.67529142530215,100,"Призер","Шамаев ДмитрийГеннадьевич","Государственное бюджетное общеобразовательное учреждение \"Казанская кадетская школа-интернат имени Героя Советского Союза Б.К.Кузнецова\"","Вахитовский район"]
[19,"Московский район","Муниципальное бюджетное общеобразовательное учреждение \"Гимназия № 75\" Московского района г. Казани\"","Ханов","Г.","Е.","М","28.10.2007",7,7,30,20,"8.40,9",520.9,28.462276828565944,18.8,32.9,81.36227682856594,null,81.36227682856594,100,"Призер","Толометова ЭльвираФлитовна","Муниципальное бюджетное общеобразовательное учреждение \"Гимназия № 75\" Московского района г. Казани\"","Московский район"]
[20,"Ново-Савиновский район","Муниципальное бюджетное общеобразовательное учреждение \"Средняя общеобразовательная школа №132 с углубленным изучением иностранных языков\" Ново-Савиновского района г. Казани\"","Шогин","Д.","Р.","М","22.09.2006",8,8,28,18.666666666666668,"7.30,4",450.4,32.91740674955595,17,29.75,81.33407341622262,null,81.33407341622262,100,"Призер","Корюкина ОльгаВикторовна","Муниципальное бюджетное общеобразовательное учреждение \"Средняя общеобразовательная школа №132 с углубленным изучением иностранных языков\" Ново-Савиновского района г. Казани\"","Ново-Савиновский район"]
[21,"Кировский район","Муниципальное бюджетное общеобразовательное учреждение \"Гимназия №152\" Кировского района г.Казани\"","Валеев","М.","И.","М","13.12.2005",8,8,34.2,22.8,"9.24,8",564.8,26.250000000000004,18.3,32.025,81.075,null,81.075,100,"Призер","Цветова ГалинаФедоровна","Муниципальное бюджетное общеобразовательное учреждение \"Гимназия №152\" Кировского района г.Казани\"","Кировский район"]
[22,"Вахитовский район","Муниципальное бюджетное общеобразовательное учреждение \"Средняя общеобразовательная школа №12\"","Алякин","С.","Г.","М","11.03.2007",7,7,28,18.666666666666668,"8.18,2",498.2,29.759132878362106,18.6,32.55,80.97579954502878,null,80.97579954502878,100,"Призер","Аверьянов ОлегАлександрович","Муниципальное бюджетное общеобразовательное учреждение \"Средняя общеобразовательная школа №12\"","Вахитовский район"]
[23,"Приволжский район","Муниципальное бюджетное общеобразовательное учреждение \"Гимназия №6\"","Нагимов","А.","А.","М","04.01.2006",8,8,36.2,24.133333333333333,"7.52,7",472.7,31.364501798180665,14.3,25.025,80.522835131514,null,80.522835131514,100,"Призер","Халимов ИльнурФиргатович","Муниципальное бюджетное общеобразовательное учреждение \"Гимназия №6\"","Приволжский район"]
[24,"Приволжский район","Муниципальное бюджетное общеобразовательное учреждение \"Татаро-английская гимназия №16\"","Хазиев","К.","Р.","М","17.05.2006",8,8,28,18.666666666666668,"8.25,0",505,29.358415841584158,18.3,32.025,80.05008250825082,null,80.05008250825082,100,"Призер","Лотфуллина РозаРафаиловна","Муниципальное бюджетное общеобразовательное учреждение \"Татаро-английская гимназия №16\"","Приволжский район"]
[25,"Московский район","Муниципальное бюджетное общеобразовательное учреждение \"Гимназия №20\"Гармония\" Московского района г.Казани\"","Миннахметов","Т.","А.","М","07.02.2007",7,7,31,20.666666666666668,"7.03,6",423.6,35,13.8,24.15,79.81666666666666,null,79.81666666666666,100,"Призер","Патрин АлексейАндреевич","Муниципальное бюджетное общеобразовательное учреждение \"Гимназия №20\"Гармония\" Московского района г.Казани\"","Московский район"]
[26,"Вахитовский район","Государственное бюджетное общеобразовательное учреждение \"Казанская кадетская школа-интернат имени Героя Советского Союза Б.К.Кузнецова\"","Галиев ","Д.",null,"м","2006-01-26",null,8,30,20,"8.10,2",490.2,30.244798041615667,16.8,29.4,79.64479804161567,null,79.64479804161567,100,"Участник","Козлов Юрий Иванович","Государственное бюджетное общеобразовательное учреждение \"Казанская кадетская школа-интернат имени Героя Советского Союза Б.К.Кузнецова\"","Вахитовский район"]
[27,"Ново-Савиновский район","Муниципальное бюджетное общеобразовательное учреждение \"Средняя общеобразовательная школа №9 с углубленным изучением английского языка\" Ново-Савиновского района г. Казани\"","Зарипов","К.","З.","М","03.02.2006",8,8,22.6,15.066666666666666,"7.48,2",468.2,31.66595472020504,18.7,32.725,79.45762138687171,null,79.45762138687171,100,"Участник","Зарипов ЗуфарЗиннурович","Муниципальное бюджетное общеобразовательное учреждение \"Средняя общеобразовательная школа №9 с углубленным изучением английского языка\" Ново-Савиновского района г. Казани\"","Ново-Савиновский район"]
[28,"Советский район","Муниципальное бюджетное общеобразовательное учреждение \"Гимназия № 8 -Центр образования\" Советского района г. Казани\"","Калинин","К.","А.","М","02.08.2007",7,7,26,17.333333333333332,"7.34,5",454.5,32.62046204620462,16.8,29.4,79.35379537953796,null,79.35379537953796,100,"Участник","Корнеева НатальяАлексеевна","Муниципальное бюджетное общеобразовательное учреждение \"Гимназия № 8 -Центр образования\" Советского района г. Казани\"","Советский район"]
[29,"Приволжский район","Муниципальное бюджетное общеобразовательное учреждение \"Гимназия №21\"","Максимов","В.","В.","М","07.01.2006",8,8,18,12,"7.39,1",459.1,32.293617948159444,19.6,34.3,78.59361794815945,null,78.59361794815945,100,"Участник","Хафизов ИльшатИсхакович","Муниципальное бюджетное общеобразовательное учреждение \"Гимназия №21\"","Приволжский район"]
[30,"Авиастроительный район","Муниципальное бюджетное общеобразовательное учреждение \"Средняя общеобразовательная школа с углубленным изучением отдельных предметов №62\" Авиастроительного района г.Казани\"","Феоктистов","А.","Ю.","М","19.06.2006",8,8,24.6,16.4,"8.28,4",508.4,29.162077104642016,18,31.5,77.06207710464201,null,77.06207710464201,100,"Участник","Косова ЛюбовьНиколаевна","Муниципальное бюджетное общеобразовательное учреждение \"Средняя общеобразовательная школа с углубленным изучением отдельных предметов №62\" Авиастроительного района г.Казани\"","Авиастроительный район"]
[31,"Ново-Савиновский район","Муниципальное автономное общеобразовательное учреждение \"Лицей №146 \"Ресурс\" Ново-Савиновского района г. Казани\"","Иващенко","Д.","А.","М","30.10.2007",6,7,31,20.666666666666668,"8.46,7",526.7,28.148851338522874,16,28,76.81551800518955,null,76.81551800518955,100,"Участник","Белянин АлексейАнатольевич","Муниципальное автономное общеобразовательное учреждение \"Лицей №146 \"Ресурс\" Ново-Савиновского района г. Казани\"","Ново-Савиновский район"]
[32,"Приволжский район","Общеобразовательная школа-интернат \"IT- лицей федерального государственного автономного образовательного учреждения высшего образования \"Казанский (Приволжский) федеральный университет\"","Юнусов","Б.","Э.","М","05.03.2006",8,8,36,24,"9.52,9",592.9,25.00590318772137,15.8,27.65,76.65590318772136,null,76.65590318772136,100,"Участник","Игнатьев СергейАлександрович","Общеобразовательная школа-интернат \"IT- лицей федерального государственного автономного образовательного учреждения высшего образования \"Казанский (Приволжский) федеральный университет\"","Приволжский район"]
[33,"Авиастроительный район","Муниципальное бюджетное общеобразовательное учреждение \"Средняя общеобразовательная школа № 77\" Авиастроительного района г.Казани\"","Дудукин","А.","С.","М","01.07.2006",8,8,30,{"$f":"30*K34/45","v":20},"8.33,7",513.7,{"$f":"IF(N34>0,35*423.6/N34,0)","v":28.8612030367919},15.7,{"$f":"35*P34/20","v":27.475},{"$f":"Q34+O34+L34","v":76.3362030367919},null,76.3362030367919,100,"Участник","Королев АндрейАнатольевич","Муниципальное бюджетное общеобразовательное учреждение \"Средняя общеобразовательная школа № 77\" Авиастроительного района г.Казани\"","Авиастроительный район"]
[34,"Кировский район","Муниципальное бюджетное общеобразовательное учреждение \"Татарская гимназия №15\" Кировского района г.Казани","Давлетшин","А.","А.","М","31.05.2006",8,8,28,18.666666666666668,"8.00,4",480.4,30.861781848459618,15.2,26.6,76.1284485151263,null,76.1284485151263,100,"Участник","Фатыхов РусланРустамович","Муниципальное бюджетное общеобразовательное учреждение \"Татарская гимназия №15\" Кировского района г.Казани","Кировский район"]
[35,"Советский район","МБОУ\"Многопрофильный лицей №185\"","Шаихов","А.","Р.","М","03.07.2009",6,7,30,20,"10.24,4",624.4,23.744394618834082,18.3,32.025,75.76939461883408,null,75.76939461883408,100,"Участник","Апачева РезедаСаитбатталовна","МБОУ\"Многопрофильный лицей №185\"","Советский район"]
[36,"Кировский район","Муниципальное бюджетное общеобразовательное учреждение \"Средняя общеобразовательная школа №70 с углубленным изучениемотдельных предметов\" Кировского района г. Казани\"","Степанов","Н.","М.","М","27.03.2006",8,8,20,13.333333333333334,"7.48,6",468.6,31.63892445582586,17.4,30.45,75.42225778915919,null,75.42225778915919,100,"Участник","Семенова АринаВладимировна","Муниципальное бюджетное общеобразовательное учреждение \"Средняя общеобразовательная школа №70 с углубленным изучениемотдельных предметов\" Кировского района г. Казани\"","Кировский район"]
[37,"Ново-Савиновский район","Муниципальное бюджетное общеобразовательное учреждение \"Средняя общеобразовательная школа №170 с углубленным изучением отдельных предметов\" Ново-Савиновского района г. Казани\"","Садыков","Т.","А.","М","13.11.2006",7,7,21.2,14.133333333333333,"9.07,6",547.6,27.074506939371805,19,33.25,74.45784027270514,null,74.45784027270514,100,"Участник","Сусленкова ЮлияВладимировна","Муниципальное бюджетное общеобразовательное учреждение \"Средняя общеобразовательная школа №170 с углубленным изучением отдельных предметов\" Ново-Савиновского района г. Казани\"","Ново-Савиновский район"]
[38,"Ново-Савиновский район","Муниципальное бюджетное общеобразовательное учреждение \"Гимназия №7 имени Героя России А.В.Козина\" Ново-Савиновского района г. Казани\"","Акмаев","Е.","А.","М","21.04.2006",8,8,26,17.333333333333332,"7.48,5",468.5,31.645677694770544,14.4,25.2,74.17901102810387,null,74.17901102810387,100,"Участник","Калашникова КсенияДмитриевна","Муниципальное бюджетное общеобразовательное учреждение \"Гимназия №7 имени Героя России А.В.Козина\" Ново-Савиновского района г. Казани\"","Ново-Савиновский район"]
[39,"Авиастроительный район","Муниципальное бюджетное общеобразовательное учреждение \"Средняя общеобразовательная школа №60\" Авиастроительного района г.Казани\"","Купцов","Р.","Д.","М","25.08.2007",7,7,18.2,12.133333333333333,"9.05,5",545.5,27.17873510540788,19.7,34.475,73.78706843874122,null,73.78706843874122,100,"Участник","Семагина СветланаВладимировна","Муниципальное бюджетное общеобразовательное учреждение \"Средняя общеобразовательная школа №60\" Авиастроительного района г.Казани\"","Авиастроительный район"]
[40,"Вахитовский район","Государственное бюджетное общеобразовательное учреждение \"Казанская кадетская школа-интернат имени Героя Советского Союза Б.К.Кузнецова\"","Якубов","Т.","Р.","М","28.10.2007",7,7,21,14,"8.06,7",486.7,30.462297102938155,16.3,28.525,72.98729710293816,null,72.98729710293816,100,"Участник","Камалиев ТалгатФаргатович","Государственное бюджетное общеобразовательное учреждение \"Казанская кадетская школа-интернат имени Героя Советского Союза Б.К.Кузнецова\"","Вахитовский район"]
[41,"Приволжский район","Муниципальное бюджетное общеобразовательное учреждение «Многопрофильный лицей №186 - \"Перспектива\" Приволжского района г. Казани","Шилов","Д.","А.","М","22.06.2007",7,7,17.2,11.466666666666667,"9.05,0",545,27.20366972477064,19.5,34.125,72.7953363914373,null,72.7953363914373,100,"Участник","Сабирзянов РустемНагимуллович","Муниципальное бюджетное общеобразовательное учреждение «Многопрофильный лицей №186 - \"Перспектива\" Приволжского района г. Казани","Приволжский район"]
[42,"Приволжский район","Муниципальное автономное общеобразовательное учреждение \"Гимназия № 139\"","Земдиханов","Э.","Э.","М","04.10.2007",7,7,27,18,"9.12,4",552.4,26.839246922519916,15.8,27.65,72.48924692251991,null,72.48924692251991,100,"Участник","Галкин ВикторЮрьевич","Муниципальное автономное общеобразовательное учреждение \"Гимназия № 139\"","Приволжский район"]
[43,"Советский район","Муниципальное бюджетное общеобразовательное учреждение \"Средняя общеобразовательная школа № 72 с углубленным изучением немецкого языка\" Советского района г.Казани","Яковлев","Н.","А.","М","19.07.2007",7,7,18.6,12.4,"8.13,1",493.1,30.06692354491989,17,29.75,72.2169235449199,null,72.2169235449199,100,"Участник","Яковлева МаринаАлександровна","Муниципальное бюджетное общеобразовательное учреждение \"Средняя общеобразовательная школа № 72 с углубленным изучением немецкого языка\" Советского района г.Казани","Советский район"]
[44,"Кировский район","Муниципальное бюджетное общеобразовательное учреждение \"Средняя общеобразовательная школа №153\" Кировского района г. Казани","Шафигуллин","Т.","А.","М","21.01.2008",6,7,19.6,13.066666666666666,"8.02,4",482.4,30.733830845771145,16.2,28.35,72.15049751243781,null,72.15049751243781,100,"Участник","Мандрыка ЛарисаАнатольевна","Муниципальное бюджетное общеобразовательное учреждение \"Средняя общеобразовательная школа №153\" Кировского района г. Казани","Кировский район"]
[45,"Советский район","Муниципальное бюджетное общеобразовательное учреждение \"Средняя общеобразовательная школа № 22 с углубленным изучением отдельных предметов - Центр образования\" Советского района г.Казани\"","Самигуллин","М.","Х.","М","29.09.2007",7,7,21.8,14.533333333333333,"8.28,0",508,29.18503937007874,16,28,71.71837270341207,null,71.71837270341207,100,"Участник","Жиряева РахиляРашитовна","Муниципальное бюджетное общеобразовательное учреждение \"Средняя общеобразовательная школа № 22 с углубленным изучением отдельных предметов - Центр образования\" Советского района г.Казани\"","Советский район"]
[46,"Ново-Савиновский район","Муниципальное бюджетное общеобразовательное учреждение \"Средняя общеобразовательная школа №132 с углубленным изучением иностранных языков\" Ново-Савиновского района г. Казани\"","Килов","Д.","О.","М","23.09.2006",8,8,29.8,19.866666666666667,"10.36,5",636.5,23.2930086410055,15.9,27.825,70.98467530767218,null,70.98467530767218,100,"Участник","Корюкина ОльгаВикторовна","Муниципальное бюджетное общеобразовательное учреждение \"Средняя общеобразовательная школа №132 с углубленным изучением иностранных языков\" Ново-Савиновского района г. Казани\"","Ново-Савиновский район"]
[47,"Вахитовский район","Муниципальное бюджетное общеобразовательное учреждение \"Гимназия №96\"","Хван","А.","Д.","М","07.05.2006",8,8,15.6,10.4,"8.46,2",526.2,28.17559863169897,17.1,29.925,68.50059863169898,null,68.50059863169898,100,"Участник","Файсханов РузильРинатович","Муниципальное бюджетное общеобразовательное учреждение \"Гимназия №96\"","Вахитовский район"]
[48,"Московский район","Муниципальное бюджетное общеобразовательное учреждение \"Гимназия № 9\" Московского района г. Казани\"","Саламатов","Т.","А.","М","07.12.2006",7,7,14.8,9.866666666666667,"9.24,2",564.2,26.27791563275434,18.4,32.2,68.344582299421,null,68.344582299421,100,"Участник","Зиновьева ЕвгенияВладимировна","Муниципальное бюджетное общеобразовательное учреждение \"Гимназия № 9\" Московского района г. Казани\"","Московский район"]
[49,"Ново-Савиновский район","Муниципальное бюджетное общеобразовательное учреждение \"Средняя общеобразовательная школа №89 с углубленным изучением отдельных предметов\" Ново-Савиновского района г. Казани\"","Щеголев","Л.","А.","М","01.05.2007",7,7,13.8,9.2,"8.21,5",501.5,29.563310069790628,16.6,29.05,67.81331006979063,null,67.81331006979063,100,"Участник","Гатина ОльгаЮрьевна","Муниципальное бюджетное общеобразовательное учреждение \"Средняя общеобразовательная школа №89 с углубленным изучением отдельных предметов\" Ново-Савиновского района г. Казани\"","Ново-Савиновский район"]
[50,"Авиастроительный район","Муниципальное бюджетное общеобразовательное учреждение \"Средняя общеобразовательная школа № 54 с углубленным изучением отдельных предметов\" Авиастроительного района г.Казани\"","Пикин","О.","Е.","М","27.12.2005",8,8,16.2,10.8,"7.44,7",464.7,31.904454486765655,14.3,25.025,67.72945448676565,null,67.72945448676565,100,"Участник","Шинкарева ЛидияВикторовна","Муниципальное бюджетное общеобразовательное учреждение \"Средняя общеобразовательная школа № 54 с углубленным изучением отдельных предметов\" Авиастроительного района г.Казани\"","Авиастроительный район"]
[51,"Московский район","Муниципальное бюджетное общеобразовательное учреждение \"Гимназия № 122 имени Ж.А.Зайцевой\"Московского района г. Казани\"","Бакеев","Д.","Д.","М","19.09.2006",8,8,10.8,7.2,"7.28,6",448.6,33.04948729380294,15.7,27.475,67.72448729380294,null,67.72448729380294,100,"Участник","Вальтонов ВикторНиколаевич","Муниципальное бюджетное общеобразовательное учреждение \"Гимназия № 122 имени Ж.А.Зайцевой\"Московского района г. Казани\"","Московский район"]
[52,"Ново-Савиновский район","Муниципальное бюджетное общеобразовательное учреждение \"Средняя общеобразовательная школа №85 с углубленным изучением отдельных предметов\" Ново-Савиновского района г.Казани\"","Бедов","И.","В.","М","09.02.2006",8,8,12.8,8.533333333333333,"8.20,1",500.1,29.64607078584283,16.5,28.875,67.05440411917617,null,67.05440411917617,100,"Участник","Хабибрахманов БулатГабдрахманович","Муниципальное бюджетное общеобразовательное учреждение \"Средняя общеобразовательная школа №85 с углубленным изучением отдельных предметов\" Ново-Савиновского района г.Казани\"","Ново-Савиновский район"]
[53,"Московский район","Муниципальное бюджетное общеобразовательное учреждение `Средняя общеобразовательная школа №64` Московского района г.Казани","Гарипов","И.","Р.","М","19.03.2006",8,8,10.8,7.2,"8.02,1",482.1,30.752955818294957,16.2,28.35,66.30295581829496,null,66.30295581829496,100,"Участник","Чуприн ДмитрийЛеонидович","Муниципальное бюджетное общеобразовательное учреждение `Средняя общеобразовательная школа №64` Московского района г.Казани","Московский район"]
[54,"Советский район","Муниципальное бюджетное общеобразовательное учреждение \"Средняя общеобразовательная школа № 101 имени П.А.Полушкина - Центр образования\" Советского района г.Казани","Аюбов","К.","Д.","М","26.06.2006",8,8,9.2,6.133333333333334,"8.31,5",511.5,28.98533724340176,17.1,29.925,65.0436705767351,null,65.0436705767351,100,"Участник","Гарифзянова РезедаАльбертовна","Муниципальное бюджетное общеобразовательное учреждение \"Средняя общеобразовательная школа № 101 имени П.А.Полушкина - Центр образования\" Советского района г.Казани","Советский район"]
[55,"Приволжский район","Муниципальное бюджетное общеобразовательное учреждение \"Средняя общеобразовательная школа № 173\"","Гатиятуллин","И.","А.","М","16.01.2008",7,7,18.6,12.4,"9.19,2",559.2,26.512875536480685,14.7,25.725,64.63787553648069,null,64.63787553648069,100,"Участник","Тагирова РиммаШамильевна","Муниципальное бюджетное общеобразовательное учреждение \"Средняя общеобразовательная школа № 173\"","Приволжский район"]
[56,"Ново-Савиновский район","Муниципальное бюджетное общеобразовательное учреждение \"Гимназия №179 - центр образования\" Ново-Савиновского района г.Казани\"","Маньков","М.","О.","М","30.06.2006",8,8,15,10,"9.24,5",564.5,26.263950398582818,15.8,27.65,63.91395039858281,null,63.91395039858281,100,"Участник","Ваниев ЭнверСаидович","Муниципальное бюджетное общеобразовательное учреждение \"Гимназия №179 - центр образования\" Ново-Савиновского района г.Казани\"","Ново-Савиновский район"]
[57,"Советский район","Муниципальное бюджетное общеобразовательное учреждение \"Средняя общеобразовательная школа № 174\" Советского района г.Казани\"","Никитцов","Д.","С.","М","11.09.2007",7,7,13,8.666666666666666,"8.28,9",508.9,29.133425034387898,14.7,25.725,63.52509170105456,null,63.52509170105456,100,"Участник","Гильфанетдинов ИрекТауфикович","Муниципальное бюджетное общеобразовательное учреждение \"Средняя общеобразовательная школа № 174\" Советского района г.Казани\"","Советский район"]
[58,"Приволжский район","Муниципальное бюджетное общеобразовательное учреждение \"Лицей №78 \"Фарватер\"","Галеев","А.","Р.","М","27.05.2007",7,7,18,12,"10.21,0",621,23.8743961352657,15.4,26.95,62.8243961352657,null,62.8243961352657,100,"Участник","Кожилкина ЮлияВладимировна","Муниципальное бюджетное общеобразовательное учреждение \"Лицей №78 \"Фарватер\"","Приволжский район"]
[59,"Приволжский район","Муниципальное бюджетное общеобразовательное учреждение \"Средняя общеобразовательная школа №42\"","Тугашев","П.","В.","М","24.12.2006",7,7,8.8,5.866666666666666,"8.48,1",528.1,28.0742283658398,16.2,28.35,62.29089503250647,null,62.29089503250647,100,"Участник","Хикматуллин МударисСултанович","Муниципальное бюджетное общеобразовательное учреждение \"Средняя общеобразовательная школа №42\"","Приволжский район"]
[60,"Авиастроительный район","Муниципальное бюджетное общеобразовательное учреждение \"Лицей №26 им. М.Джалиля\" Авиастроительного района г.Казани\"","Поликарпов","Я.","С.","М","07.05.2007",7,7,8.2,5.466666666666666,"9.29,3",569.3,26.042508343579836,15.2,26.6,58.1091750102465,null,58.1091750102465,100,"Участник","Мухаммадеева РалинаАльбертовна","Муниципальное бюджетное общеобразовательное учреждение \"Лицей №26 им. М.Джалиля\" Авиастроительного района г.Казани\"","Авиастроительный район"]
[61,"Советский район","Муниципальное бюджетное общеобразовательное учреждение \"Средняя общеобразовательная школа № 169\" Советского района г.Казани\"","Шарафутдинов","И.","Д.","М","07.04.2007",7,7,31,20.666666666666668,"8.18,8",498.8,29.723336006415398,0,0,50.390002673082066,null,50.390002673082066,100,"Участник","Ахмедьярова ГузельРафисовна","Муниципальное бюджетное общеобразовательное учреждение \"Средняя общеобразовательная школа № 169\" Советского района г.Казани\"","Советский район"]
[62,"Московский район","Муниципальное бюджетное общеобразовательное учреждение \"Гимназия № 94\" Московского района г.Казани","Суворов","Г.","Ю.","М","16.02.2006",7,7,26,17.333333333333332,"7.33,6",453.6,32.68518518518518,0,0,50.01851851851852,null,50.01851851851852,100,"Участник","Павлов АндрейИгоревич","Муниципальное бюджетное общеобразовательное учреждение \"Гимназия № 94\" Московского района г.Казани","Московский район"]
[63,"Кировский район","МБОУ \"Политехнический лицей № 182\"","Антонов","В.","П.","М","16.11.2007",7,7,30,20,"8.37,2",517.2,28.665893271461716,0,0,48.66589327146171,null,48.66589327146171,100,"Участник","Антонова СнежанаНиколаевна","МБОУ \"Политехнический лицей № 182\"","Кировский район"]
[64,"Авиастроительный район","Муниципальное бюджетное общеобразовательное учреждение \"Гимназия №5\"","Хайруллин","А.","Р.","М","18.06.2006",8,8,28,18.666666666666668,"8.26,1",506.1,29.29460580912863,0,0,47.9612724757953,null,47.9612724757953,100,"Участник","Шакирова НазияАглулловна","Муниципальное бюджетное общеобразовательное учреждение \"Гимназия №5\"","Авиастроительный район"]
[65,"Советский район","Муниципальное бюджетное общеобразовательное учреждение \"Средняя общеобразовательная школа № 15 с углубленным изучением отдельных предметов\" Советского района города Казани\"","Михеев","Т.","Д.","М","02.02.2007",7,7,25.2,{"$f":"30*K66/45","v":16.8},"8.40,3",520.3,{"$f":"IF(N66>0,35*423.6/N66,0)","v":28.49509898135691},0,{"$f":"35*P66/20","v":0},{"$f":"Q66+O66+L66","v":45.295098981356915},null,45.295098981356915,100,"Участник","Каримов МаратРамилевич","Муниципальное бюджетное общеобразовательное учреждение \"Средняя общеобразовательная школа № 15 с углубленным изучением отдельных предметов\" Советского района города Казани\"","Советский район"]
[66,"Советский район","Муниципальное бюджетное общеобразовательное учреждение \"Средняя общеобразовательная школа № 171 с углубленным изучением отдельных предметов\" Советского района г.Казани","Давлетьяров","К.","Р.","М","15.09.2006",8,8,23,15.333333333333334,"8.31,1",511.1,29.00802191351986,0,0,44.34135524685319,null,44.34135524685319,100,"Участник","Хусаинов ИльшатАсхатович","Муниципальное бюджетное общеобразовательное учреждение \"Средняя общеобразовательная школа № 171 с углубленным изучением отдельных предметов\" Советского района г.Казани","Советский район"]
[67,"Приволжский район","Муниципальное бюджетное общеобразовательное учреждение \"Татарско-русская средняя общеобразовательная школа №10 с углубленным изучением отдельных предметов\"","Сабиров","Р.","Ф.","М","20.08.2006",8,8,23,15.333333333333334,"8.39,0",519,28.566473988439306,0,0,43.89980732177264,null,43.89980732177264,100,"Участник","Габдрахманов РафисРашитович","Муниципальное бюджетное общеобразовательное учреждение \"Татарско-русская средняя общеобразовательная школа №10 с углубленным изучением отдельных предметов\"","Приволжский район"]
[68,"Советский район","Муниципальное бюджетное общеобразовательное учреждение \"Многопрофильная полилингвальная гимназия №180\" Советского района г. Казани\"","Игтеев","М.","М.","М","04.11.2008",6,7,16.6,11.066666666666668,"7.35,1",455.1,32.57745550428477,0,0,43.64412217095144,null,43.64412217095144,100,"Участник","Вахитов РусланИльсурович","Муниципальное бюджетное общеобразовательное учреждение \"Многопрофильная полилингвальная гимназия №180\" Советского района г. Казани\"","Советский район"]
[69,"Ново-Савиновский район","Муниципальное бюджетное общеобразовательное учреждение \"Средняя общеобразовательная школа №9 с углубленным изучением английского языка\" Ново-Савиновского района г. Казани\"","Гайнуллин","Г.","И.","М","25.10.2005",8,8,16.8,11.2,"7.45,9",465.9,31.8222794591114,0,0,43.0222794591114,null,43.0222794591114,100,"Участник","Зарипов ЗуфарЗиннурович","Муниципальное бюджетное общеобразовательное учреждение \"Средняя общеобразовательная школа №9 с углубленным изучением английского языка\" Ново-Савиновского района г. Казани\"","Ново-Савиновский район"]
[70,"Вахитовский район","Муниципальное бюджетное общеобразовательное учреждение \"Средняя общеобразовательная школа №14\"","Шигапов","А.","С.","М","10.10.2006",8,8,33,22,"12.08,3",728.3,20.35699574351229,null,null,42.356995743512286,null,42.356995743512286,100,"Участник","Файзуллин ЭдуардЗавдатович","Муниципальное бюджетное общеобразовательное учреждение \"Средняя общеобразовательная школа №14\"","Вахитовский район"]
[71,"Авиастроительный район","Муниципальное бюджетное общеобразовательное учреждение \"Гимназия №14\" Авиастроительного района г.Казани\"","Газизуллин","Д.","Н.","М","21.10.2006",7,7,23,15.333333333333334,"9.12,2",552.2,26.848967765302426,0,{"$f":"35*P72/20","v":0},42.18230109863576,null,42.18230109863576,100,"Участник","Платонов ВячеславПетрович","Муниципальное бюджетное общеобразовательное учреждение \"Гимназия №14\" Авиастроительного района г.Казани\"","Авиастроительный район"]
[72,"Советский район","Муниципальное бюджетное общеобразовательное учреждение \"Многопрофильная школа №181\" Советского района г. Казани\"","Хайбуллин","К.","И.","М","19.09.2007",7,7,18.2,12.133333333333333,"8.54,9",534.9,27.717330342120025,0,{"$f":"35*P73/20","v":0},39.85066367545336,null,39.85066367545336,100,"Участник","Копотилова ЕкатеринаСергеевна","Муниципальное бюджетное общеобразовательное учреждение \"Многопрофильная школа №181\" Советского района г. Казани\"","Советский район"]
[73,"Приволжский район","Муниципальное бюджетное общеобразовательное учреждение \"Средняя общеобразовательная школа №24 с углубленным изучением отдельных предметов\"","Елькин","И.","С.","М","30.01.2006",8,8,16.6,11.066666666666668,"8.52,4",532.4,27.84748309541698,null,null,38.914149762083646,null,38.914149762083646,100,"Участник","Лукьянов АлексейЮрьевич","Муниципальное бюджетное общеобразовательное учреждение \"Средняя общеобразовательная школа №24 с углубленным изучением отдельных предметов\"","Приволжский район"]
[74,"Ново-Савиновский район","Муниципальное бюджетное общеобразовательное учреждение \"Средняя общеобразовательная школа №49\" Ново-Савиновского района г.Казани\"","Иванов","С.",null,"М","11.11.2006",7,7,11.6,7.733333333333333,"7.56,2",476.2,31.133977320453592,0,{"$f":"35*P75/20","v":0},38.86731065378692,null,38.86731065378692,100,"Участник","Сухарев ИгорьАлександрович","Муниципальное бюджетное общеобразовательное учреждение \"Средняя общеобразовательная школа №49\" Ново-Савиновского района г.Казани\"","Ново-Савиновский район"]
[75,"Приволжский район","Муниципальное бюджетное общеобразовательное учреждение \"Средняя общеобразовательная школа №69\"","Губайдуллин","А.","Ш.","М","05.10.2006",8,8,15.2,10.133333333333333,"8.40,5",520.5,28.48414985590778,0,0,38.61748318924111,null,38.61748318924111,100,"Участник","Еремина ЛюдмилаГеннадьевна","Муниципальное бюджетное общеобразовательное учреждение \"Средняя общеобразовательная школа №69\"","Приволжский район"]
[76,"Приволжский район","Муниципальное бюджетное общеобразовательное учреждение \"Средняя общеобразовательная школа №73\"","Саляхиев","К.","Р.","М","29.03.2006",8,8,16.8,11.2,"9.21,8",561.8,26.390174439302246,null,0,37.590174439302245,null,37.590174439302245,100,"Участник","Кривоногов АртёмДмитриевич","Муниципальное бюджетное общеобразовательное учреждение \"Средняя общеобразовательная школа №73\"","Приволжский район"]
[77,"Приволжский район","Муниципальное автономное общеобразовательное учреждение \"Гимназия № 139\"","Хамидуллин","Т.","Р.","М","24.12.2006",8,8,10.6,7.066666666666666,"8.34,1",514.1,28.838747325423068,0,0,35.905413992089734,null,35.905413992089734,100,"Участник","Долгих ВячеславЮрьевич","Муниципальное автономное общеобразовательное учреждение \"Гимназия № 139\"","Приволжский район"]
[78,"Ново-Савиновский район","Муниципальное бюджетное общеобразовательное учреждение \"Средняя общеобразовательная татарско-русская школа №71 с углубленным изучением отдельных предметов\" Ново-Савиновского района г. Казани\"","Николаев","И.","Н.","М","28.11.2006",7,7,9.2,6.133333333333334,"9.59,7",599.7,24.722361180590294,0,0,30.855694513923627,null,30.855694513923627,100,"Участник","Мухаметшин АзатГазизович","Муниципальное бюджетное общеобразовательное учреждение \"Средняя общеобразовательная татарско-русская школа №71 с углубленным изучением отдельных предметов\" Ново-Савиновского района г. Казани\"","Ново-Савиновский район"]
[79,"Советский район","Муниципальное бюджетное общеобразовательное учреждение \"Гимназия №175\" Советского района г.Казани","Курепанов","Е.","С.","М","16.02.2006",8,8,41,27.333333333333332,null,null,0,null,0,27.333333333333332,null,27.333333333333332,100,"Участник","Кириллова ОльгаВладимировна","Муниципальное бюджетное общеобразовательное учреждение \"Гимназия №175\" Советского района г.Казани","Советский район"]
[80,"Авиастроительный район","Муниципальное бюджетное общеобразовательное учреждение \"Лицей №145\" Авиастроительного района г.Казани\"","Чеплыгов","А.","А.","М","25.10.2005",8,8,36,24,null,null,0,null,0,24,null,24,100,"Участник","Афоньшин ВладимирВикторович","Муниципальное бюджетное общеобразовательное учреждение \"Лицей №145\" Авиастроительного района г.Казани\"","Авиастроительный район"]
[81,"Кировский район","Муниципальное бюджетное общеобразовательное учреждение \"Русско-татарская средняя общеобразовательная школа №81 с углубленным изучением отдельных предметов имени В.А.Григорьева\"","Тарасов","М.","В.","М","03.11.2006",8,8,32.4,21.6,null,null,0,null,0,21.6,null,21.6,100,"Участник","Черепанова ВалентинаВасильевна","Муниципальное бюджетное общеобразовательное учреждение \"Русско-татарская средняя общеобразовательная школа №81 с углубленным изучением отдельных предметов имени В.А.Григорьева\"","Кировский район"]
[82,"Приволжский район","Муниципальное бюджетное общеобразовательное учреждение \"Гимназия №40\"","Хайруллин","М.","Д.","М","03.10.2007",7,7,32,21.333333333333332,null,null,0,null,0,21.333333333333332,null,21.333333333333332,100,"Участник","Колчин ИгорьИванович","Муниципальное бюджетное общеобразовательное учреждение \"Гимназия №40\"","Приволжский район"]
[83,"Авиастроительный район","Муниципальное автономное общеобразовательное учреждение \"Гимназия №37\" Авиастроительного района г.Казани\"","Прокофьев","О.","В.","М","02.10.2006",7,7,29.4,19.6,null,null,0,null,0,19.6,null,19.6,100,"Участник","Курбанова НаиляАхметовна","Муниципальное автономное общеобразовательное учреждение \"Гимназия №37\" Авиастроительного района г.Казани\"","Авиастроительный район"]
[84,"Вахитовский район","Муниципальное бюджетное общеобразовательное учреждение \"Гимназия №27 с татарским языком обучения\"","Алексеев","А.","А.","М","16.01.2006",8,8,12.2,8.133333333333333,null,null,0,null,0,8.133333333333333,null,8.133333333333333,100,"Участник","Галиуллин КамильМасхутович","Муниципальное бюджетное общеобразовательное учреждение \"Гимназия №27 с татарским языком обучения\"","Вахитовский район"]

{"sheet":"9-11 дев","index":2,"n_rows":112,"n_cols":25,"rows_kept":112}
["№","Район","Школа","Фамилия","Имя","Отчество","пол","д.р.","класс","класс участия","теория","Балл","легкая атлетика","пересчет","балл","гимнастика","балл","Общий балл","Апел.балл","Итог балл","Макс.балл","Статус","Учитель","Наименование ОУ","Район"]
[1,"Приволжский район","МБОУ «Многопрофильный лицей №186 - \"Перспектива\" Приволжского района г. Казани","Трофимова ","В.","А.","Ж","2005-01-05",9,9,48,{"$f":"30*K2/57","v":25.263157894736842},"8.16,7",496.7,{"$f":"35*486.7/N2","v":34.29534930541575},19.2,{"$f":"35*P2/20","v":33.6},{"$f":"L2+O2+Q2","v":93.1585072001526},null,93.1585072001526,100,"Победитель","Булатов Ильдар Фаритович","МБОУ «Многопрофильный лицей №186 - \"Перспектива\" Приволжского района г. Казани","Приволжский район"]
[2,"Московский район","МБОУ \"Татарская гимназия № 17 имени Г.Ибрагимова\" Московского района г.Казани\"","Мингазова","Э.","Ф.","Ж","27.06.2005",9,9,46,24.210526315789473,"9.07,5",547.5,31.11324200913242,19.4,33.95,89.27376832492189,null,89.27376832492189,100,"Победитель","Шайдуллин МаратСаматович","Муниципальное бюджетное общеобразовательное учреждение \"Татарская гимназия № 17 имени Г.Ибрагимова\" Московского района г.Казани\"","Московский район"]
[3,"Ново-Савиновский район","МБОУ \"Средняя общеобразовательная школа №132 с углубленным изучением иностранных языков\" Ново-Савиновского района г. Казани\"","Вдовина","А.","И.","Ж","14.05.2003",11,11,39.5,20.789473684210527,"8.50,9",530.9,32.08608024110002,19.2,33.6,86.47555392531055,null,86.47555392531055,100,"Победитель","Хубатуллина АльбинаИльгизовна","Муниципальное бюджетное общеобразовательное учреждение \"Средняя общеобразовательная школа №132 с углубленным изучением иностранных языков\" Ново-Савиновского района г. Казани\"","Ново-Савиновский район"]
[4,"Приволжский район","МБОУ \"Средняя общеобразовательная школа №42\"","Сенюхина","В.","С.","Ж","14.08.2003",11,11,42,22.105263157894736,"9.35,9",575.9,29.57891995138045,19,33.25,84.93418310927518,null,84.93418310927518,100,"Победитель","Каримова ЛилианаИльдаровна","Муниципальное бюджетное общеобразовательное учреждение \"Средняя общеобразовательная школа №42\"","Приволжский район"]
[5,"Ново-Савиновский район","Инженерный лицей-интернат КНИТУ-КАИ","Анюшина","М.","М.","Ж","21.08.2003",11,11,52,27.36842105263158,"10.13,8",613.8,27.752525252525256,16.7,29.225,84.34594630515684,null,84.34594630515684,100,"Победитель","Пестова АленаВалерьевна","Инженерный лицей-интернат КНИТУ-КАИ","Ново-Савиновский район"]
[6,"Ново-Савиновский район","МБОУ \"Средняя общеобразовательная школа №170 с углубленным изучением отдельных предметов\" Ново-Савиновского района г. Казани\"","Сабитова","Р.","И.","Ж","14.09.2005",9,9,34.5,18.157894736842106,"9.10,1",550.1,30.966187965824393,19.9,34.825,83.9490827026665,null,83.9490827026665,100,"Победитель","Сусленкова ЮлияВладимировна","Муниципальное бюджетное общеобразовательное учреждение \"Средняя общеобразовательная школа №170 с углубленным изучением отдельных предметов\" Ново-Савиновского района г. Казани\"","Ново-Савиновский район"]
[7,"Авиастроительный район","МБОУ \"Средняя общеобразовательная школа с углубленным изучением отдельных предметов №62\" Авиастроительного района г.Казани\"","Шинкарева","Д.","В.","Ж","03.04.2004",10,10,35,18.42105263157895,"9.07,7",547.7,31.101880591564722,19.6,34.3,83.82293322314366,null,83.82293322314366,100,"Призер","Косова ЛюбовьНиколаевна","Муниципальное бюджетное общеобразовательное учреждение \"Средняя общеобразовательная школа с углубленным изучением отдельных предметов №62\" Авиастроительного района г.Казани\"","Авиастроительный район"]
[8,"Ново-Савиновский район","МБОУ \"Гимназия №155 с татарским языком обучения\" Ново-Савиновского района г. Казани\"","Ахмадуллина","Д.","Р.","Ж","21.06.2004",10,10,36,18.94736842105263,"9.17,0",557,30.582585278276483,19.5,34.125,83.65495369932911,null,83.65495369932911,100,"Призер","Галиев МарсельВазихович","Муниципальное бюджетное общеобразовательное учреждение \"Гимназия №155 с татарским языком обучения\" Ново-Савиновского района г. Казани\"","Ново-Савиновский район"]
[9,"Кировский район","МБОУ \"Русско-татарская средняя общеобразовательная школа №81 с углубленным изучением отдельных предметов имени В.А.Григорьева\"","Плясунова","Д.","С.","Ж","12.01.2005",9,9,29,15.263157894736842,"8.29,6",509.6,33.4271978021978,19.3,33.775,82.46535569693464,null,82.46535569693464,100,"Призер","Черепанова ВалентинаВасильевна","Муниципальное бюджетное общеобразовательное учреждение \"Русско-татарская средняя общеобразовательная школа №81 с углубленным изучением отдельных предметов имени В.А.Григорьева\"","Кировский район"]
[10,"Вахитовский район","МБОУ \"Гимназия №96\"","Гатауллина","Д.","Т.","Ж","03.01.2003",11,11,39,20.526315789473685,"9.37,6",577.6,29.491862880886426,18.4,32.2,82.21817867036012,null,82.21817867036012,100,"Призер","Самарина ИринаВаделеновна","Муниципальное бюджетное общеобразовательное учреждение \"Гимназия №96\"","Вахитовский район"]
[11,"Ново-Савиновский район","МАОУ \"Лицей №146 \"Ресурс\" Ново-Савиновского района г. Казани\"","Садирова","К.","И.","Ж","01.12.2004",10,10,32,16.842105263157894,"9.16,8",556.8,30.59357040229885,19.7,34.475,81.91067566545675,null,81.91067566545675,100,"Призер","Корнеева ИринаНиколаевна","Муниципальное автономное общеобразовательное учреждение \"Лицей №146 \"Ресурс\" Ново-Савиновского района г. Казани\"","Ново-Савиновский район"]
[12,"Советский район","МБОУ \"Гимназия №175\" Советского района г.Казани","Алеева","А.","Н.","Ж","07.05.2004",10,10,44.5,23.42105263157895,"9.14,9",554.9,30.69832402234637,15.6,27.3,81.41937665392531,null,81.41937665392531,100,"Призер","Смелов РусланАлександрович","Муниципальное бюджетное общеобразовательное учреждение \"Гимназия №175\" Советского района г.Казани","Советский район"]
[13,"Ново-Савиновский район","МБОУ \"Средняя общеобразовательная татарско-русская школа №113 с углубленным изучением отдельных предметов имени Героя России М.Р.Ахметшина\" Ново-Савиновского района г. Казани\"","Морозова","А.","С.","Ж","16.06.2004",10,10,34,17.894736842105264,"9.46,6",586.6,29.039379474940333,19.7,34.475,81.4091163170456,null,81.4091163170456,100,"Призер","Рыжов АлександрВасильевич","Муниципальное бюджетное общеобразовательное учреждение \"Средняя общеобразовательная татарско-русская школа №113 с углубленным изучением отдельных предметов имени Героя России М.Р.Ахметшина\" Ново-Савиновского района г. Казани\"","Ново-Савиновский район"]
[14,"Ново-Савиновский район","МБОУ \"Средняя общеобразовательная школа №132 с углубленным изучением иностранных языков\" Ново-Савиновского района г. Казани\"","Гайсина","Н.","Ф.","Ж","14.05.2003",11,11,36.5,19.210526315789473,"9.34,9",574.9,29.630370499217257,18.5,32.375,81.21589681500673,null,81.21589681500673,100,"Призер","Хубатуллина Альбина Ильгизовна","МБОУ \"Школа №132\" Ново-Савиновского района","Ново-Савиновский район"]
[15,"Авиастроительный район","МБОУ \"Средняя общеобразовательная школа № 77\" Авиастроительного района г.Казани\"","Ефимова","Л.","А.","Ж","05.11.2005",9,9,35.5,18.68421052631579,"9.23,8",563.8,30.213728272437038,18.3,32.025,80.92293879875282,null,80.92293879875282,100,"Призер","Бикмуллин ДинарМунирович","Муниципальное бюджетное общеобразовательное учреждение \"Средняя общеобразовательная школа № 77\" Авиастроительного района г.Казани\"","Авиастроительный район"]
[16,"Авиастроительный район","МБОУ \"Гимназия №36\" Авиастроительного района г.Казани\"","Крючкова","А.","Е.","Ж","10.01.2004",10,10,30,15.789473684210526,"9.07,8",547.8,31.09620299379336,19.4,33.95,80.83567667800389,null,80.83567667800389,100,"Призер","Мартынова ТатьянаГеоргиевна","Муниципальное бюджетное общеобразовательное учреждение \"Гимназия №36\" Авиастроительного района г.Казани\"","Авиастроительный район"]
[17,"Авиастроительный район","МБОУ \"Средняя общеобразовательная школа № 77\" Авиастроительного района г.Казани\"","Сафина","А.","Т.","Ж","28.08.2004",10,10,32,16.842105263157894,"8.36,1",516.1,33.00620034876962,17.6,30.8,80.64830561192751,null,80.64830561192751,100,"Призер","Королев АндрейАнатольевич","Муниципальное бюджетное общеобразовательное учреждение \"Средняя общеобразовательная школа № 77\" Авиастроительного района г.Казани\"","Авиастроительный район"]
[18,"Ново-Савиновский район","МБОУ \"Средняя общеобразовательная школа №132 с углубленным изучением иностранных языков\" Ново-Савиновского района г. Казани\"","Барченкова","Е.","А.","Ж","03.10.2003",11,11,39,20.526315789473685,"9.25,5",565.5,30.122900088417328,17.1,29.925,80.574215877891,null,80.574215877891,100,"Призер","Хубатуллина АльбинаИльгизовна","Муниципальное бюджетное общеобразовательное учреждение \"Средняя общеобразовательная школа №132 с углубленным изучением иностранных языков\" Ново-Савиновского района г. Казани\"","Ново-Савиновский район"]
[19,"Приволжский район","МАОУ \"Гимназия №19\"","Газизова","Р.","Р.","Ж","14.10.2005",9,9,45.5,23.94736842105263,"11.05,0",665,25.61578947368421,17.7,30.975,80.53815789473684,null,80.53815789473684,100,"Призер","Куроедов Борис Борисович"]
[20,"Кировский район","МБОУ \"Русско-татарская средняя общеобразовательная школа №81 с углубленным изучением отдельных предметов имени В.А.Григорьева\"","Валиева","К.","Г.","Ж","04.12.2005",9,9,27.5,14.473684210526315,"9.02,9",542.9,31.376864984343342,19.7,34.475,80.32554919486967,null,80.32554919486967,100,"Призер","Черепанова ВалентинаВасильевна","Муниципальное бюджетное общеобразовательное учреждение \"Русско-татарская средняя общеобразовательная школа №81 с углубленным изучением отдельных предметов имени В.А.Григорьева\"","Кировский район"]
[21,"Вахитовский район","МБОУ \"Средняя общеобразовательная школа №98 (татарско-русская)\"","Турчак","Э.","Д.","Ж","17.10.2005",9,9,37,19.473684210526315,"8.46,4",526.4,32.360372340425535,16.1,28.175,80.00905655095185,null,80.00905655095185,100,"Призер","Габдрахманов ФанзильИльгизович","Муниципальное бюджетное общеобразовательное учреждение \"Средняя общеобразовательная школа №98 (татарско-русская)\"","Вахитовский район"]
[22,"Приволжский район","МБОУ \"Татарско-русская средняя общеобразовательная школа №10 с углубленным изучением отдельных предметов\"","Дмитриева","А.","Е.","Ж","12.07.2005",9,9,26.5,13.947368421052632,"8.45,6",525.6,32.40962709284627,19,33.25,79.60699551389891,null,79.60699551389891,100,"Призер","Габдрахманов РафисРашитович","Муниципальное бюджетное общеобразовательное учреждение \"Татарско-русская средняя общеобразовательная школа №10 с углубленным изучением отдельных предметов\"","Приволжский район"]
[23,"Приволжский район","МАОУ \"Гимназия № 139\"","Гарапшина","А.","Р.","Ж","12.09.2004",10,10,35.5,18.68421052631579,"8.25,8",505.8,33.6783313562673,15.5,27.125,79.48754188258309,null,79.48754188258309,100,"Призер","Галкина ЕленаВитальевна","Муниципальное автономное общеобразовательное учреждение \"Гимназия № 139\"","Приволжский район"]
[24,"Приволжский район","МАОУ \"Гимназия №19\"","Никишина","К.","В.","Ж","27.07.2004",10,10,45.5,23.94736842105263,"11.05,0",665,25.61578947368421,17,29.75,79.31315789473683,null,79.31315789473683,100,"Призер","Баранов ГлебВалерьевич","Муниципальное автономное общеобразовательное учреждение \"Гимназия №19\"","Приволжский район"]
[25,"Ново-Савиновский район","МБОУ \"Гимназия №7 имени Героя России А.В.Козина\" Ново-Савиновского района г. Казани\"","Батманова","Я.","О.","Ж","04.09.2003",11,11,20.5,10.789473684210526,"8.32,9",512.9,33.21212712029636,20,35,79.0016008045069,null,79.0016008045069,100,"Призер","Калашникова КсенияДмитриевна","Муниципальное бюджетное общеобразовательное учреждение \"Гимназия №7 имени Героя России А.В.Козина\" Ново-Савиновского района г. Казани\"","Ново-Савиновский район"]
[26,"Приволжский район","МБОУ \"Русско-татарская средняя общеобразовательная школа №136\"","Юдина","А.","Д.","Ж","30.10.2004",9,9,36,18.94736842105263,"9.19,9",559.9,30.424182889801752,16.8,29.4,78.77155131085439,null,78.77155131085439,100,"Призер","Тростогон СергейАнатольевич","Муниципальное бюджетное общеобразовательное учреждение \"Русско-татарская средняя общеобразовательная школа №136\"","Приволжский район"]
[27,"Авиастроительный район","МБОУ \"Средняя общеобразовательная школа № 54 с углубленным изучением отдельных предметов\" Авиастроительного района г.Казани\"","Антонова","В.","В.","Ж","14.08.2003",11,11,31,16.31578947368421,"8.50,3",530.3,32.122383556477466,17.3,30.275,78.71317303016167,null,78.71317303016167,100,"Призер","Шинкарева ЛидияВикторовна","Муниципальное бюджетное общеобразовательное учреждение \"Средняя общеобразовательная школа № 54 с углубленным изучением отдельных предметов\" Авиастроительного района г.Казани\"","Авиастроительный район"]
[28,"Приволжский район","МБОУ \"Татарско-русская средняя общеобразовательная школа №68 с углубленным изучением отдельных предметов\"","Габайдуллина","К.","И.","Ж","2003-08-18",11,11,39,20.526315789473685,"8.26,8",506.8,33.61187845303867,13.8,24.15,78.28819424251236,null,78.28819424251236,100,"Призер","Хуртов Сергей Геннадьевич","Школа №68","Приволжский район"]
[29,"Ново-Савиновский район","МБОУ \"Гимназия №155 с татарским языком обучения\" Ново-Савиновского района г. Казани\"","Вагизова","С.","И.","Ж","14.10.2005",9,9,35,18.42105263157895,"9.13,3",553.3,30.78709560816917,16.6,29.05,78.25814823974812,null,78.25814823974812,100,"Призер","Галиев МарсельВазихович","Муниципальное бюджетное общеобразовательное учреждение \"Гимназия №155 с татарским языком обучения\" Ново-Савиновского района г. Казани\"","Ново-Савиновский район"]
[30,"Вахитовский район","МБОУ \"Лицей №116 имени Героя Советского Союза А.С. Умеркина\" Вахитовского района г. Казани\"","Егорова","К.","О.","Ж","27.08.2004",10,10,27,14.210526315789474,"8.26,9",506.9,33.60524758334977,17.3,30.275,78.09077389913924,null,78.09077389913924,100,"Призер","Киямутдинова ЮлдузМаратовна","Муниципальное бюджетное общеобразовательное учреждение \"Лицей №116 имени Героя Советского Союза А.С. Умеркина\" Вахитовского района г. Казани\"","Вахитовский район"]
[31,"Советский район","МБОУ \"Гимназия № 20 имени Абдуллы Алиша\" Советского района города Казани\"","Галиахметова","Э.","И.","Ж","25.01.2005",9,9,27.5,14.473684210526315,"9.23,4",563.4,30.235179268725595,19,33.25,77.9588634792519,null,77.9588634792519,100,"Призер","Тимерханов РустемХанифович","Муниципальное бюджетное общеобразовательное учреждение \"Гимназия № 20 имени Абдуллы Алиша\" Советского района города Казани\"","Советский район"]
[32,"Кировский район","МБОУ \"Военно-патриотический образовательный центр - школа № 67\" Кировского района города Казани","Королева","П.","Г.","Ж","14.06.2004",10,10,33,17.36842105263158,"9.57,9",597.9,28.490550259240678,18.1,31.675,77.53397131187225,null,77.53397131187225,100,"Призер","Муртазин ИльгизарИсмагилович","Муниципальное бюджетное общеобразовательное учреждение \"Военно-патриотический образовательный центр - школа № 67\" Кировского района города Казани","Кировский район"]
[33,"Авиастроительный район","МБОУ \"Средняя общеобразовательная школа №60\" Авиастроительного района г.Казани\"","Яштуганова","А.","С.","Ж","10.07.2005",9,9,27.5,{"$f":"30*K34/57","v":14.473684210526315},"9.30,3",570.3,{"$f":"35*486.7/N34","v":29.869366999824656},18.9,{"$f":"35*P34/20","v":33.075},{"$f":"L34+O34+Q34","v":77.41805121035097},null,77.41805121035097,100,"Призер","Семагина СветланаВладимировна","Муниципальное бюджетное общеобразовательное учреждение \"Средняя общеобразовательная школа №60\" Авиастроительного района г.Казани\"","Авиастроительный район"]
[34,"Авиастроительный район","МБОУ \"Средняя общеобразовательная школа № 77\" Авиастроительного района г.Казани\"","Асманова","А.","А.","Ж","25.09.2005",9,9,36.5,19.210526315789473,"10.07,8",607.8,28.026488976637054,17.1,29.925,77.16201529242653,null,77.16201529242653,100,"Участник","Бикмуллин ДинарМунирович","Муниципальное бюджетное общеобразовательное учреждение \"Средняя общеобразовательная школа № 77\" Авиастроительного района г.Казани\"","Авиастроительный район"]
[35,"Советский район","МАОУ \"Лицей №121 имени Героя Советского Союза С.А.Ахтямова\" Советского района г.Казани","Якупова","К.","А.","Ж","31.07.2005",9,9,36,18.94736842105263,"9.17,6",557.6,30.549677187948348,15.7,27.475,76.97204560900099,null,76.97204560900099,100,"Участник","Слободчиков СергейЛьвович","Муниципальное автономное общеобразовательное учреждение \"Лицей №121 имени Героя Советского Союза С.А.Ахтямова\" Советского района г.Казани","Советский район"]
[36,"Кировский район","МБОУ \"Русско-татарская средняя общеобразовательная школа №81 с углубленным изучением отдельных предметов имени В.А.Григорьева\"","Плясунова","М.","С.","Ж","12.01.2005",9,9,22,11.578947368421053,"8.44,5",522.5,32.601913875598086,18.7,32.725,76.90586124401915,null,76.90586124401915,100,"Участник","Черепанова ВалентинаВасильевна","Муниципальное бюджетное общеобразовательное учреждение \"Русско-татарская средняя общеобразовательная школа №81 с углубленным изучением отдельных предметов имени В.А.Григорьева\"","Кировский район"]
[37,"Приволжский район","МБОУ \"Средняя общеобразовательная школа №114\"","Мифтахова","К.","В.","Ж","2004-11-01",9,9,34,17.894736842105264,"10.04,0",604,28.202814569536425,17.6,30.8,76.89755141164169,null,76.89755141164169,100,"Участник","Хабиров Рафик Рафаэлевич","МБОУСОШ №114» Приволжского района ","Приволжский район"]
[38,"Приволжский район","МБОУ \"Русско-татарская средняя общеобразовательная школа №129\"","Сазгетдинова","К.","А.","Ж","18.11.2002",11,11,20.5,10.789473684210526,"8.31,1",511.1,33.329094110741536,18.3,32.025,76.14356779495206,null,76.14356779495206,100,"Участник","Абзалов ГумерМиншакирович","Муниципальное бюджетное общеобразовательное учреждение \"Русско-татарская средняя общеобразовательная школа №129\"","Приволжский район"]
[39,"Советский район","МБОУ \"Гимназия № 90\" Советского района г.Казани\"","Гусева","Р.","Е.","Ж","27.10.2003",11,11,32,16.842105263157894,"8.57,5",537.5,31.692093023255815,15.5,27.125,75.65919828641371,null,75.65919828641371,100,"Участник","Крылов НиколайСергеевич","Муниципальное бюджетное общеобразовательное учреждение \"Гимназия № 90\" Советского района г.Казани\"","Советский район"]
[40,"Вахитовский район","МАОУ \"Лицей №131\"","Спирина","А.","А.","Ж","17.01.2005",10,10,36,18.94736842105263,"10.15,,8",615.8,27.662390386489122,16.4,28.7,75.30975880754175,null,75.30975880754175,100,"Участник","Пожидаева АидаТагировна","Муниципальное автономное общеобразовательное учреждение \"Лицей №131\"","Вахитовский район"]
[41,"Авиастроительный район","МБОУ \"Средняя общеобразовательная школа № 54 с углубленным изучением отдельных предметов\" Авиастроительного района г.Казани\"","Саматова","А.","Р.","Ж","16.01.2003",11,11,20,10.526315789473685,"9.07,5",547.5,31.11324200913242,19.1,33.425,75.0645577986061,null,75.0645577986061,100,"Участник","Шинкарева ЛидияВикторовна","Муниципальное бюджетное общеобразовательное учреждение \"Средняя общеобразовательная школа № 54 с углубленным изучением отдельных предметов\" Авиастроительного района г.Казани\"","Авиастроительный район"]
[42,"Вахитовский район","МБОУ \"Гимназия №96\"","Чувашаева","М.","Ю.","Ж","09.12.2004",10,10,27,14.210526315789474,"8.22,7",502.7,33.88601551621245,15.4,26.95,75.04654183200192,null,75.04654183200192,100,"Участник","Самарина ИринаВаделеновна","Муниципальное бюджетное общеобразовательное учреждение \"Гимназия №96\"","Вахитовский район"]
[43,"Авиастроительный район","МБОУ \"Средняя общеобразовательная школа №119\" Авиастроительного района г.Казани\"","Павлова","А.","М.","Ж","14.03.2003",11,11,33.5,17.63157894736842,"10.43,6",643.6,26.46752641392169,17.6,30.8,74.89910536129011,null,74.89910536129011,100,"Участник","Павлова АльбинаНиколаевна","Муниципальное бюджетное общеобразовательное учреждение \"Средняя общеобразовательная школа №119\" Авиастроительного района г.Казани\"","Авиастроительный район"]
[44,"Авиастроительный район","МБОУ \"Средняя общеобразовательная русско-татарская школа № 147\" Авиастроительного района г.Казани\"","Салахова","С.","О.","Ж","26.01.2005",9,9,34.5,18.157894736842106,"9.40,2",580.2,29.359703550499827,15.5,27.125,74.64259828734194,null,74.64259828734194,100,"Участник","Яшина ЕкатеринаЮрьевна","Муниципальное бюджетное общеобразовательное учреждение \"Средняя общеобразовательная русско-татарская школа № 147\" Авиастроительного района г.Казани\"","Авиастроительный район"]
[45,"Кировский район","МБОУ \"Средняя общеобразовательная школа №153\" Кировского района г. Казани","Нестерова","С.","Е.","Ж","07.01.2003",11,11,28,14.736842105263158,"8.18,6",498.6,34.16466105094264,14.6,25.55,74.4515031562058,null,74.4515031562058,100,"Участник","Васильев АндрейАлексеевич","Муниципальное бюджетное общеобразовательное учреждение \"Средняя общеобразовательная школа №153\" Кировского района г. Казани","Кировский район"]
[46,"Авиастроительный район","МАОУ \"Гимназия №37\" Авиастроительного района г.Казани\"","Тухватуллина","Д.","М.","Ж","08.10.2003",11,11,30.5,16.05263157894737,"10.55,4",655.4,25.99099786389991,18.3,32.025,74.06862944284728,null,74.06862944284728,100,"Участник","Курбанова НаиляАхметовна","Муниципальное автономное общеобразовательное учреждение \"Гимназия №37\" Авиастроительного района г.Казани\"","Авиастроительный район"]
[47,"Советский район","МБОУ \"Лицей № 159\" Советского района г.Казани\"","Хабибуллина","А.","Р.","Ж","04.10.2003",11,11,39,20.526315789473685,"9.46,7",586.7,29.03442986193966,14,24.5,74.06074565141334,null,74.06074565141334,100,"Участник","Медова Елена Сергеевна","Муниципальное бюджетное общеобразовательное учреждение \"Лицей № 159\" Советского района г.Казани\"","Советский район"]
[48,"Авиастроительный район","МБОУ \"Гимназия №5\"","Гатиятуллина","С.","Р.","Ж","06.09.2003",11,11,39,20.526315789473685,"12.08,0",728,23.39903846153846,17.2,30.1,74.02535425101215,null,74.02535425101215,100,"Участник","Шакирова НазияАглулловна","Муниципальное бюджетное общеобразовательное учреждение \"Гимназия №5\"","Авиастроительный район"]
[49,"Кировский район","МБОУ \"Средняя общеобразовательная школа №70 с углубленным изучениемотдельных предметов\" Кировского района г. Казани\"","Шарафиева","Н.","Р.","Ж","17.06.2004",10,10,19.5,10.263157894736842,"9.33,4",573.4,29.70788280432508,19.3,33.775,73.74604069906192,null,73.74604069906192,100,"Участник","Семенова АринаВладимировна","Муниципальное бюджетное общеобразовательное учреждение \"Средняя общеобразовательная школа №70 с углубленным изучениемотдельных предметов\" Кировского района г. Казани\"","Кировский район"]
[50,"Ново-Савиновский район","МБОУ \"Лицей №23\" Ново-Савиновского района г.Казани\"","Матвеева","А.","Е.","Ж","30.10.2004",10,10,26.5,13.947368421052632,"9.37,5",577.5,29.496969696969696,17.3,30.275,73.71933811802234,null,73.71933811802234,100,"Участник","Мамлютова АлинаСергеевна","Муниципальное бюджетное общеобразовательное учреждение \"Лицей №23\" Ново-Савиновского района г.Казани\"","Ново-Савиновский район"]
[51,"Ново-Савиновский район","ГАОУ \"Полилингвальный комплекс \"Адымнар - путь к знаниям и согласию\" г. Казани\"","Шакирова","А.","Л.","Ж","20.02.2005",9,9,35,18.42105263157895,"9.22,3",562.3,30.294326871776633,14.2,24.85,73.56537950335559,null,73.56537950335559,100,"Участник","Кривова ИринаВладимировна","Государственное автономное общеобразовательное учреждение \"Полилингвальный комплекс \"Адымнар - путь к знаниям и согласию\" г. Казани\"","Ново-Савиновский район"]
[52,"Приволжский район","МБОУ \"Гимназия №6\"","Семенова","Е.","С.","Ж","28.11.2003",10,10,35.5,18.68421052631579,"12.15,5",735.5,23.16043507817811,18.1,31.675,73.5196456044939,null,73.5196456044939,100,"Участник","Кокуркина ЛюбовьСеменовна","Муниципальное бюджетное общеобразовательное учреждение \"Гимназия №6\"","Приволжский район"]
[53,"Советский район","МБОУ \"Гимназия № 8 -Центр образования\" Советского района г. Казани\"","Чемодурова","А.","Ф.","Ж","15.05.2005",9,9,30.5,16.05263157894737,"11.29,2",689.2,24.716337782936737,18.6,32.55,73.3189693618841,null,73.3189693618841,100,"Участник","Суслова ЕленаАлександровна","Муниципальное бюджетное общеобразовательное учреждение \"Гимназия № 8 -Центр образования\" Советского района г. Казани\"","Советский район"]
[54,"Советский район","МБОУ \"Средняя общеобразовательная школа №167 с углубленным изучением отдельных предметов\" Советского района г. Казани","Урусова","А.","А.","Ж","01.01.2004",10,10,25,13.157894736842104,"8.39,6",519.6,32.78387220939184,15.5,27.125,73.06676694623394,null,73.06676694623394,100,"Участник","Иванова НаталияГеннадьевна","Муниципальное бюджетное общеобразовательное учреждение \"Средняя общеобразовательная школа №167 с углубленным изучением отдельных предметов\" Советского района г. Казани","Советский район"]
[55,"Ново-Савиновский район","МБОУ \"Средняя общеобразовательная татарско-русская школа №113 с углубленным изучением отдельных предметов имени Героя России М.Р.Ахметшина\" Ново-Савиновского района г. Казани\"","Арсланова","Л.","З.","Ж","2004-02-05",10,10,34.5,18.157894736842106,"10.11,5",611.5,27.856909239574815,15.3,26.775,72.78980397641692,null,72.78980397641692,100,"Участник","Рыжов АлександрВасильевич","Муниципальное бюджетное общеобразовательное учреждение \"Средняя общеобразовательная татарско-русская школа №113 с углубленным изучением отдельных предметов имени Героя России М.Р.Ахметшина\" Ново-Савиновского района г. Казани\"","Ново-Савиновский район"]
[56,"Авиастроительный район","МБОУ \"Гимназия №36\" Авиастроительного района г.Казани\"","Бусырева","А.","Е.","Ж","16.07.2005",9,9,25,13.157894736842104,"9.31,5",571.5,29.806649168853895,16.9,29.575,72.539543905696,null,72.539543905696,100,"Участник","Мартынова ТатьянаГеоргиевна","Муниципальное бюджетное общеобразовательное учреждение \"Гимназия №36\" Авиастроительного района г.Казани\"","Авиастроительный район"]
[57,"Приволжский район","МБОУ \"Средняя общеобразовательная школа №24 с углубленным изучением отдельных предметов\"","Кадырова","К.","З.","Ж","18.11.2005",9,9,17.5,9.210526315789474,"9.50,6",590.6,28.84270233660684,19.5,34.125,72.17822865239631,null,72.17822865239631,100,"Участник","Сенюхин СергейГеннадьевич","Муниципальное бюджетное общеобразовательное учреждение \"Средняя общеобразовательная школа №24 с углубленным изучением отдельных предметов\"","Приволжский район"]
[58,"Кировский район","МБОУ \"Гимназия №4 с татарским языком обучения\" Кировского района г. Казани\"","Постаромова","В.","А.","Ж","26.04.2005",9,9,14,7.368421052631579,"9.01,3",541.3,31.469610197672274,19,33.25,72.08803125030386,null,72.08803125030386,100,"Участник","Сибгатуллин РусланДанилович","Муниципальное бюджетное общеобразовательное учреждение \"Гимназия №4 с татарским языком обучения\" Кировского района г. Казани\"","Кировский район"]
[59,"Советский район","МБОУ \"Средняя общеобразовательная школа № 22 с углубленным изучением отдельных предметов - Центр образования\" Советского района г.Казани\"","Левицкова","А.","А.","Ж","26.06.2004",10,10,33.5,17.63157894736842,"9.44,3",584.3,29.153688173883282,14.4,25.2,71.98526712125171,null,71.98526712125171,100,"Участник","Раззакова МаликаСабуровна","Муниципальное бюджетное общеобразовательное учреждение \"Средняя общеобразовательная школа № 22 с углубленным изучением отдельных предметов - Центр образования\" Советского района г.Казани\"","Советский район"]
[60,"Советский район","МБОУ \"Средняя общеобразовательная школа № 86 с углубленным изучением отдельных предметов\" Советского района г.Казани\"","Олейник","К.","Д.","Ж","20.12.2004",9,9,30,15.789473684210526,"10.16,9",616.9,27.613065326633166,16.2,28.35,71.75253901084369,null,71.75253901084369,100,"Участник","Каюмов РамильДаярович","Муниципальное бюджетное общеобразовательное учреждение \"Средняя общеобразовательная школа № 86 с углубленным изучением отдельных предметов\" Советского района г.Казани\"","Советский район"]
[61,"Ново-Савиновский район","МБОУ \"Средняя общеобразовательная школа №89 с углубленным изучением отдельных предметов\" Ново-Савиновского района г. Казани\"","Матюшкина","К.","В.","Ж","22.05.2005",9,9,17.5,9.210526315789474,"9.39,7",579.7,29.385026737967912,18.6,32.55,71.14555305375738,null,71.14555305375738,100,"Участник","Арютин АлександрНиколаевич","Муниципальное бюджетное общеобразовательное учреждение \"Средняя общеобразовательная школа №89 с углубленным изучением отдельных предметов\" Ново-Савиновского района г. Казани\"","Ново-Савиновский район"]
[62,"Ново-Савиновский район","МБОУ \"Гимназия №179 - центр образования\" Ново-Савиновского района г.Казани\"","Гадельшина","А.","Р.","Ж","28.03.2005",9,9,18,9.473684210526315,"9.42,3",582.3,29.253821054439296,18.5,32.375,71.10250526496561,null,71.10250526496561,100,"Участник","Ваниев ЭнверСаидович","Муниципальное бюджетное общеобразовательное учреждение \"Гимназия №179 - центр образования\" Ново-Савиновского района г.Казани\"","Ново-Савиновский район"]
[63,"Приволжский район","МБОУ \"Гимназия №18 с татарским языком обучения\" Приволжского района г.Казани\"","Шайхеева","А.","А.","Ж","06.04.2005",9,9,17.5,9.210526315789474,"9.19,9",559.9,30.424182889801752,17.8,31.15,70.78470920559123,null,70.78470920559123,100,"Участник","Максимова ЕленаИвановна","Муниципальное бюджетное общеобразовательное учреждение \"Гимназия №18 с татарским языком обучения\" Приволжского района г.Казани\"","Приволжский район"]
[64,"Кировский район","МБОУ \"Средняя общеобразовательная школа №137 с углубленным изучением отдельных предметов\"Кировского района г.Казани\"","Габдуллина","Л.","Р.","Ж","30.03.2004",10,10,27.5,14.473684210526315,"9.45,5",585.5,29.09393680614859,15.5,27.125,70.6926210166749,null,70.6926210166749,100,"Участник","Хайруллина ЛейсанРустэмовна","Муниципальное бюджетное общеобразовательное учреждение \"Средняя общеобразовательная школа №137 с углубленным изучением отдельных предметов\"Кировского района г.Казани\"","Кировский район"]
[65,"Авиастроительный район","МБОУ \"Средняя общеобразовательная школа с углубленным изучением отдельных предметов №62\" Авиастроительного района г.Казани\"","Каримова","Э.","Р.","Ж","23.07.2005",9,9,30.5,{"$f":"30*K66/57","v":16.05263157894737},"9.26,2",566.2,{"$f":"35*486.7/N66","v":30.085658777817024},14,{"$f":"35*P66/20","v":24.5},{"$f":"L66+O66+Q66","v":70.6382903567644},null,70.6382903567644,100,"Участник","Нурмиева РинатаМаратовна","Муниципальное бюджетное общеобразовательное учреждение \"Средняя общеобразовательная школа с углубленным изучением отдельных предметов №62\" Авиастроительного района г.Казани\"","Авиастроительный район"]
[66,"Приволжский район","МБОУ \"Лицей №35 - образовательный центр \"Галактика\" Приволжского района города Казани\"","Капкаева","Н.","М.","Ж","31.03.2005",9,9,27,14.210526315789474,"11.02,6",662.6,25.708572290974946,17.3,30.275,70.19409860676441,null,70.19409860676441,100,"Участник","Хузиахметова ИринаИльинична","Муниципальное бюджетное общеобразовательное учреждение \"Лицей №35 - образовательный центр \"Галактика\" Приволжского района города Казани\"","Приволжский район"]
[67,"Советский район","МБОУ \"Средняя общеобразовательная школа №167 с углубленным изучением отдельных предметов\" Советского района г. Казани","Гильфанетдинова","А.","И.","Ж","29.09.2007",9,9,24.5,12.894736842105264,"9.59,8",599.8,28.40030010003335,16.5,28.875,70.17003694213861,null,70.17003694213861,100,"Участник","Юсупов МаратРашитович","Муниципальное бюджетное общеобразовательное учреждение \"Средняя общеобразовательная школа №167 с углубленным изучением отдельных предметов\" Советского района г. Казани","Советский район"]
[68,"Авиастроительный район","МБОУ \"Лицей №145\" Авиастроительного района г.Казани\"","Мартынова","К.","К.","Ж","30.11.2005",9,9,30.5,16.05263157894737,"9.40,2",580.2,29.359703550499827,14,24.5,69.9123351294472,null,69.9123351294472,100,"Участник","Семагин АлександрАлексеевич","Муниципальное бюджетное общеобразовательное учреждение \"Лицей №145\" Авиастроительного района г.Казани\"","Авиастроительный район"]
[69,"Советский район","МБОУ \"Многопрофильная школа №181\" Советского района г. Казани\"","Шарипова","А.","А.","Ж","01.09.2004",10,10,17.5,9.210526315789474,"10.17,5",617.5,27.586234817813764,18.9,33.075,69.87176113360324,null,69.87176113360324,100,"Участник","Шигапова ЕленаВитальевна","Муниципальное бюджетное общеобразовательное учреждение \"Многопрофильная школа №181\" Советского района г. Казани\"","Советский район"]
[70,"Московский район","МБОУ \"Средняя общеобразовательная татарско-русская школа №65 с углубленным изучением отдельных предметов \" Московского района г.Казани","Кузьмичева","А.","А.","Ж","27.06.2005",9,9,24.5,12.894736842105264,"9.02,5",542.5,31.4,14.5,25.375,69.66973684210527,null,69.66973684210527,100,"Участник","Половников ВалерийНиколаевич","Муниципальное бюджетное общеобразовательное учреждение \"Средняя общеобразовательная татарско-русская школа №65 с углубленным изучением отдельных предметов \" Московского района г.Казани","Московский район"]
[71,"Приволжский район","МБОУ \"Средняя общеобразовательная школа №69\"","Имангулова","Р.","Д.","Ж","06.04.2003",11,11,14,7.368421052631579,"10.14,6",614.6,27.71640091116173,19.5,34.125,69.2098219637933,null,69.2098219637933,100,"Участник","Князева ИринаЮрьевна","Муниципальное бюджетное общеобразовательное учреждение \"Средняя общеобразовательная школа №69\"","Приволжский район"]
[72,"Советский район","МБОУ \"Лицей № 149 с татарским языком обучения\" Советского района г.Казани\"","Комарова","А.","Р.","Ж","24.06.2005",9,9,26.5,13.947368421052632,"9.40,5",580.5,29.344530577088715,14.8,25.9,69.19189899814134,null,69.19189899814134,100,"Участник","Закиров РанисРаисович","Муниципальное бюджетное общеобразовательное учреждение \"Лицей № 149 с татарским языком обучения\" Советского района г.Казани\"","Советский район"]
[73,"Московский район","МБОУ \"Средняя общеобразовательная татарско-русская школа № 34 \" Московского района г.Казани\"","Исхакова","К.","И.","Ж","11.04.2004",10,10,16,8.421052631578947,"9.32,1",572.1,29.775388918021324,17.5,30.625,68.82144154960028,null,68.82144154960028,100,"Участник","Волков АндрейВячеславович","Муниципальное бюджетное общеобразовательное учреждение \"Средняя общеобразовательная татарско-русская школа № 34 \" Московского района г.Казани\"","Московский район"]
[74,"Московский район","МБОУ \"Гимназия №20\"Гармония\" Московского района г.Казани\"","Вершинина","Е.","Н.","Ж","12.12.2005",9,9,25.5,13.421052631578947,"10.12,1",612.1,27.829603006044763,15.7,27.475,68.7256556376237,null,68.7256556376237,100,"Участник","Колоярцев АндрейАлександрович","Муниципальное бюджетное общеобразовательное учреждение \"Гимназия №20\"Гармония\" Московского района г.Казани\"","Московский район"]
[75,"Московский район","МБОУ \"Гимназия № 122 имени Ж.А.Зайцевой\"Московского района г. Казани\"","Бочкарева","А.","Е.","Ж","22.02.2006",9,9,17,8.947368421052632,"9.07,3",547.3,31.124611730312445,16.3,28.525,68.59698015136507,null,68.59698015136507,100,"Участник","Приказчикова ТатьянаВикторовна","Муниципальное бюджетное общеобразовательное учреждение \"Гимназия № 122 имени Ж.А.Зайцевой\"Московского района г. Казани\"","Московский район"]
[76,"Советский район","МБОУ \"Многопрофильная полилингвальная гимназия №180\" Советского района г. Казани\"","Хисамиева","А.","И.","Ж","21.03.2003",11,11,35,18.42105263157895,"13.14,0",794,21.45403022670025,16.3,28.525,68.4000828582792,null,68.4000828582792,100,"Участник","Яшина ЛюдмилаАнатольевна","Муниципальное бюджетное общеобразовательное учреждение \"Многопрофильная полилингвальная гимназия №180\" Советского района г. Казани\"","Советский район"]
[77,"Кировский район","МБОУ \"Политехнический лицей № 182\"","Свергузова","А.","В.","Ж","05.04.2003",11,11,30.5,16.05263157894737,"10.23,4",623.4,27.325152390118706,14.2,24.85,68.22778396906608,null,68.22778396906608,100,"Участник","Антонова СнежанаНиколаевна","МБОУ \"Политехнический лицей № 182\"","Кировский район"]
[78,"Ново-Савиновский район","МБОУ \"Гимназия № 13 с татарским языком обучения\" Ново-Савиновского района г. Казани","Фазылзянова","Э.","Р.","Ж","14.02.2004",10,10,16.5,8.68421052631579,"9.46,6",586.6,29.039379474940333,17.4,30.45,68.17359000125612,null,68.17359000125612,100,"Участник","Баранова АльбинаАльбертовна","Муниципальное бюджетное общеобразовательное учреждение \"Гимназия № 13 с татарским языком обучения\" Ново-Савиновского района г. Казани","Ново-Савиновский район"]
[79,"Советский район","МБОУ «Гимназия № 183» Советского района г.Казани","Галиуллина","А.","И.","Ж","09.01.2005",10,10,24.5,12.894736842105264,"12.24,6",744.6,22.877383830244426,18,31.5,67.27212067234969,null,67.27212067234969,100,"Участник","Шарипзянова ЛилияВалерьевна","Муниципальное бюджетное общеобразовательное учреждение «Гимназия № 183» Советского района г.Казани","Советский район"]
[80,"Московский район","МБОУ \"Гимназия № 122 имени Ж.А.Зайцевой\"Московского района г. Казани\"","Косимова","С.","С.","Ж","03.11.2004",10,10,18.5,9.736842105263158,"9.52,9",592.9,28.73081463990555,16.3,28.525,66.99265674516872,null,66.99265674516872,100,"Участник","Приказчикова ТатьянаВикторовна","Муниципальное бюджетное общеобразовательное учреждение \"Гимназия № 122 имени Ж.А.Зайцевой\"Московского района г. Казани\"","Московский район"]
[81,"Советский район","МБОУ \"Средняя общеобразовательная школа № 22 с углубленным изучением отдельных предметов - Центр образования\" Советского района г.Казани\"","Самигуллина","М.","Х.","Ж","10.01.2006",9,9,24.5,12.894736842105264,"11.12,7",672.7,25.32258064516129,16.4,28.7,66.91731748726656,null,66.91731748726656,100,"Участник","Жиряева РахиляРашитовна","Муниципальное бюджетное общеобразовательное учреждение \"Средняя общеобразовательная школа № 22 с углубленным изучением отдельных предметов - Центр образования\" Советского района г.Казани\"","Советский район"]
[82,"Ново-Савиновский район","МБОУ \"Средняя общеобразовательная школа №49\" Ново-Савиновского района г.Казани\"","Валеева","С.","Р.","Ж","21.04.2005",9,9,19.5,10.263157894736842,"9.59,5",599.5,28.414512093411176,15.9,27.825,66.50266998814801,null,66.50266998814801,100,"Участник","Садетдинов ДмитрийШейисданович","Муниципальное бюджетное общеобразовательное учреждение \"Средняя общеобразовательная школа №49\" Ново-Савиновского района г.Казани\"","Ново-Савиновский район"]
[83,"Советский район","МБОУ \"Средняя общеобразовательная школа № 72 с углубленным изучением немецкого языка\" Советского района г.Казани","Сорокина","О.","А.","Ж","21.12.2005",9,9,29,15.263157894736842,"10.25,7",625.7,27.224708326674122,13.5,23.625,66.11286622141097,null,66.11286622141097,100,"Участник","Домолазов ВладиславМихайлович","Муниципальное бюджетное общеобразовательное учреждение \"Средняя общеобразовательная школа № 72 с углубленным изучением немецкого языка\" Советского района г.Казани","Советский район"]
[84,"Московский район","МБОУ \"Средняя общеобразовательная школа №55\"с углубленным изучением отдельных предметов\" Московского района г.Казани\"","Николаева","К.","Д.","Ж","24.11.2005",9,9,17,8.947368421052632,"9.05,3",545.3,31.238767650834404,14.7,25.725,65.91113607188703,null,65.91113607188703,100,"Участник","Солнышкова ЮляДмитриевна","Муниципальное бюджетное общеобразовательное учреждение \"Средняя общеобразовательная школа №55\"с углубленным изучением отдельных предметов\" Московского района г.Казани\"","Московский район"]
[85,"Советский район","МБОУ \"Средняя общеобразовательная школа № 15 с углубленным изучением отдельных предметов\" Советского района города Казани\"","Мерзахметова","А.","А.","Ж","30.05.2004",10,10,28,14.736842105263158,"9.42,4",582.4,29.248798076923077,12,21,64.98564018218623,null,64.98564018218623,100,"Участник","Рахманова АльбинаРаисовна","Муниципальное бюджетное общеобразовательное учреждение \"Средняя общеобразовательная школа № 15 с углубленным изучением отдельных предметов\" Советского района города Казани\"","Советский район"]
[86,"Ново-Савиновский район","МАОУ \"Лицей №146 \"Ресурс\" Ново-Савиновского района г. Казани\"","Шамсутдинова","К.","Р.","Ж","23.08.2005",9,9,9,4.7368421052631575,"10.51,1",651.1,26.16264782675472,18.8,32.9,63.79948993201788,null,63.79948993201788,100,"Участник","Корнеева ИринаНиколаевна","Муниципальное автономное общеобразовательное учреждение \"Лицей №146 \"Ресурс\" Ново-Савиновского района г. Казани\"","Ново-Савиновский район"]
[87,"Советский район","МБОУ \"Средняя общеобразовательная школа № 171 с углубленным изучением отдельных предметов\" Советского района г.Казани","Каримова","К.","А.","Ж","30.03.2005",9,9,17.5,9.210526315789474,"9.14,6",554.6,30.714929679047962,13.2,23.1,63.025455994837436,null,63.025455994837436,100,"Участник","Хусаинов ИльшатАсхатович","Муниципальное бюджетное общеобразовательное учреждение \"Средняя общеобразовательная школа № 171 с углубленным изучением отдельных предметов\" Советского района г.Казани","Советский район"]
[88,"Приволжский район","МБОУ \"Татаро-английская гимназия №16\"","Имангулова","А.","Р.","Ж","27.10.2003",10,10,16.5,8.68421052631579,"12.58,3",778.3,21.886804574071697,18.3,32.025,62.59601510038748,null,62.59601510038748,100,"Участник","Газизов ИнсафМарселович","Муниципальное бюджетное общеобразовательное учреждение \"Татаро-английская гимназия №16\"","Приволжский район"]
[89,"Советский район","МБОУ \"Средняя общеобразовательная школа № 144 с углубленным изучением отдельных предметов\" Советского района г.Казани\"","Гусакова","Е.","Д.","Ж","02.09.2003",11,11,43,22.63157894736842,"8.29,8",509.8,33.41408395449196,null,null,56.04566290186038,null,56.04566290186038,100,"Участник","Худобко ТатьянаЕвгеньевна","Муниципальное бюджетное общеобразовательное учреждение \"Средняя общеобразовательная школа № 144 с углубленным изучением отдельных предметов\" Советского района г.Казани\"","Советский район"]
[90,"Авиастроительный район","МБОУ \"Гимназия №14\" Авиастроительного района г.Казани\"","Хайруллина","А.","А.","Ж","14.07.2005",9,9,33.5,17.63157894736842,"9.24,6",564.6,30.170917463691108,0,{"$f":"35*P91/20","v":0},47.80249641105953,null,47.80249641105953,100,"Участник","Мингазов РустэмАсфандиярович","Муниципальное бюджетное общеобразовательное учреждение \"Гимназия №14\" Авиастроительного района г.Казани\"","Авиастроительный район"]
[91,"Приволжский район","МБОУ \"Средняя общеобразовательная школа №48 с углубленным изучением отдельных предметов\"","Салахова","К.","Р.","Ж","15.12.2004",10,10,33.5,17.63157894736842,"9.26,0",566,30.096289752650176,null,{"$f":"35*P92/20","v":0},47.7278687000186,null,47.7278687000186,100,"Участник","Гисматулов РустемИльгизарович","Муниципальное бюджетное общеобразовательное учреждение \"Средняя общеобразовательная школа №48 с углубленным изучением отдельных предметов\"","Приволжский район"]
[92,"Советский район","МБОУ \"Средняя общеобразовательная школа № 174\" Советского района г.Казани\"","Назмутдинова","В.","С.","Ж","11.01.2003",11,11,17.5,9.210526315789474,"8.06,7",486.7,35,0,0,44.21052631578947,null,44.21052631578947,100,"Участник","Гильфанетдинов ИрекТауфикович","Муниципальное бюджетное общеобразовательное учреждение \"Средняя общеобразовательная школа № 174\" Советского района г.Казани\"","Советский район"]
[93,"Советский район","МАОУ \"Гимназия №141\" Советского района г.Казани","Михайлова","Э.","Р.","Ж","08.09.2003",11,11,29,15.263157894736842,"10.03,8",603.8,28.21215634315999,0,0,43.47531423789683,null,43.47531423789683,100,"Участник","Митяшкин АнтонОлегович","Муниципальное автономное общеобразовательное учреждение \"Гимназия №141\" Советского района г.Казани","Советский район"]
[94,"Ново-Савиновский район","МБОУ \"Средняя общеобразовательная школа №91\" Ново-Савиновского района г. Казани\"","Махмутова","З.","Р.","Ж","14.09.2004",10,10,26,13.68421052631579,"9.45,0",585,29.11880341880342,0,{"$f":"35*P95/20","v":0},42.80301394511921,null,42.80301394511921,100,"Участник","Гильмутдинова ФлераФоатовна","Муниципальное бюджетное общеобразовательное учреждение \"Средняя общеобразовательная школа №91\" Ново-Савиновского района г. Казани\"","Ново-Савиновский район"]
[95,"Вахитовский район","МАОУ\"Средняя общеобразовательная школа №18 с углубленным изучением английского языка\"","Нуруллина","И.","Р.","Ж","28.01.2005",10,10,16.5,8.68421052631579,"8.59,4",538.4,31.639115898959883,null,null,40.323326425275674,null,40.323326425275674,100,"Участник","Перетягин ФедорВячеславович","Муниципальное автономное общеобразовательное учреждение\"Средняя общеобразовательная школа №18 с углубленным изучением английского языка\"","Вахитовский район"]
[96,"Кировский район","МБОУ \"Гимназия №50\" Кировского района г. Казани\"","Петрова","О.","В.","Ж","13.01.2005",9,9,16.5,8.68421052631579,"9.03,4",543.4,31.34799411115201,null,null,40.0322046374678,null,40.0322046374678,100,"Участник","Мычилкина ЗояДмитриевна","Муниципальное бюджетное общеобразовательное учреждение \"Гимназия №50\" Кировского района г. Казани\"","Кировский район"]
[97,"Авиастроительный район","МБОУ \"Гимназия №5\"","Валиуллина","А.","Р.","Ж","07.09.2003",11,11,14,{"$f":"30*K98/57","v":7.368421052631579},"9.24,8",564.8,{"$f":"35*486.7/N98","v":30.16023371104816},0,{"$f":"35*P98/20","v":0},{"$f":"L98+O98+Q98","v":37.52865476367974},null,37.52865476367974,100,"Участник","Шакирова НазияАглулловна","Муниципальное бюджетное общеобразовательное учреждение \"Гимназия №5\"","Авиастроительный район"]
[98,"Авиастроительный район","МБОУ \"Средняя общеобразовательная школа № 117\" Авиастроительного района г.Казани\"","Гатауллина","Д.","Р.","Ж","13.07.2003",11,11,18,9.473684210526315,"10.18,7",618.7,27.532729917569096,0,{"$f":"35*P99/20","v":0},37.006414128095415,null,37.006414128095415,100,"Участник","Шагивалиев ИльнарМиннурович","Муниципальное бюджетное общеобразовательное учреждение \"Средняя общеобразовательная школа № 117\" Авиастроительного района г.Казани\"","Авиастроительный район"]
[99,"Приволжский район","МБОУ \"Средняя общеобразовательная школа № 173\"","Гонина","К.","Т.","Ж","25.10.2004",10,10,0,null,"8.26,9",506.9,33.60524758334977,0,{"$f":"35*P100/20","v":0},33.60524758334977,null,33.60524758334977,100,"Участник","Тагирова РиммаШамильевна","Муниципальное бюджетное общеобразовательное учреждение \"Средняя общеобразовательная школа № 173\"","Приволжский район"]
[100,"Авиастроительный район","МБОУ \"Средняя общеобразовательная школа №112\" Авиастроительного района г.Казани","Закирова","А.","Р.","Ж","28.02.2004",10,10,17.5,{"$f":"30*K101/57","v":9.210526315789474},{"$nulls":3},13.6,{"$f":"35*P101/20","v":23.8},33.01052631578948,null,33.01052631578948,100,"Участник","Чагаев ИрекИльдарович","Муниципальное бюджетное общеобразовательное учреждение \"Средняя общеобразовательная школа №112\" Авиастроительного района г.Казани","Авиастроительный район"]
[101,"Московский район","МБОУ \"Средняя общеобразовательная русско-татарская школа № 87\" Московского района г.Казани\"","Липатова","А.","Д.","Ж","04.06.2004",10,10,12.5,6.578947368421052,"10.45,8",645.8,{"$f":"35*486.7/N102","v":26.37736141220192},null,null,32.956308780622976,null,32.956308780622976,100,"Участник","Назгинова ПолинаВладимировна","Муниципальное бюджетное общеобразовательное учреждение \"Средняя общеобразовательная русско-татарская школа № 87\" Московского района г.Казани\"","Московский район"]
[102,"Советский район","МБОУ \"Средняя общеобразовательная школа № 84 с углубленным изучением иностранных языков\" Советского района г. Казани\"","Ершова","А.","С.","Ж","18.02.2005",9,9,9.5,5,"11.52,4",712.4,{"$f":"35*486.7/N103","v":23.911426165075802},0,{"$f":"35*P103/20","v":0},28.911426165075802,null,28.911426165075802,100,"Участник","Степанов АлександрИванович","Муниципальное бюджетное общеобразовательное учреждение \"Средняя общеобразовательная школа № 84 с углубленным изучением иностранных языков\" Советского района г. Казани\"","Советский район"]
[103,"Ново-Савиновский район","МБОУ \"Средняя общеобразовательная татарско-русская школа №113 с углубленным изучением отдельных предметов имени Героя России М.Р.Ахметшина\" Ново-Савиновского района г. Казани\"","Орлова","Е.","В.","Ж","10.11.2005",9,9,42.5,22.36842105263158,{"$nulls":5},22.36842105263158,null,22.36842105263158,100,"Участник","Рыжов АлександрВасильевич","Муниципальное бюджетное общеобразовательное учреждение \"Средняя общеобразовательная татарско-русская школа №113 с углубленным изучением отдельных предметов имени Героя России М.Р.Ахметшина\" Ново-Савиновского района г. Казани\"","Ново-Савиновский район"]
[104,"Приволжский район","МБОУ \"Лицей №78 \"Фарватер\"","Хрустова","Д.","С.","Ж","01.06.2005",9,9,33.5,17.63157894736842,{"$nulls":5},17.63157894736842,null,17.63157894736842,100,"Участник","Кожилкина ЮлияВладимировна","Муниципальное бюджетное общеобразовательное учреждение \"Лицей №78 \"Фарватер\"","Приволжский район"]
[105,"Вахитовский район","МБОУ \"Гимназия №96\"","Бабич","Д.","Д.","Ж","27.05.2005",9,9,30.5,16.05263157894737,{"$nulls":5},16.05263157894737,null,16.05263157894737,100,"Участник","Зиновьева ОльгаФеликсовна","Муниципальное бюджетное общеобразовательное учреждение \"Гимназия №96\"","Вахитовский район"]
[106,"Кировский район","МБОУ \"Русско-татарская средняя общеобразовательная школа №81 с углубленным изучением отдельных предметов имени В.А.Григорьева\"","Абдурашидова","З.","Р.","Ж","04.12.2003",11,11,27.5,14.473684210526315,{"$nulls":5},14.473684210526315,null,14.473684210526315,100,"Участник","Черепанова ВалентинаВасильевна","Муниципальное бюджетное общеобразовательное учреждение \"Русско-татарская средняя общеобразовательная школа №81 с углубленным изучением отдельных предметов имени В.А.Григорьева\"","Кировский район"]
[107,"Советский район","МБОУ \"Гимназия № 125\" Советского района г.Казани\"","Грачева","В.","В.","Ж","04.12.2004",11,11,26,13.68421052631579,{"$nulls":5},13.68421052631579,null,13.68421052631579,100,"Участник","Салимова Елена Вадимовна","Муниципальное бюджетное общеобразовательное учреждение \"Гимназия № 125\" Советского района г.Казани\"","Советский район"]
[108,"Вахитовский район","МАОУ \"Средняя общеобразовательная школа №39 с углубленным изучением английского языка\"","Калинкина","Е.","О.","Ж","17.09.2003",11,11,23.5,12.368421052631579,{"$nulls":5},12.368421052631579,null,12.368421052631579,100,"Участник","Зарубина ЕленаАлександровна","Муниципальное автономное общеобразовательное учреждение \"Средняя общеобразовательная школа №39 с углубленным изучением английского языка\"","Вахитовский район"]
[109,"Ново-Савиновский район","МБОУ \"Средняя общеобразовательная татарско-русская школа №71 с углубленным изучением отдельных предметов\" Ново-Савиновского района г. Казани\"","Карпакова","К.","А.","Ж","09.09.2005",9,9,19.5,10.263157894736842,{"$nulls":5},10.263157894736842,null,10.263157894736842,100,"Участник","Мухаметшин АзатГазизович","Муниципальное бюджетное общеобразовательное учреждение \"Средняя общеобразовательная татарско-русская школа №71 с углубленным изучением отдельных предметов\" Ново-Савиновского района г. Казани\"","Ново-Савиновский район"]
[110,"Авиастроительный район","МБОУ \"Лицей №26 им. М.Джалиля\" Авиастроительного района г.Казани\"","Арифуллина","А.","А.","Ж","26.08.2005",9,9,15.5,8.157894736842104,{"$nulls":4},{"$f":"35*P111/20","v":0},8.157894736842104,null,8.157894736842104,100,"Участник","Мухаммадеева РалинаАльбертовна","Муниципальное бюджетное общеобразовательное учреждение \"Лицей №26 им. М.Джалиля\" Авиастроительного района г.Казани\"","Авиастроительный район"]
[111,"Приволжский район","МБОУ \"Средняя общеобразовательная школа №127\"","Рычакова","А.","П.","Ж","30.04.2005",9,9,13,6.842105263157895,{"$nulls":3},0,0,6.842105263157895,null,6.842105263157895,100,"Участник","Токранова ЗинаидаЛеонидовна","Муниципальное бюджетное общеобразовательное учреждение \"Средняя общеобразовательная школа №127\"","Приволжский район"]

{"sheet":"9-11 мал","index":3,"n_rows":116,"n_cols":25,"rows_kept":116}
["№","Район","Школа","Фамилия","Имя","Отчество","пол","д.р.","класс","класс участия","теория","Балл","легкая атлетика","пересчет","балл","гимнастика","балл","Общий балл","Апел.балл","Итог балл","Макс.балл","Статус","Учитель","Наименование ОУ","Район"]
[1,"Ново-Савиновский район","Инженерный лицей-интернат КНИТУ-КАИ","Хусаенов","А.","Д.","М","26.03.2005",9,9,51,{"$f":"30*K2/57","v":26.842105263157894},"13.23,8",803.8,{"$f":"35*632.3/N2","v":27.53234635481463},19.4,{"$f":"35*P2/20","v":33.95},{"$f":"L2+O2+Q2","v":88.32445161797253},null,88.32445161797253,100,"Победитель","Пестова АленаВалерьевна","Инженерный лицей-интернат КНИТУ-КАИ","Ново-Савиновский район"]
[2,"Приволжский район","МАОУ \"Гимназия №19\"","Салахатдинов","Э.","Х.","М","05.05.2005",9,9,46,24.210526315789473,"12.21,3",741.3,29.85363550519358,19.3,33.775,87.83916182098305,null,87.83916182098305,100,"Победитель","Куроедов Борис Борисович","МАОУ \"Гимназия №19\""]
[3,"Приволжский район","МАОУ \"Гимназия №19\"","Нигматуллин","Э.","Р.","М","20.10.2005",9,9,46.5,24.473684210526315,"11.42,2",702.2,31.515949871831385,18.1,31.675,87.6646340823577,null,87.6646340823577,100,"Победитель","Куроедов БорисБорисович","Муниципальное автономное общеобразовательное учреждение \"Гимназия №19\"","Приволжский район"]
[4,"Ново-Савиновский район","Инженерный лицей-интернат КНИТУ-КАИ","Кирснаускас","Д.","А.","М","11.10.2004",10,10,45.5,23.94736842105263,"12.03,0",723,30.60926694329184,18.9,33.075,87.63163536434448,null,87.63163536434448,100,"Победитель","Пестова АленаВалерьевна","Инженерный лицей-интернат КНИТУ-КАИ","Ново-Савиновский район"]
[5,"Советский район","МБОУ \"Средняя общеобразовательная школа № 86 с углубленным изучением отдельных предметов\" Советского района г.Казани\"","Сайфуллин","Б.","А.","М","29.06.2004",10,10,42,22.105263157894736,"12.23,5",743.5,29.76529926025555,19.2,33.6,85.47056241815028,null,85.47056241815028,100,"Победитель","Киямов АйнурАйратович","Муниципальное бюджетное общеобразовательное учреждение \"Средняя общеобразовательная школа № 86 с углубленным изучением отдельных предметов\" Советского района г.Казани\"","Советский район"]
[6,"Вахитовский район","Государственное бюджетное общеобразовательное учреждение \"Казанская кадетская школа-интернат имени Героя Советского Союза Б.К.Кузнецова\"","Булатов","Э.","Р.","М","12.05.2003",11,11,41.5,21.842105263157894,"11.28,0",688,32.16642441860465,17.3,30.275,84.28352968176253,null,84.28352968176253,100,"Победитель","Шамаев ДмитрийГеннадьевич","Государственное бюджетное общеобразовательное учреждение \"Казанская кадетская школа-интернат имени Героя Советского Союза Б.К.Кузнецова\"","Вахитовский район"]
[7,"Ново-Савиновский район","МБОУ \"Средняя общеобразовательная татарско-русская школа №113 с углубленным изучением отдельных предметов имени Героя России М.Р.Ахметшина\" Ново-Савиновского района г. Казани\"","Мезрин","Е.","К.","М","09.03.2003",11,11,47.5,25,"13.09,4",789.4,28.034583227767925,17.7,30.975,84.00958322776793,null,84.00958322776793,100,"Призер","Рыжов АлександрВасильевич","Муниципальное бюджетное общеобразовательное учреждение \"Средняя общеобразовательная татарско-русская школа №113 с углубленным изучением отдельных предметов имени Героя России М.Р.Ахметшина\" Ново-Савиновского района г. Казани\"","Ново-Савиновский район"]
[8,"Ново-Савиновский район","МБОУ \"Средняя общеобразовательная татарско-русская школа №113 с углубленным изучением отдельных предметов имени Героя России М.Р.Ахметшина\" Ново-Савиновского района г. Казани\"","Хасанов","Р.","А.","М","09.06.2003",11,11,38.5,20.263157894736842,"11.45,4",705.4,31.372979869577545,18.4,32.2,83.83613776431439,null,83.83613776431439,100,"Призер","Рыжов АлександрВасильевич","Муниципальное бюджетное общеобразовательное учреждение \"Средняя общеобразовательная татарско-русская школа №113 с углубленным изучением отдельных предметов имени Героя России М.Р.Ахметшина\" Ново-Савиновского района г. Казани\"","Ново-Савиновский район"]
[9,"Ново-Савиновский район","МБОУ \"Средняя общеобразовательная школа №132 с углубленным изучением иностранных языков\" Ново-Савиновского района г. Казани\"","Осипов","М.","А.","М","01.03.2003",11,11,39,20.526315789473685,"11.57,5",717.5,30.84390243902439,18.5,32.375,83.74521822849808,null,83.74521822849808,100,"Призер","Хубатуллина АльбинаИльгизовна","Муниципальное бюджетное общеобразовательное учреждение \"Средняя общеобразовательная школа №132 с углубленным изучением иностранных языков\" Ново-Савиновского района г. Казани\"","Ново-Савиновский район"]
[10,"Вахитовский район","МАОУ \"Средняя общеобразовательная школа №39 с углубленным изучением английского языка\"","Фомин","А.","Д.","М","26.01.2005",9,9,42.5,22.36842105263158,"11.42,3",702.3,31.51146233803218,17,29.75,83.62988339066376,null,83.62988339066376,100,"Призер","Хусаинов ДаниярДинисламович","Муниципальное автономное общеобразовательное учреждение \"Средняя общеобразовательная школа №39 с углубленным изучением английского языка\"","Вахитовский район"]
[11,"Советский район","МБОУ \"Гимназия № 8 -Центр образования\" Советского района г. Казани\"","Громов","Д.","К.","М","10.05.2003",11,11,37,19.473684210526315,"11.58,2",718.2,30.813840155945417,18.9,33.075,83.36252436647173,null,83.36252436647173,100,"Призер","Корнеева НатальяАлексеевна","Муниципальное бюджетное общеобразовательное учреждение \"Гимназия № 8 -Центр образования\" Советского района г. Казани\"","Советский район"]
[12,"Советский район","МБОУ\"Многопрофильный лицей №185\"","Латыпов","И.","Р.","М","09.02.2005",9,9,41,21.57894736842105,"11.13,2",673.2,32.87358882947118,16.1,28.175,82.62753619789223,null,82.62753619789223,100,"Призер","Гатауллин МаксимЭдуардович","МБОУ\"Многопрофильный лицей №185\"","Советский район"]
[13,"Ново-Савиновский район","МБОУ \"Средняя общеобразовательная школа №132 с углубленным изучением иностранных языков\" Ново-Савиновского района г. Казани\"","Халимбаев","А.","Р.","М","16.04.2003",11,11,39,20.526315789473685,"11.39,9",699.9,31.619517073867698,17.4,30.45,82.59583286334139,null,82.59583286334139,100,"Призер","Хубатуллина Альбина Ильгизовна","МБОУ \"Школа №132\" Ново-Савиновского района","Ново-Савиновский район"]
[14,"Вахитовский район","Государственное бюджетное общеобразовательное учреждение \"Казанская кадетская школа-интернат имени Героя Советского Союза Б.К.Кузнецова\"","Спиридонов","Р.","Е.","М","16.07.2004",10,10,33.5,17.63157894736842,"11.31,6",691.6,31.998987854251013,18.7,32.725,82.35556680161943,null,82.35556680161943,100,"Призер","Шамаев ДмитрийГеннадьевич","Государственное бюджетное общеобразовательное учреждение \"Казанская кадетская школа-интернат имени Героя Советского Союза Б.К.Кузнецова\"","Вахитовский район"]
[15,"Ново-Савиновский район","МБОУ \"Средняя общеобразовательная татарско-русская школа №113 с углубленным изучением отдельных предметов имени Героя России М.Р.Ахметшина\" Ново-Савиновского района г. Казани\"","Перфилов","Т.","М.","М","27.01.2003",11,11,46,24.210526315789473,"14.35,2",875.2,25.28622029250457,18.6,32.55,82.04674660829404,null,82.04674660829404,100,"Призер","Рыжов АлександрВасильевич","Муниципальное бюджетное общеобразовательное учреждение \"Средняя общеобразовательная татарско-русская школа №113 с углубленным изучением отдельных предметов имени Героя России М.Р.Ахметшина\" Ново-Савиновского района г. Казани\"","Ново-Савиновский район"]
[16,"Ново-Савиновский район","ГАОУ \"Полилингвальный комплекс \"Адымнар - путь к знаниям и согласию\" г. Казани\"","Андреев","К.","В.","М","07.04.2004",10,10,40.5,21.31578947368421,"11.40,4",700.4,31.59694460308395,16.6,29.05,81.96273407676816,null,81.96273407676816,100,"Призер","Штыкова ОльгаВладимировна","Государственное автономное общеобразовательное учреждение \"Полилингвальный комплекс \"Адымнар - путь к знаниям и согласию\" г. Казани\"","Ново-Савиновский район"]
[17,"Московский район","МБОУ \"Татарская гимназия № 17 имени Г.Ибрагимова\" Московского района г.Казани\"","Шаронич","Д.","В.","М","08.09.2005",9,9,42,22.105263157894736,"11.38,8",698.8,31.669290211791644,16,28,81.77455336968637,null,81.77455336968637,100,"Призер","Шайдуллин МаратСаматович","Муниципальное бюджетное общеобразовательное учреждение \"Татарская гимназия № 17 имени Г.Ибрагимова\" Московского района г.Казани\"","Московский район"]
[18,"Приволжский район","МАОУ \"Гимназия №19\"","Даутов","Э.","А.","М","09.06.2005",9,9,45.5,23.94736842105263,"15.47,4",947.4,23.35919358243614,19.2,33.6,80.90656200348877,null,80.90656200348877,100,"Призер","Хабибрахмонов Рият Ядгарович","МАОУ \"Гимназия №19\""]
[19,"Вахитовский район","Государственное бюджетное общеобразовательное учреждение \"Казанская кадетская школа-интернат имени Героя Советского Союза Б.К.Кузнецова\"","Артемьев","В.","Б.","М","26.05.2003",11,11,34,17.894736842105264,"11.59,7",719.7,30.749617896345697,17.9,31.325,79.96935473845096,null,79.96935473845096,100,"Призер","Шамаев ДмитрийГеннадьевич","Государственное бюджетное общеобразовательное учреждение \"Казанская кадетская школа-интернат имени Героя Советского Союза Б.К.Кузнецова\"","Вахитовский район"]
[20,"Приволжский район","ОШИ\"IT- лицей федерального государственного автономного образовательного учреждения высшего образования \"Казанский (Приволжский) федеральный университет\"","Павлов","А.","Э.","М","10.05.2004",10,10,40,21.05263157894737,"13.02,9",782.9,28.267339379231064,17.4,30.45,79.76997095817843,null,79.76997095817843,100,"Призер","Игнатьев СергейАлександрович","Общеобразовательная школа-интернат \"IT- лицей федерального государственного автономного образовательного учреждения высшего образования \"Казанский (Приволжский) федеральный университет\"","Приволжский район"]
[21,"Советский район","МБОУ «Гимназия № 183» Советского района г.Казани","Гаврилов","С.","В.","М","05.11.2005",9,9,37.5,19.736842105263158,"12.48,7",768.7,28.789514765187977,17.4,30.45,78.97635687045114,null,78.97635687045114,100,"Призер","Валиахметов ИльшатГайсович","Муниципальное бюджетное общеобразовательное учреждение «Гимназия № 183» Советского района г.Казани","Советский район"]
[22,"Вахитовский район","МБОУ \"Средняя общеобразовательная школа № 51\"","Шагиев","С.","А.","М","23.06.2004",10,10,32.5,17.105263157894736,"11.49,6",709.6,31.18728861330327,17.5,30.625,78.917551771198,null,78.917551771198,100,"Призер","Шарафутдинов АльбертШамильевич","Муниципальное бюджетное общеобразовательное учреждение \"Средняя общеобразовательная школа № 51\"","Вахитовский район"]
[23,"Ново-Савиновский район","МБОУ \"Средняя общеобразовательная школа №132 с углубленным изучением иностранных языков\" Ново-Савиновского района г. Казани\"","Яковчук","М.","П.","М","07.11.2004",9,9,36.5,19.210526315789473,"12.55,8",775.8,28.526037638566642,17.8,31.15,78.88656395435612,null,78.88656395435612,100,"Призер","Ганиев ЭмильРафкатович","Муниципальное бюджетное общеобразовательное учреждение \"Средняя общеобразовательная школа №132 с углубленным изучением иностранных языков\" Ново-Савиновского района г. Казани\"","Ново-Савиновский район"]
[24,"Авиастроительный район","МБОУ \"Средняя общеобразовательная школа № 77\" Авиастроительного района г.Казани\"","Федосеев","А.","Е.","М","16.01.2003",11,11,30.5,16.05263157894737,"10.59,6",659.6,33.551394784718006,16.6,29.05,78.65402636366538,null,78.65402636366538,100,"Призер","Королев АндрейАнатольевич","Муниципальное бюджетное общеобразовательное учреждение \"Средняя общеобразовательная школа № 77\" Авиастроительного района г.Казани\"","Авиастроительный район"]
[25,"Кировский район","МБОУ \"Гимназия №50\" Кировского района г. Казани\"","Гресь","А.","Е.","М","28.06.2003",11,11,30,15.789473684210526,"12.02,9",722.9,30.613501175819618,18.3,32.025,78.42797486003013,null,78.42797486003013,100,"Призер","Мычилкина ЗояДмитриевна","Муниципальное бюджетное общеобразовательное учреждение \"Гимназия №50\" Кировского района г. Казани\"","Кировский район"]
[26,"Советский район","МБОУ \"Лицей № 159\" Советского района г.Казани\"","Иванов","Н.","Д.","М","24.06.2003",11,11,38,20,"13.28,1",808.1,27.385843336220763,17.6,30.8,78.18584333622076,null,78.18584333622076,100,"Призер","Барлев ВикторАлександрович","Муниципальное бюджетное общеобразовательное учреждение \"Лицей № 159\" Советского района г.Казани\"","Советский район"]
[27,"Ново-Савиновский район","МБОУ \"Лицей №177\" Ново-Савиновского района г. Казани\"","Загеров","А.","А.","М","22.03.2004",10,10,39.5,20.789473684210527,"11.33,3",693.3,31.9205250252416,14.4,25.2,77.90999870945213,null,77.90999870945213,100,"Призер","Гладков СергейВладимирович","Муниципальное бюджетное общеобразовательное учреждение \"Лицей №177\" Ново-Савиновского района г. Казани\"","Ново-Савиновский район"]
[28,"Советский район","МАОУ \"Лицей №121 имени Героя Советского Союза С.А.Ахтямова\" Советского района г.Казани","Сафуанов","К.","Р.","М","02.08.2005",9,9,29.5,15.526315789473685,"11.09,5",669.5,33.05526512322629,16.7,29.225,77.80658091269999,null,77.80658091269999,100,"Призер","Слободчиков СергейЛьвович","Муниципальное автономное общеобразовательное учреждение \"Лицей №121 имени Героя Советского Союза С.А.Ахтямова\" Советского района г.Казани","Советский район"]
[29,"Приволжский район","МБОУ \"Татарско-русская средняя общеобразовательная школа №68 с углубленным изучением отдельных предметов\"","Фахрутдинов","Р.","И.","М","23.02.2003",11,11,38,20,"12.49,8",769.8,28.74837620161081,16.6,29.05,77.79837620161081,null,77.79837620161081,100,"Призер","Хуртов СергейГеннадьевич","Муниципальное бюджетное общеобразовательное учреждение \"Татарско-русская средняя общеобразовательная школа №68 с углубленным изучением отдельных предметов\"","Приволжский район"]
[30,"Московский район","МБОУ \"Гимназия № 75\" Московского района г. Казани\"","Алмеков","Т.","С.","М","06.04.2004",10,10,36,18.94736842105263,"11.50,9",710.9,31.130257420171613,15.8,27.65,77.72762584122424,null,77.72762584122424,100,"Призер","Чебуков ИгорьАлексеевич","Муниципальное бюджетное общеобразовательное учреждение \"Гимназия № 75\" Московского района г. Казани\"","Московский район"]
[31,"Кировский район","МБОУ \"Средняя общеобразовательная школа №70 с углубленным изучениемотдельных предметов\" Кировского района г. Казани\"","Иванов","М.","С.","М","27.11.2002",11,11,28.5,15,"11.40,5",700.5,31.59243397573162,17.6,30.8,77.39243397573162,null,77.39243397573162,100,"Призер","Власова АллаВладимировна","Муниципальное бюджетное общеобразовательное учреждение \"Средняя общеобразовательная школа №70 с углубленным изучениемотдельных предметов\" Кировского района г. Казани\"","Кировский район"]
[32,"Вахитовский район","МБОУ \"Гимназия №27 с татарским языком обучения\"","Мухаметзянов","И.","И.","М","19.10.2003",11,11,26,13.68421052631579,"11.42,4",702.4,31.506976082004556,18.1,31.675,76.86618660832035,null,76.86618660832035,100,"Призер","Галиуллин КамильМасхутович","Муниципальное бюджетное общеобразовательное учреждение \"Гимназия №27 с татарским языком обучения\"","Вахитовский район"]
[33,"Кировский район","МБОУ \"Средняя общеобразовательная школа №137 с углубленным изучением отдельных предметов\"Кировского района г.Казани\"","Гибадуллин","Р.","Р.","М","10.11.2004",9,9,34.5,{"$f":"30*K34/57","v":18.157894736842106},"12.16,3",736.3,{"$f":"35*632.3/N34","v":30.056362895558877},16,{"$f":"35*P34/20","v":28},{"$f":"L34+O34+Q34","v":76.21425763240099},0.53,76.74057342187467,100,"Призер","Баранов ВладимирГеннадьевич","Муниципальное бюджетное общеобразовательное учреждение \"Средняя общеобразовательная школа №137 с углубленным изучением отдельных предметов\"Кировского района г.Казани\"","Кировский район"]
[34,"Ново-Савиновский район","МАОУ \"Лицей №146 \"Ресурс\" Ново-Савиновского района г. Казани\"","Салихов","Д.","М.","М","06.09.2004",10,10,33,17.36842105263158,"14.29,4",809.4,27.34185816654312,18.2,31.85,76.5602792191747,null,76.5602792191747,100,"Призер","Белянин АлексейАнатольевич","Муниципальное автономное общеобразовательное учреждение \"Лицей №146 \"Ресурс\" Ново-Савиновского района г. Казани\"","Ново-Савиновский район"]
[35,"Вахитовский район","МБОУ \"Средняя общеобразовательная школа №98 (татарско-русская)\"","Торсуков","А.","Р.","М","04.04.2005",9,9,37,19.473684210526315,"12.49,0",769,28.778283485045513,16.1,28.175,76.42696769557183,null,76.42696769557183,100,"Призер","Габдрахманов ФанзильИльгизович","Муниципальное бюджетное общеобразовательное учреждение \"Средняя общеобразовательная школа №98 (татарско-русская)\"","Вахитовский район"]
[36,"Советский район","МБОУ \"Гимназия №175\" Советского района г.Казани","Нуруллин","А.","А.","М","12.10.2004",10,10,45.5,23.94736842105263,"13.27,8",807.8,27.396013864818027,14.3,25.025,76.36838228587067,null,76.36838228587067,100,"Участник","Сабиров РамильГабделфартович","Муниципальное бюджетное общеобразовательное учреждение \"Гимназия №175\" Советского района г.Казани","Советский район"]
[37,"Ново-Савиновский район","МБОУ \"Средняя общеобразовательная школа №170 с углубленным изучением отдельных предметов\" Ново-Савиновского района г. Казани\"","Громков","Е.","А.","М","29.04.2005",9,9,35.5,18.68421052631579,"12.50,4",770.4,28.725986500519213,16.1,28.175,75.585197026835,null,75.585197026835,100,"Участник","Сусленкова ЮлияВладимировна","Муниципальное бюджетное общеобразовательное учреждение \"Средняя общеобразовательная школа №170 с углубленным изучением отдельных предметов\" Ново-Савиновского района г. Казани\"","Ново-Савиновский район"]
[38,"Ново-Савиновский район","ГАОУ \"Полилингвальный комплекс \"Адымнар - путь к знаниям и согласию\" г. Казани\"","Лебедев","Д.","С.","М","15.03.2003",9,9,36.5,19.210526315789473,"13.21,9",801.9,27.597580745728894,16.1,28.175,74.98310706151837,null,74.98310706151837,100,"Участник","Кривова ИринаВладимировна","Государственное автономное общеобразовательное учреждение \"Полилингвальный комплекс \"Адымнар - путь к знаниям и согласию\" г. Казани\"","Ново-Савиновский район"]
[39,"Авиастроительный район","МБОУ \"Гимназия №10\" Авиастроительного района г.Казани\"","Яруллин","Р.","Р.","М","07.03.2003",11,11,33.5,17.63157894736842,"14.38,2",878.2,25.1998405830107,18,31.5,74.33141953037912,null,74.33141953037912,100,"Участник","Мубаракшина ФаридаМаликовна","Муниципальное бюджетное общеобразовательное учреждение \"Гимназия №10\" Авиастроительного района г.Казани\"","Авиастроительный район"]
[40,"Авиастроительный район","МБОУ \"Средняя общеобразовательная школа №119\" Авиастроительного района г.Казани\"","Рустамов","Т.","Ш.","М","01.09.2002",11,11,35.5,18.68421052631579,"13.49,0",829,26.695416164053075,16.3,28.525,73.90462669036887,null,73.90462669036887,100,"Участник","Павлова АльбинаНиколаевна","Муниципальное бюджетное общеобразовательное учреждение \"Средняя общеобразовательная школа №119\" Авиастроительного района г.Казани\"","Авиастроительный район"]
[41,"Авиастроительный район","МБОУ \"Средняя общеобразовательная школа № 77\" Авиастроительного района г.Казани\"","Филипов","Я.","А.","М","05.12.2004",9,9,34.5,18.157894736842106,"12.06,1",726.1,30.478584217049992,14.4,25.2,73.8364789538921,null,73.8364789538921,100,"Участник","Бикмуллин ДинарМунирович","Муниципальное бюджетное общеобразовательное учреждение \"Средняя общеобразовательная школа № 77\" Авиастроительного района г.Казани\"","Авиастроительный район"]
[42,"Ново-Савиновский район","МБОУ \"Средняя общеобразовательная татарско-русская школа №113 с углубленным изучением отдельных предметов имени Героя России М.Р.Ахметшина\" Ново-Савиновского района г. Казани\"","Мухаметшин","Д.","И.","М","2005-11-15",9,9,40,21.05263157894737,"16.48,0",1008,21.95486111111111,17.4,30.45,73.45749269005849,null,73.45749269005849,100,"Участник","Рыжов АлександрВасильевич","Муниципальное бюджетное общеобразовательное учреждение \"Средняя общеобразовательная татарско-русская школа №113 с углубленным изучением отдельных предметов имени Героя России М.Р.Ахметшина\" Ново-Савиновского района г. Казани\"","Ново-Савиновский район"]
[43,"Приволжский район","МБОУ \"Лицей №35 - образовательный центр \"Галактика\" Приволжского района города Казани\"","Ибрагимов","А.","Р.","М","29.09.2005",9,9,22,11.578947368421053,"12.19,3",739.3,29.934397402948736,18.1,31.675,73.18834477136978,null,73.18834477136978,100,"Участник","Хузиахметова ИринаИльинична","Муниципальное бюджетное общеобразовательное учреждение \"Лицей №35 - образовательный центр \"Галактика\" Приволжского района города Казани\"","Приволжский район"]
[44,"Советский район","МБОУ \"Средняя общеобразовательная школа № 169\" Советского района г.Казани\"","Загрутдинов","Д.","Р.","М","06.04.2003",11,11,33,17.36842105263158,"11.50,5",710.5,31.147783251231527,13.9,24.325,72.84120430386311,null,72.84120430386311,100,"Участник","Забиров РинатРифатович","Муниципальное бюджетное общеобразовательное учреждение \"Средняя общеобразовательная школа № 169\" Советского района г.Казани\"","Советский район"]
[45,"Московский район","МБОУ \"Средняя общеобразовательная татарско-русская школа №65 с углубленным изучением отдельных предметов \" Московского района г.Казани","Латыпов","М.","А.","М","04.08.2004",10,10,29,15.263157894736842,"12.29,7",749.7,29.519140989729223,16,28,72.78229888446606,null,72.78229888446606,100,"Участник","Половников ВалерийНиколаевич","Муниципальное бюджетное общеобразовательное учреждение \"Средняя общеобразовательная татарско-русская школа №65 с углубленным изучением отдельных предметов \" Московского района г.Казани","Московский район"]
[46,"Московский район","МБОУ \"Средняя общеобразовательная русско-татарская школа № 87\" Московского района г.Казани\"","Боровков","Д.","А.","М","10.07.2005",9,9,30,15.789473684210526,"11.35,9",695.9,31.80126454950424,14.1,24.675,72.26573823371477,null,72.26573823371477,100,"Участник","Киндеров ЮрийДмитриевич","Муниципальное бюджетное общеобразовательное учреждение \"Средняя общеобразовательная русско-татарская школа № 87\" Московского района г.Казани\"","Московский район"]
[47,"Советский район","МБОУ \"Средняя общеобразовательная школа № 171 с углубленным изучением отдельных предметов\" Советского района г.Казани","Шафигуллин","Т.","Р.","М","14.07.2003",11,11,27,14.210526315789474,"12.44,5",764.5,28.947678221059515,16.5,28.875,72.03320453684898,null,72.03320453684898,100,"Участник","Хусаинов ИльшатАсхатович","Муниципальное бюджетное общеобразовательное учреждение \"Средняя общеобразовательная школа № 171 с углубленным изучением отдельных предметов\" Советского района г.Казани","Советский район"]
[48,"Авиастроительный район","МБОУ \"Средняя общеобразовательная школа с углубленным изучением отдельных предметов №62\" Авиастроительного района г.Казани\"","Сайфуллин","Р.","Р.","М","03.10.2003",11,11,28,14.736842105263158,"12.50,0",770,28.740909090909092,16.1,28.175,71.65275119617225,null,71.65275119617225,100,"Участник","Садыков РамазанЕвгеньевич","Муниципальное бюджетное общеобразовательное учреждение \"Средняя общеобразовательная школа с углубленным изучением отдельных предметов №62\" Авиастроительного района г.Казани\"","Авиастроительный район"]
[49,"Авиастроительный район","МБОУ \"Гимназия №36\" Авиастроительного района г.Казани\"","Иньков","М.","Д.","М","04.03.2005",9,9,20.5,10.789473684210526,"11.57,5",717.5,30.84390243902439,17,29.75,71.38337612323491,null,71.38337612323491,100,"Участник","Мартынова ТатьянаГеоргиевна","Муниципальное бюджетное общеобразовательное учреждение \"Гимназия №36\" Авиастроительного района г.Казани\"","Авиастроительный район"]
[50,"Вахитовский район","МАОУ \"Средняя общеобразовательная школа №39 с углубленным изучением английского языка\"","Мустаев","Д.","С.","М","20.05.2004",10,10,30,15.789473684210526,"15.30,7",830.7,26.6407848802215,16.3,28.525,70.95525856443203,null,70.95525856443203,100,"Участник","Файзулаев АдельЛинарович","Муниципальное автономное общеобразовательное учреждение \"Средняя общеобразовательная школа №39 с углубленным изучением английского языка\"","Вахитовский район"]
[51,"Московский район","МБОУ \"Средняя общеобразовательная школа №55\"с углубленным изучением отдельных предметов\" Московского района г.Казани\"","Солнышков","Д.","Д.","М","15.07.2003",11,11,28,14.736842105263158,"11.38,6",698.6,31.678356713426854,13.6,23.8,70.21519881869001,null,70.21519881869001,100,"Участник","Евдокимов АндрейВикторович","Муниципальное бюджетное общеобразовательное учреждение \"Средняя общеобразовательная школа №55\"с углубленным изучением отдельных предметов\" Московского района г.Казани\"","Московский район"]
[52,"Приволжский район","МБОУ \"Средняя общеобразовательная школа №24 с углубленным изучением отдельных предметов\"","Имаев","Б.","Р.","М","2005-03-03",9,9,17.5,9.210526315789474,"12.31,1",751.1,29.464119291705497,17.6,30.8,69.47464560749498,null,69.47464560749498,100,"Участник","Шарай Роман Александрович","МБОУШкола № 24» Приволжского района ","Приволжский район"]
[53,"Московский район","МБОУ \"Средняя общеобразовательная татарско-русская школа № 34 \" Московского района г.Казани\"","Шалушкин","Д.","О.","М","09.09.2004",10,10,30.5,16.05263157894737,"15.13,6",913.6,24.223401926444833,16.5,28.875,69.1510335053922,null,69.1510335053922,100,"Участник","Багаутдинов ИльдарЗияфович","Муниципальное бюджетное общеобразовательное учреждение \"Средняя общеобразовательная татарско-русская школа № 34 \" Московского района г.Казани\"","Московский район"]
[54,"Авиастроительный район","МБОУ \"Гимназия №5\"","Валиуллин","А.","Р.","М","07.09.2003",11,11,15,7.894736842105263,"12.03,5",723.5,30.588113337940566,17.4,30.45,68.93285018004583,null,68.93285018004583,100,"Участник","Шакирова НазияАглулловна","Муниципальное бюджетное общеобразовательное учреждение \"Гимназия №5\"","Авиастроительный район"]
[55,"Приволжский район","МБОУ \"Средняя общеобразовательная школа №127\"","Николаев","Р.","А.","М","06.11.2004",10,10,19.5,10.263157894736842,"12.17,4",737.4,30.011526986710063,16.3,28.525,68.7996848814469,null,68.7996848814469,100,"Участник","Токранова ЗинаидаЛеонидовна","Муниципальное бюджетное общеобразовательное учреждение \"Средняя общеобразовательная школа №127\"","Приволжский район"]
[56,"Московский район","МБОУ \"Гимназия №20\"Гармония\" Московского района г.Казани\"","Корчаков","А.","С.","М","11.05.2005",9,9,25.5,13.421052631578947,"13.48,2",828.2,26.721202608065685,16.3,28.525,68.66725523964463,null,68.66725523964463,100,"Участник","Колоярцев АндрейАлександрович","Муниципальное бюджетное общеобразовательное учреждение \"Гимназия №20\"Гармония\" Московского района г.Казани\"","Московский район"]
[57,"Советский район","МБОУ \"Лицей № 149 с татарским языком обучения\" Советского района г.Казани\"","Хуснутдинов","С.","И.","М","07.03.2004",10,10,33,17.36842105263158,"14.09,6",849.6,26.048140301318266,14.2,24.85,68.26656135394984,null,68.26656135394984,100,"Участник","Бурханова ГульчачакГаптерауфовна","Муниципальное бюджетное общеобразовательное учреждение \"Лицей № 149 с татарским языком обучения\" Советского района г.Казани\"","Советский район"]
[58,"Приволжский район","МБОУ \"Русско-татарская средняя общеобразовательная школа №97\"","Морозов","Д.","С.","М","25.09.2004",10,10,15,7.894736842105263,"11.48,2",708.2,31.248940977125105,16.4,28.7,67.84367781923036,null,67.84367781923036,100,"Участник","Ахметзянов АмирИльшатович","Муниципальное бюджетное общеобразовательное учреждение \"Русско-татарская средняя общеобразовательная школа №97\"","Приволжский район"]
[59,"Советский район","МБОУ «Средняя общеобразовательная школа с углубленным изучением отдельных предметов №184 им.М.И.Махмутова»","Кузнецов","Е.","В.","М","18.08.2004",10,10,18.5,9.736842105263158,"13.31,4",811.4,27.27446388957358,17.5,30.625,67.63630599483673,null,67.63630599483673,100,"Участник","Бутовецкая ОльгаНиколаевна","Муниципальное бюджетное общеобразовательное учреждение «Средняя общеобразовательная школа с углубленным изучением отдельных предметов №184 им.М.И.Махмутова»","Советский район"]
[60,"Авиастроительный район","МБОУ \"Средняя общеобразовательная школа № 117\" Авиастроительного района г.Казани\"","Смирнов","В.","Е.","М","30.09.2003",11,11,20.5,10.789473684210526,"12.43,9",763.9,28.97041497578217,15.9,27.825,67.5848886599927,null,67.5848886599927,100,"Участник","Топунов АлександрЛеонидович","Муниципальное бюджетное общеобразовательное учреждение \"Средняя общеобразовательная школа № 117\" Авиастроительного района г.Казани\"","Авиастроительный район"]
[61,"Ново-Савиновский район","МБОУ \"Средняя общеобразовательная школа №9 с углубленным изучением английского языка\" Ново-Савиновского района г. Казани\"","Мустафин","Э.","Г.","М","08.03.2005",9,9,20,10.526315789473685,"16.10,8",970.8,22.79614750721055,19.5,34.125,67.44746329668423,null,67.44746329668423,100,"Участник","Стариков АндрейИванович","Муниципальное бюджетное общеобразовательное учреждение \"Средняя общеобразовательная школа №9 с углубленным изучением английского языка\" Ново-Савиновского района г. Казани\"","Ново-Савиновский район"]
[62,"Кировский район","МБОУ \"Русско-татарская средняя общеобразовательная школа №81 с углубленным изучением отдельных предметов имени В.А.Григорьева\"","Абдуллаев","Р.","Г.","М","16.11.2005",9,9,24,12.631578947368421,"12.55,8",775.8,28.526037638566642,14.7,25.725,66.88261658593507,null,66.88261658593507,100,"Участник","Черепанова ВалентинаВасильевна","Муниципальное бюджетное общеобразовательное учреждение \"Русско-татарская средняя общеобразовательная школа №81 с углубленным изучением отдельных предметов имени В.А.Григорьева\"","Кировский район"]
[63,"Вахитовский район","МАОУ \"Лицей №131\"","Цымбал","И.","Р.","М","03.11.2005",9,9,19,10,"12.50,0",770,28.740909090909092,15.8,27.65,66.39090909090909,null,66.39090909090909,100,"Участник","Пожидаева АидаТагировна","Муниципальное автономное общеобразовательное учреждение \"Лицей №131\"","Вахитовский район"]
[64,"Кировский район","МБОУ \"Средняя общеобразовательная школа №137 с углубленным изучением отдельных предметов\"Кировского района г.Казани\"","Алешин","И.","В.","М","14.04.2003",11,11,28,14.736842105263158,"13.27,0",807,27.423172242874845,13.4,23.45,65.61001434813801,null,65.61001434813801,100,"Участник","Баранов ВладимирГеннадьевич","Муниципальное бюджетное общеобразовательное учреждение \"Средняя общеобразовательная школа №137 с углубленным изучением отдельных предметов\"Кировского района г.Казани\"","Кировский район"]
[65,"Авиастроительный район","МБОУ \"Средняя общеобразовательная школа № 54 с углубленным изучением отдельных предметов\" Авиастроительного района г.Казани\"","Молгачев","Н.","С.","М","02.04.2004",10,10,21,{"$f":"30*K66/57","v":11.052631578947368},"14.07,7",847.7,{"$f":"35*632.3/N66","v":26.106523534269197},16,{"$f":"35*P66/20","v":28},{"$f":"L66+O66+Q66","v":65.15915511321657},null,65.15915511321657,100,"Участник","Сафин ИльдарГусманович","Муниципальное бюджетное общеобразовательное учреждение \"Средняя общеобразовательная школа № 54 с углубленным изучением отдельных предметов\" Авиастроительного района г.Казани\"","Авиастроительный район"]
[66,"Ново-Савиновский район","МБОУ \"Средняя общеобразовательная школа №49\" Ново-Савиновского района г.Казани\"","Карамаев","Е.","n.","М","04.04.2003",11,11,20,10.526315789473685,"14.19,2",859.2,25.75709962756052,16.5,28.875,65.1584154170342,null,65.1584154170342,100,"Участник","Раджабов РаджабВалиевич","Муниципальное бюджетное общеобразовательное учреждение \"Средняя общеобразовательная школа №49\" Ново-Савиновского района г.Казани\"","Ново-Савиновский район"]
[67,"Ново-Савиновский район","МБОУ \"Средняя общеобразовательная школа №143 с углубленным изучением отдельных предметов\" Ново-Савиновского района г.Казани\"","Сафиуллин","Р.","С.","М","08.08.2005",9,9,18,9.473684210526315,"17.01,3",1021.3,21.668951336531872,18.6,32.55,63.69263554705819,null,63.69263554705819,100,"Участник","Сабитов ИльнурНаилевич","Муниципальное бюджетное общеобразовательное учреждение \"Средняя общеобразовательная школа №143 с углубленным изучением отдельных предметов\" Ново-Савиновского района г.Казани\"","Ново-Савиновский район"]
[68,"Московский район","МБОУ \"Средняя общеобразовательная татарско-русская школа № 34 \" Московского района г.Казани\"","Фомин","И.","А.","М","15.06.2004",10,10,11.5,6.052631578947368,"12.14,7",734.7,30.121818429290865,15.3,26.775,62.94945000823823,null,62.94945000823823,100,"Участник","Багаутдинов ИльдарЗияфович","Муниципальное бюджетное общеобразовательное учреждение \"Средняя общеобразовательная татарско-русская школа № 34 \" Московского района г.Казани\"","Московский район"]
[69,"Ново-Савиновский район","МБОУ \"Средняя общеобразовательная школа №89 с углубленным изучением отдельных предметов\" Ново-Савиновского района г. Казани\"","Шафиков","Р.","Р.","М","30.05.2004",10,10,17.5,9.210526315789474,"12.15,4",735.4,30.09314658689149,13.5,23.625,62.928672902680965,null,62.928672902680965,100,"Участник","Арютин АлександрНиколаевич","Муниципальное бюджетное общеобразовательное учреждение \"Средняя общеобразовательная школа №89 с углубленным изучением отдельных предметов\" Ново-Савиновского района г. Казани\"","Ново-Савиновский район"]
[70,"Ново-Савиновский район","МБОУ \"Средняя общеобразовательная татарско-русская школа №71 с углубленным изучением отдельных предметов\" Ново-Савиновского района г. Казани\"","Голиков","А.","А.","М","24.10.2004",9,9,16,8.421052631578947,"12.52,1",772.1,28.66273798730734,14.6,25.55,62.633790618886295,null,62.633790618886295,100,"Участник","Мухаметшин АзатГазизович","Муниципальное бюджетное общеобразовательное учреждение \"Средняя общеобразовательная татарско-русская школа №71 с углубленным изучением отдельных предметов\" Ново-Савиновского района г. Казани\"","Ново-Савиновский район"]
[71,"Авиастроительный район","МБОУ \"Средняя общеобразовательная школа №112\" Авиастроительного района г.Казани","Хаялеев","Ф.","И.","М","19.03.2005",9,9,15,7.894736842105263,"13.01,6",781.6,28.31435516888434,13.1,22.925,59.134092010989605,null,59.134092010989605,100,"Участник","Чагаев ИрекИльдарович","Муниципальное бюджетное общеобразовательное учреждение \"Средняя общеобразовательная школа №112\" Авиастроительного района г.Казани","Авиастроительный район"]
[72,"Приволжский район","МБОУ \"Средняя общеобразовательная школа №42\"","Нуреев","Т.","Р.","М","20.05.2004",10,10,39,20.526315789473685,"11.02,6",662.6,33.399486869906426,0,0,53.92580265938011,null,53.92580265938011,100,"Участник","Хикматуллин МударисСултанович","Муниципальное бюджетное общеобразовательное учреждение \"Средняя общеобразовательная школа №42\"","Приволжский район"]
[73,"Приволжский район","МБОУ \"Лицей №83 - Центр образования\"","Аитов","Т.","Л.","М","29.07.2005",9,9,31.5,16.57894736842105,"10.32,3",632.3,35,0,0,51.578947368421055,null,51.578947368421055,100,"Участник","Исакова ИннаЮрьевна","Муниципальное бюджетное общеобразовательное учреждение \"Лицей №83 - Центр образования\"","Приволжский район"]
[74,"Советский район","МБОУ \"Средняя общеобразовательная школа № 144 с углубленным изучением отдельных предметов\" Советского района г.Казани\"","Гимадиев","Б.","И.","М","01.07.2003",11,11,40.5,21.31578947368421,"12.19,6",739.6,29.922255273120605,null,null,51.23804474680482,null,51.23804474680482,100,"Участник","Саидгараев ФаридФайзулхакович","Муниципальное бюджетное общеобразовательное учреждение \"Средняя общеобразовательная школа № 144 с углубленным изучением отдельных предметов\" Советского района г.Казани\"","Советский район"]
[75,"Советский район","МБОУ \"Средняя общеобразовательная школа № 72 с углубленным изучением немецкого языка\" Советского района г.Казани","Егоров","М.","А.","М","03.04.2003",11,11,36.5,19.210526315789473,"11.57,2",717.2,30.856804238706076,0,{"$f":"35*P76/20","v":0},50.06733055449555,null,50.06733055449555,100,"Участник","Тимергалиев ДамирМиннехазипович","Муниципальное бюджетное общеобразовательное учреждение \"Средняя общеобразовательная школа № 72 с углубленным изучением немецкого языка\" Советского района г.Казани","Советский район"]
[76,"Советский район","МБОУ \"Гимназия № 8 -Центр образования\" Советского района г. Казани\"","Парфенов","Н.","П.","М","14.07.2005",9,9,31.5,16.57894736842105,"11.07,4",667.4,33.1592747977225,0,{"$f":"35*P77/20","v":0},49.73822216614356,null,49.73822216614356,100,"Участник","Суслова ЕленаАлександровна",null,"Советский район"]
[77,"Ново-Савиновский район","МБОУ \"Средняя общеобразовательная школа №143 с углубленным изучением отдельных предметов\" Ново-Савиновского района г.Казани\"","Гализянов","Р.","Р.","М","09.11.2003",11,11,34.5,18.157894736842106,"11.41,0",701,31.569900142653353,0,{"$f":"35*P78/20","v":0},49.72779487949546,null,49.72779487949546,100,"Участник","Билялов РафаэльУзбекович","Муниципальное бюджетное общеобразовательное учреждение \"Средняя общеобразовательная школа №143 с углубленным изучением отдельных предметов\" Ново-Савиновского района г.Казани\"","Ново-Савиновский район"]
[78,"Советский район","МБОУ \"Средняя общеобразовательная школа № 72 с углубленным изучением немецкого языка\" Советского района г.Казани","Байрамов","С.","Б.","М","17.06.2005",9,9,36,18.94736842105263,"12.10,3",730.3,30.303300013693004,0,{"$f":"35*P79/20","v":0},49.250668434745634,null,49.250668434745634,100,"Участник","Тимергалиев ДамирМиннехазипович","Муниципальное бюджетное общеобразовательное учреждение \"Средняя общеобразовательная школа № 72 с углубленным изучением немецкого языка\" Советского района г.Казани","Советский район"]
[79,"Авиастроительный район","МБОУ \"Лицей №145\" Авиастроительного района г.Казани\"","Хайбуллин","Д.","Р.","М","14.06.2005",9,9,36,18.94736842105263,"12.11,4",731.4,30.25772491112934,0,{"$f":"35*P80/20","v":0},49.205093332181974,null,49.205093332181974,100,"Участник","Семагин АлександрАлексеевич","Муниципальное бюджетное общеобразовательное учреждение \"Лицей №145\" Авиастроительного района г.Казани\"","Авиастроительный район"]
[80,"Кировский район","МБОУ \"Русско-татарская средняя общеобразовательная школа №81 с углубленным изучением отдельных предметов имени В.А.Григорьева\"","Румянцев","Е.","С.","М","09.02.2004",10,10,31.5,16.57894736842105,"11.29,5",689.5,32.09644670050761,null,null,48.67539406892867,null,48.67539406892867,100,"Участник","Черепанова ВалентинаВасильевна","Муниципальное бюджетное общеобразовательное учреждение \"Русско-татарская средняя общеобразовательная школа №81 с углубленным изучением отдельных предметов имени В.А.Григорьева\"","Кировский район"]
[81,"Ново-Савиновский район","МБОУ \"Гимназия №7 имени Героя России А.В.Козина\" Ново-Савиновского района г. Казани\"","Мифтахов","А.","И.","М","16.12.2003",10,10,32.5,17.105263157894736,"11.42,0",702,31.524928774928775,0,{"$f":"35*P82/20","v":0},48.63019193282351,null,48.63019193282351,100,"Участник","Калашникова КсенияДмитриевна","Муниципальное бюджетное общеобразовательное учреждение \"Гимназия №7 имени Героя России А.В.Козина\" Ново-Савиновского района г. Казани\"","Ново-Савиновский район"]
[82,"Советский район","МБОУ \"Средняя общеобразовательная школа № 22 с углубленным изучением отдельных предметов - Центр образования\" Советского района г.Казани\"","Хурмиев","Р.","Т.","М","07.11.2003",11,11,35,18.42105263157895,"12.22,3",742.3,29.813417755624414,0,{"$f":"35*P83/20","v":0},48.23447038720336,null,48.23447038720336,100,"Участник","Жиряева РахиляРашитовна","Муниципальное бюджетное общеобразовательное учреждение \"Средняя общеобразовательная школа № 22 с углубленным изучением отдельных предметов - Центр образования\" Советского района г.Казани\"","Советский район"]
[83,"Приволжский район","МБОУ \"Средняя общеобразовательная школа № 173\"","Матюгин","И.","А.","М","22.01.2006",9,9,33.5,17.63157894736842,"12.32,5",752.5,29.409302325581397,0,{"$f":"35*P84/20","v":0},47.04088127294982,null,47.04088127294982,100,"Участник","Тагирова РиммаШамильевна","Муниципальное бюджетное общеобразовательное учреждение \"Средняя общеобразовательная школа № 173\"","Приволжский район"]
[84,"Приволжский район","МБОУ \"Русско-татарская средняя общеобразовательная школа №136\"","Фахрутдинов","Д.","М.","М","10.03.2005",9,9,34,17.894736842105264,{"$nulls":5},17.894736842105264,null,46.944736842105264,100,"Участник","Корнетов ВячеславВладимирович","Муниципальное бюджетное общеобразовательное учреждение \"Русско-татарская средняя общеобразовательная школа №136\"","Приволжский район"]
[85,"Авиастроительный район","МБОУ \"Средняя общеобразовательная школа №60\" Авиастроительного района г.Казани\"","Шакиров","М.","Ф.","М","15.08.2002",11,11,25,13.157894736842104,"10.59,5",659.5,{"$f":"35*632.3/N86","v":33.556482183472326},0,{"$f":"35*P86/20","v":0},46.71437692031443,null,46.71437692031443,100,"Участник","Семагина СветланаВладимировна","Муниципальное бюджетное общеобразовательное учреждение \"Средняя общеобразовательная школа №60\" Авиастроительного района г.Казани\"","Авиастроительный район"]
[86,"Приволжский район","МБОУ \"Лицей №78 \"Фарватер\"","Сунгатуллин","А.","А.","М","12.04.2004",10,10,30.5,16.05263157894737,"12.18,5",738.5,29.966824644549764,0,{"$f":"35*P87/20","v":0},46.01945622349713,null,46.01945622349713,100,"Участник","Мамыков НиколайЛьвович","Муниципальное бюджетное общеобразовательное учреждение \"Лицей №78 \"Фарватер\"","Приволжский район"]
[87,"Советский район","МБОУ \"Средняя общеобразовательная школа № 15 с углубленным изучением отдельных предметов\" Советского района города Казани\"","Гарипов","М.","Р.","М","21.05.2004",10,10,26.5,13.947368421052632,"11.57,0",717,30.865411436541144,0,{"$f":"35*P88/20","v":0},44.812779857593775,null,44.812779857593775,100,"Участник","Рахманова АльбинаРаисовна","Муниципальное бюджетное общеобразовательное учреждение \"Средняя общеобразовательная школа № 15 с углубленным изучением отдельных предметов\" Советского района города Казани\"","Советский район"]
[88,"Советский район","МБОУ \"Многопрофильная полилингвальная гимназия №180\" Советского района г. Казани\"","Рахимов","Б.","А.","М","12.02.2003",11,11,32,16.842105263157894,"13.11,7",791.7,27.95313881520778,0,{"$f":"35*P89/20","v":0},44.79524407836567,null,44.79524407836567,100,"Участник","Долганов МихаилАнатольевич","Муниципальное бюджетное общеобразовательное учреждение \"Многопрофильная полилингвальная гимназия №180\" Советского района г. Казани\"","Советский район"]
[89,"Ново-Савиновский район","МБОУ \"Лицей №23\" Ново-Савиновского района г.Казани\"","Добросов","О.","С.","М","06.10.2003",10,10,34,17.894736842105264,"13.49,9",829.9,26.666465839257743,null,null,44.56120268136301,null,44.56120268136301,100,"Участник","Мухаммадиев АльмирСиренович","Муниципальное бюджетное общеобразовательное учреждение \"Лицей №23\" Ново-Савиновского района г.Казани\"","Ново-Савиновский район"]
[90,"Авиастроительный район","МБОУ \"Гимназия  №33\" Авиастроительного района г.Казани\"","Валиуллин","Б.","Д.","М","29.09.2005",9,9,27.5,14.473684210526315,"12.37,6",757.6,29.211325237592398,null,{"$f":"35*P91/20","v":0},43.68500944811871,null,43.68500944811871,100,"Участник","Аввакумова ЕкатеринаВикторовна","Муниципальное бюджетное общеобразовательное учреждение \"Гимназия  №33\" Авиастроительного района г.Казани\"","Авиастроительный район"]
[91,"Советский район","МБОУ \"Гимназия №93\" Советского района г. Казани","Галкин","Э.","В.","М","15.09.2005",9,9,28,14.736842105263158,"12.52,3",772.3,28.65531529198498,0,0,43.39215739724814,null,43.39215739724814,100,"Участник","Шкаева АлинаИльинична","Муниципальное бюджетное общеобразовательное учреждение \"Гимназия №93\" Советского района г. Казани","Советский район"]
[92,"Авиастроительный район","МБОУ \"Гимназия №5\"","Хафизов","И.","М.","М","07.04.2005",9,9,30.5,16.05263157894737,"13.59,3",839.3,26.367806505421186,0,0,42.420438084368556,null,42.420438084368556,100,"Участник","Шакирова НазияАглулловна","Муниципальное бюджетное общеобразовательное учреждение \"Гимназия №5\"","Авиастроительный район"]
[93,"Ново-Савиновский район","МБОУ \"Средняя общеобразовательная школа №91\" Ново-Савиновского района г. Казани\"","Гришин","Н.","А.","М","05.12.2003",10,10,19,10,"11.33,3",693.3,31.9205250252416,0,0,41.9205250252416,null,41.9205250252416,100,"Участник","Гильмутдинова ФлераФоатовна","Муниципальное бюджетное общеобразовательное учреждение \"Средняя общеобразовательная школа №91\" Ново-Савиновского района г. Казани\"","Ново-Савиновский район"]
[94,"Приволжский район","МБОУ \"Татарско-русская средняя общеобразовательная школа №10 с углубленным изучением отдельных предметов\"","Ягфаров","А.","А.","М","30.06.2005",9,9,22.5,11.842105263157896,"12.19,7",739.7,29.91821008516966,0,0,41.76031534832756,null,41.76031534832756,100,"Участник","Габдрахманов РафисРашитович","Муниципальное бюджетное общеобразовательное учреждение \"Татарско-русская средняя общеобразовательная школа №10 с углубленным изучением отдельных предметов\"","Приволжский район"]
[95,"Советский район","МБОУ \"Средняя общеобразовательная школа № 84 с углубленным изучением иностранных языков\" Советского района г. Казани\"","Трофимов","А.","Р.","М","29.12.2003",10,10,19,10,"11.43,8",703.8,31.44430235862461,0,0,41.44430235862461,null,41.44430235862461,100,"Участник","Яшина ТамараНиколаевна","Муниципальное бюджетное общеобразовательное учреждение \"Средняя общеобразовательная школа № 84 с углубленным изучением иностранных языков\" Советского района г. Казани\"","Советский район"]
[96,"Приволжский район","МБОУ \"Русско-татарская средняя общеобразовательная школа №129\"","Христофоров","Е.","В.","М","01.08.2005",9,9,23,12.105263157894736,"12.46,5",766.5,28.87214611872146,0,0,40.9774092766162,null,40.9774092766162,100,"Участник","Абзалов ГумерМиншакирович","Муниципальное бюджетное общеобразовательное учреждение \"Русско-татарская средняя общеобразовательная школа №129\"","Приволжский район"]
[97,"Приволжский район","МАОУ \"Гимназия № 139\"","Галимов","Р.","Р.","М","02.12.2004",10,10,27,{"$f":"30*K98/57","v":14.210526315789474},"13.56,2",836.2,26.465558478832815,0,0,{"$f":"L98+O98+Q98","v":40.67608479462229},null,40.67608479462229,100,"Участник","Галкин ВикторЮрьевич","Муниципальное автономное общеобразовательное учреждение \"Гимназия № 139\"","Приволжский район"]
[98,"Авиастроительный район","МБОУ \"Гимназия №14\" Авиастроительного района г.Казани\"","Хуснутдинов","А.","Р.","М","19.04.2005",9,9,27,14.210526315789474,"14.00,6",840.6,26.327028313109683,0,0,40.53755462889916,null,40.53755462889916,100,"Участник","Мингазов РустэмАсфандиярович","Муниципальное бюджетное общеобразовательное учреждение \"Гимназия №14\" Авиастроительного района г.Казани\"","Авиастроительный район"]
[99,"Кировский район","МБОУ \"Политехнический лицей № 182\"","Дуженков","Н.","Р.","М","05.10.2004",10,10,34.5,18.157894736842106,"16.43,6",1003.6,22.05111598246313,0,0,40.20901071930524,null,40.20901071930524,100,"Участник","Латыпов ИльшатЮриевич","МБОУ \"Политехнический лицей № 182\"","Кировский район"]
[100,"Кировский район","МБОУ \"Средняя общеобразовательная школа №32\" Кировского района г. Казани\"","Станков","С.","А.","М","31.10.2004",9,9,10.5,5.526315789473684,"10.50,1",650.1,34.04168589447777,0,0,39.56800168395146,null,39.56800168395146,100,"Участник","Хасанов РавильГалимзянович","Муниципальное бюджетное общеобразовательное учреждение \"Средняя общеобразовательная школа №32\" Кировского района г. Казани\"","Кировский район"]
[101,"Советский район","МБОУ \"Гимназия № 20 имени Абдуллы Алиша\" Советского района города Казани\"","Александров","А.","С.","М","16.03.2005",9,9,20,10.526315789473685,"12.51,2",771.2,28.696187759336098,0,0,39.22250354880978,null,39.22250354880978,100,"Участник","Тимерханов РустемХанифович","Муниципальное бюджетное общеобразовательное учреждение \"Гимназия № 20 имени Абдуллы Алиша\" Советского района города Казани\"","Советский район"]
[102,"Московский район","МБОУ «Средняя общеобразовательная школа №130 имени Героя Российской Федерации майора С.А. Ашихмина» Московского района г. Казани","Гужов","П.","Ю.","М","18.12.2004",9,9,12.5,6.578947368421052,"11.37,1",697.1,31.74652130253909,0,0,38.32546867096014,null,38.32546867096014,100,"Участник","Васильев АлександрАнатольевич","Муниципальное бюджетное общеобразовательное учреждение «Средняя общеобразовательная школа №130 имени Героя Российской Федерации майора С.А. Ашихмина» Московского района г. Казани","Московский район"]
[103,"Ново-Савиновский район","МАОУ \"Лицей-интернат №7\" Ново-Савиновского района г. Казани\"","Гарипов","Д.","А.","М","10.07.2004",10,10,17,8.947368421052632,"13.11,0",791,27.97787610619469,null,0,36.92524452724732,null,36.92524452724732,100,"Участник","Кульманов РегинРафисович","Муниципальное автономное общеобразовательное учреждение \"Лицей-интернат №7\" Ново-Савиновского района г. Казани\"","Ново-Савиновский район"]
[104,"Приволжский район","МБОУ \"Средняя общеобразовательная школа №69\"","Максимов","В.","Д.","М","05.03.2005",9,9,11.5,6.052631578947368,"12.24,1",744.1,29.74129821260583,0,0,35.7939297915532,null,35.7939297915532,100,"Участник","Степанова РозалияРифкатовна","Муниципальное бюджетное общеобразовательное учреждение \"Средняя общеобразовательная школа №69\"","Приволжский район"]
[105,"Приволжский район","МБОУ \"Средняя общеобразовательная школа №24 с углубленным изучением отдельных предметов\"","Эверсков","В.","А.","М","28.09.2005",9,9,11.5,6.052631578947368,"13.54,2",834.2,26.52900982977703,null,null,32.5816414087244,null,32.5816414087244,100,"Участник","Сенюхин СергейГеннадьевич","Муниципальное бюджетное общеобразовательное учреждение \"Средняя общеобразовательная школа №24 с углубленным изучением отдельных предметов\"","Приволжский район"]
[106,"Приволжский район","МБОУ \"Гимназия№52\"","Федоров","Д.","В.","М","30.01.2005",9,9,8.5,4.473684210526316,"14.44,2",884.2,25.0288396290432,0,{"$f":"35*P107/20","v":0},29.502523839569516,null,29.502523839569516,100,"Участник","Михеева ДиляраФаридовна","Муниципальное бюджетное общеобразовательное учреждение \"Гимназия№52\"","Приволжский район"]
[107,"Приволжский район","МБОУ \"Средняя общеобразовательная школа №48 с углубленным изучением отдельных предметов\"","Левин","Н.","А.","М","24.04.2004",10,10,34,17.894736842105264,{"$nulls":5},17.894736842105264,null,17.894736842105264,100,"Участник","Гисматулов РустемИльгизарович","Муниципальное бюджетное общеобразовательное учреждение \"Средняя общеобразовательная школа №48 с углубленным изучением отдельных предметов\"","Приволжский район"]
[108,"Приволжский район","МБОУ \"Лицей №78 \"Фарватер\"","Гафиатуллин","А.","А.","М","18.12.2004",9,9,32.5,17.105263157894736,{"$nulls":3},0,{"$f":"35*P109/20","v":0},17.105263157894736,null,17.105263157894736,100,"Участник","Набиев Ленар Ринатович",null,"Приволжский район"]
[109,"Авиастроительный район","МАОУ \"Гимназия №37\" Авиастроительного района г.Казани\"","Сафин","А.","Л.","М","19.09.2005",9,9,30,15.789473684210526,{"$nulls":5},15.789473684210526,null,15.789473684210526,100,"Участник","Сарбаев ИгорьЕвгеньевич","Муниципальное автономное общеобразовательное учреждение \"Гимназия №37\" Авиастроительного района г.Казани\"","Авиастроительный район"]
[110,"Советский район","МБОУ \"Многопрофильная школа №181\" Советского района г. Казани\"","Классен","Д.","Д.","М","19.04.2003",11,11,28.5,15,{"$nulls":5},15,null,15,100,"Участник","Садыков ТимурАйдарович","Муниципальное бюджетное общеобразовательное учреждение \"Многопрофильная школа №181\" Советского района г. Казани\"","Советский район"]
[111,"Советский район","МБОУ \"Средняя общеобразовательная школа №167 с углубленным изучением отдельных предметов\" Советского района г. Казани","Цхай","В.","А.","М","14.02.2004",10,10,23.5,12.368421052631579,{"$nulls":3},0,{"$f":"35*P112/20","v":0},12.368421052631579,null,12.368421052631579,100,"Участник","Мухаметзянов АсгатХатипович","Муниципальное бюджетное общеобразовательное учреждение \"Средняя общеобразовательная школа №167 с углубленным изучением отдельных предметов\" Советского района г. Казани","Советский район"]
[112,"Приволжский район","МБОУ «Многопрофильный лицей №186 - \"Перспектива\" Приволжского района г. Казани","Плотников","Д.","И.","М","17.05.2005",9,9,19,10,{"$nulls":5},10,null,10,100,"Участник","Сабирзянов РустемНагимуллович","Муниципальное бюджетное общеобразовательное учреждение «Многопрофильный лицей №186 - \"Перспектива\" Приволжского района г. Казани","Приволжский район"]
[113,"Кировский район","МБОУ \"Средняя русско-татарская общеобразовательная школа №57\" г.Казани\"","Фадеев","Е.","А.","М","05.02.2005",9,9,17,8.947368421052632,{"$nulls":5},8.947368421052632,null,8.947368421052632,100,"Участник","Сайдулин ИгорьВитальевич","Муниципальное бюджетное общеобразовательное учреждение \"Средняя русско-татарская общеобразовательная школа №57\" г.Казани\"","Кировский район"]
[114,"Ново-Савиновский район","МБОУ \"Средняя общеобразовательная школа №85 с углубленным изучением отдельных предметов\" Ново-Савиновского района г.Казани\"","Миндубаев","Р.","Р.","М","21.09.2004",10,10,16.5,8.68421052631579,{"$nulls":5},8.68421052631579,null,8.68421052631579,100,"Участник","Хабибрахманов БулатГабдрахманович","Муниципальное бюджетное общеобразовательное учреждение \"Средняя общеобразовательная школа №85 с углубленным изучением отдельных предметов\" Ново-Савиновского района г.Казани\"","Ново-Савиновский район"]
[115,"Авиастроительный район","МБОУ \"Лицей №26 им. М.Джалиля\" Авиастроительного района г.Казани\"","Ахметов","К.","М.","М","25.10.2004",9,9,9,4.7368421052631575,{"$nulls":5},4.7368421052631575,null,4.7368421052631575,100,"Участник","Мухаммадеева РалинаАльбертовна","Муниципальное бюджетное общеобразовательное учреждение \"Лицей №26 им. М.Джалиля\" Авиастроительного района г.Казани\"","Авиастроительный район"]